Workbook

Sheet Menu

Sheet Bareme
A2: Baccalauréat professionnel « maintenance des équipements industriels » – Unité U 11 | AE2: =(AE4+AE26) -> 100
A4: CP 2.1 Analyser le fonctionnement et l’organisation d’un système | AE4: 40 | AF4: =SUM(AE6:AE25) -> 100
A6: 1 | C6: Décoder toutes formes de représentation. | N6: Les représentations sont lues et comprises sans erreur. | AE6: 10
A8: 2 | C8: Décrire le système dans son environnement d’un point de vue fonctionnel, temporel et structurel : • Identifier les fonctions opératives. • Identifier la fonction : - sécurité, - dialogue (homme/machine) et surveillance, - alimentation en énergie. • Décrire le rôle et les caractéristiques des composants réalisant ces fonctions. • Lire et décoder l’évolution temporelle du bien. • Décoder les modes de production et/ou l’exploitation du bien. | N8: La description à l’écrit ou à l’oral doit être conforme : - au système, - à son environnement, - aux normes en vigueur. | AE8: 5
N10: Ce descriptif intègre toutes les fonctions opératives du système et leurs interactions. | AE10: 5
N12: Chaque fonction est repérée et délimitée sur les documents et sur le bien sans erreur. | AE12: 15
N14: Les composants qui participent à chaque fonction sont identifiés | AE14: 15
N16: La description à l’écrit ou à l’oral doit être conforme aux composants et à leurs fonctions. | AE16: 10
N18: L’évolution temporelle est assimilée et décrite. | AE18: 5
N20: Le fonctionnement est compris. | AE20: 20
A22: 3 | C22: Analyser tout ou partie du bilan énergétique. | N22: Les causes des pertes sont identifiées. | AE22: 5
N24: Les paramètres de puissance, de travail et de rendement sont identifiés et éventuellement calculés ou vérifiés. | AE24: 10
A26: CP 2.2 Analyser les solutions mécaniques réalisant les fonctions opératives. | AE26: 60 | AF26: =SUM(AE28:AE57) -> 100
A28: 1 | C28: Décoder toutes formes de représentation des solutions constructives. | N28: Les plans, schémas, documents techniques, éclatés… sont lus et compris sans erreur. | AE28: 10
A30: 2 | C30: Identifier, pour chaque solution technique (assemblage, guidage, étanchéité, transmission, transformation des mouvements…) : • les composants utilisés, • les performances attendues ou constatées, • les caractéristiques, • les conditions d’utilisations, • les risques de défaillances. | N30: Les composants constitutifs des solutions et leurs éléments d’assemblage sont identifiés et désignés exhaustivement et sans erreur. | AE30: 6
N32: Les caractéristiques, les performances, les conditions d’utilisations, les risques de défaillances sont explicités. | AE32: 6
N34: Les dérives de fonctionnement sont justifiées. | AE34: 6
A36: 3 | C36: Décrire la cinématique des parties opératives. | N36: La description (schéma cinématique) doit être conforme : - aux solutions mécaniques, | AE36: 5
N38: La description (schéma cinématique) doit être conforme : - à son environnement, | AE38: 5
N40: La description (schéma cinématique) doit être conforme : - aux normes de représentation en vigueur. | AE40: 5
A42: 4 | C42: Décrire et vérifier par le calcul des solutions constructives. | N42: La description est conforme à l’ensemble étudié | AE42: 5
N44: Les formules sont correctement utilisées. | AE44: 10
N46: Les logiciels de calcul et les résultats fournis sont correctement exploités. | AE46: 10
A48: 5 | C48: Etablir des schémas et croquis des solutions techniques. | N48: Les schémas réalisés sont conformes aux solutions et respectent les normes de représentation. | AE48: 5
N50: Les croquis sont exploitables. | AE50: 10
A52: 6 | C52: Rédiger des consignes : - gammes de montage démontage, - procédures de réglages. | N52: Les gammes et les procédures sont exploitables et répondent au besoin. | AE52: 10
N54: Le plan de prévention est réactualisé. | AE54: 2
N56: Le langage utilisé est correct et approprié. | AE56: 5
A59: Baccalauréat professionnel « maintenance des équipements industriels » – Unité U 2 | AE59: =AE61+AE81+AE105 -> 100
A61: CP 2.3 : Analyser les solutions de gestion, de distribution, de conversion des énergies pneumatique hydraulique et électrique. | AE61: 40 | AF61: =SUM(AE63:AE80) -> 100
A63: 1 | C63: Décoder toutes formes de représentation des circuits de distribution des énergies. | N63: Les représentations sont lues et comprises sans erreur. | AE63: 12
A65: 2 | C65: Identifier les matériels qui concourent à assurer la protection des personnes et des biens. | N65: Les matériels qui concourent à assurer la protection des personnes et des biens sont localisés, reconnus et nommés. Le régime de neutre de l’installation est identifié. | AE65: 12
A67: 3 | C67: Identifier et désigner pour chaque solution technique (gestion, traitement, distribution, protection, conversion) : • les composants utilisés, • les performances attendues ou constatées, • les caractéristiques, • les conditions d’utilisations, • les risques de défaillances | N67: Les composants constitutifs des solutions techniques et leurs éléments d’assemblage sont identifiés et désignés exhaustivement et sans erreur. | AE67: 12
N69: Les caractéristiques, les performances, les conditions d’utilisations, les risques de défaillances sont listés. | AE69: 12
N71: Les dérives de fonctionnement sont justifiées. | AE71: 12
N73: Les risques de défaillances sont listés et décrits. | AE73: 10
A75: 4 | C75: Décrire d’un point de vue temporel : • l’évolution des niveaux d’énergie • les comportements des différents composants. | N75: Les outils descripteurs sont maîtrisés | AE75: 10
N77: La description temporelle représente fidèlement des paramètres des énergies et le fonctionnement des composants. | AE77: 10
A79: 5 | C79: Décrire et valider par le calcul les niveaux d’énergie associés aux solutions techniques à assurer. | N79: Les paramètres (débit, pression, intensité…) sont vérifiés. | AE79: 10
A81: CP 3.1 : Préparer son intervention. | AE81: 30 | AF81: =SUM(AE83:AE104) -> 100
A83: 1 | C83: Prendre connaissance de la demande d’intervention. | N83: Les indications portées sur la demande d’intervention et au plan de prévention sont identifiées et assimilées (comprises). | AE83: 10
A85: 2 | C85: Collecter les documents nécessaires à l’intervention. | N85: Les documents collectés permettent d’organiser et de réaliser l’intervention. | AE85: 10
A87: 3 | C87: Evaluer les difficultés d’accès aux composants | N87: Les contraintes d’accès sont repérées et énumérées. | AE87: 10
A89: 4 | C89: Situer le ou les dispositifs de sécurité interne ou externe du bien. | N89: Les dispositifs de sécurités sont convenablement localisés. | AE89: 10
A91: 5 | C91: Identifier les risques de son intervention | N91: Les risques sont bien repérés | AE91: 10
A93: 6 | C93: Recenser les moyens de protections individuels et collectifs. | N93: Les moyens sont listés exhaustivement. | AE93: 10
A95: 7 | C95: Formuler les modifications à apporter si nécessaire. | N95: Les nouvelles contraintes sont prises en compte. | AE95: 8
A97: 8 | C97: Analyser ou établir la procédure de son intervention. | N97: La procédure est comprise ou judicieusement rédigée. | AE97: 8
A99: 9 | C99: Evaluer le temps nécessaire et le délai de livraison (mise à disposition après réparation). | N99: La durée de l’intervention prévue est adaptée. | AE99: 8
A101: 10 | C101: Planifier son intervention en tenant compte : • des impératifs de production, • des stocks disponibles, • de la durée estimée de son intervention | N101: Tous les critères de planification sont respectés. | AE101: 8
A103: 11 | C103: Rassembler et inventorier les outils, les appareils de mesures et de contrôles, les moyens de manutention et de sécurité nécessaires. | N103: L’ensemble des moyens est identifié, vérifié et répertorié. | AE103: 8
A105: CP 3.2 : Émettre des propositions d’améliorations d’un bien | AE105: 30 | AF105: =SUM(AE107:AE128) -> 100
A107: 1 | C107: Exploiter l’historique du bien. | N107: Les événements sont analysés. | AE107: 10
N109: Les données liés à la maintenabilité (fiabilité, accessibilité, temps d’intervention…) et à la sécurité, justifiant la proposition de modification, sont repérées. | AE109: 10
A111: 2 | C111: Argumenter la proposition d’amélioration au regard des problèmes constatés (maintenabilité, sécurité). | N111: Les justifications orales et écrites sont exploitables et pertinentes. La proposition est justifiée économiquement. | AE111: 10
A113: 3 | C113: Proposer des solutions d’amélioration d’un point de vue maintenance sur : • la partie commande • la partie opérative • l’environnement Exemple :  une nouvelle solution constructive  un composant de remplacement… | N113: La solution ou le composant proposé doit permettre d’améliorer la fiabilité, | AE113: 10
N115: La solution ou le composant proposé doit permettre de diminuer le temps d’intervention, | AE115: 10
N117: La solution ou le composant proposé doit permettre d’améliorer l’accessibilité, | AE117: 10
N119: La solution ou le composant proposé doit permettre de diminuer le coût des pièces de rechanges | AE119: 8
N121: La solution ou le composant proposé doit permettre d’améliorer la sécurité. | AE121: 8
N123: La sécurité est optimisée. | AE123: 8
A125: 4 | C125: Produire des documents présentant l’évolution. | N125: Les documents produits sont exploitables et conformes aux normes en vigueur quand ils y font référence. | AE125: 8
N127: L’évolution du plan de prévention est proposée. | AE127: 8
A130: Baccalauréat professionnel « maintenance des équipements industriels » – Unité U 31 | AE130: =(AE132+AE150+AE186+AE204+AE222+AE238) -> 100
A132: CP 1.4 - Exécuter des opérations de surveillance et d’inspection | AE132: 15 | AF132: =SUM(AE134:AE149) -> 100
A134: 1 | C134: Mettre le bien dans les conditions requises pour effectuer les mesures, les contrôles et les surveillances. | N134: Le plan de prévention est compris et respecté | AE134: 10
A136: 2 | C136: Surveiller un bien : • surveiller le fonctionnement en mobilisant les cinq sens, • vérifier les données de contrôle (indicateurs, voyants…), repérer les dérives. | N136: Les signes d’anomalies sont détectés. | AE136: 15
N138: Les données sont lues et les dérives détectées. | AE138: 15
A140: 3 | C140: Effectuer les mesures et les contrôles : • localiser les points de contrôle sur le bien, • régler, calibrer les appareils ou matériels de contrôle, • collecter et reporter les résultats des mesures et des contrôles. | N140: Les points de contrôle sont repérés sans erreurs. | AE140: 16
N142: Les calibres sont choisis et les réglages sont effectués correctement. | AE142: 12
N144: Les résultats des mesures et contrôles sont collectés et écrits sans erreurs. | AE144: 12
A146: 4 | C146: Remettre le bien dans les conditions normales de fonctionnement. | N146: Le bien est dans les conditions normales de fonctionnement. | AE146: 10
A148: 5 | C148: Saisir ou rédiger un compte-rendu d’intervention. | N148: Le compte-rendu, écrit ou saisi, est pertinent et exploitable. | AE148: 10
A150: CP 1.5 - Exécuter les travaux d’amélioration ou de modification du bien | AE150: 26 | AF150: =SUM(AE152:AE185) -> 100
A152: 1 | C152: Préparer la zone d’intervention (bien et son environnement). | N152: La zone est libérée, nettoyée et sécurisée. | AE152: 6
N154: Les énergies sont repérées, le bien est consigné. | AE154: 6
A156: 2 | C156: Effectuer la dépose de la partie du bien à modifier. | N156: Les composants sont repérés et déposés suivant un ordre logique. | AE156: 9
N158: Les composants à conserver ne sont pas endommagés. | AE158: 8
N160: Les éléments d’assemblage sont classés. | AE160: 8
A162: 3 | C162: Réceptionner les travaux externalisés | N162: Les éléments reçus sont vérifiés : dimensions, nature des matériaux, | AE162: 6
N164: Les éléments reçus sont vérifiés : quantité, aspect, caractéristiques … | AE164: 6
A166: 4 | C166: Installer les éléments de l’amélioration ou de la modification. | N166: Tous les composants sont assemblés et montés dans le respect des procédures et des notices techniques. | AE166: 12
N168: Les énergies sont raccordées. | AE168: 11
A170: 5 | C170: Effectuer les tests et procéder à la mise au point(réglages, paramétrages…) | N170: Les paramétrages sont corrects et respectent les procédures prédéfinies. | AE170: 5
N172: Les réglages sont effectués. | AE172: 5
N174: Le bien est prêt pour la mise en service. | AE174: 4
A176: 6 | C176: Rétablir l’environnement du bien. | N176: L’environnement du bien est préparé et nettoyé. | AE176: 2
N178: Les outillages et les équipements sont rangés. | AE178: 2
N180: Les déchets sont éliminés. | AE180: 2
N182: Les pièces, les composants, les consommables sont classés ou réformés. | AE182: 2
A184: 7 | C184: Mettre en service le bien avec l’exploitant (après déconsignation). | N184: Les performances attendues sont atteintes. | AE184: 6
A186: CP 4.1 - Recevoir et transmettre des informations | AE186: 12 | AF186: =SUM(AE188:AE203) -> 100
A188: 1 | C188: Comprendre, s’approprier un ordre, une consigne, un constat de défaillance. Questionner l’exploitation du bien afin de compléter les informations. | N188: Les paramètres, les éléments du message sont compris sans déformation et dans leur intégralit | AE188: 25
N190: Les questions posées sont pertinentes par rapport à la problématique à résoudre et les réponses retenues sont en adéquation avec le problème. | AE190: 13
A192: 2 | C192: Extraire les éléments nécessaires à l’information au sein de la documentation disponible | N192: Le choix de la documentation retenue est judicieux et les informations collectées sont comprises et exploitées sans erreur. | AE192: 12
A194: 3 | C194: Analyser les informations (ordre, consignes, constat) et les éléments recueillis (documentation). | N194: La synthèse est cohérente avec la problématique. | AE194: 25
A196: 4 | C196: Formuler oralement ou par écrit la synthèse de son analyse en utilisant les diverses formes de langages et de communication technique ou scientifique. | N196: A l’écrit, la formulation est claire, univoque. Elle utilise le langage le mieux adapté pour la compréhension du message. | AE196: 7
N198: Les désignations employées sont normalisées. | AE198: 6
N200: L’expression orale doit être structurée et le vocabulaire utilisé précis. Elle permet une compréhension sans équivoque du message à transmettre. | AE200: 6
N202: Le message transmis comporte les éléments essentiels. | AE202: 6
A204: CP 4.2 - Rédiger et argumenter des comptes rendus. | AE204: 12 | AF204: =SUM(AE206:AE221) -> 100
A206: 1 | C206: Identifier les informations pertinentes relatives à la maintenance. | N206: Les informations pertinentes sont retenues. | AE206: 15
A208: 2 | C208: Choisir les outils de descriptions les mieux adaptés au compte-rendu. | N208: Les documents pour rendre compte sont proposés avec pertinence (schémas, plans, procédures, dossiers technique et de maintenance | AE208: 15
A210: 3 | C210: Rédiger et mettre en forme le compte-rendu. | N210: A l’écrit, la formulation est claire, univoque. Elle utilise le langage le mieux adapté pour la compréhension du compte-rendu | AE210: 10
N212: Les désignations employées sont normalisées | AE212: 10
N214: L’expression orale doit être structurée et le vocabulaire utilisé précis. Elle permet une compréhension sans équivoque du compte-rendu. | AE214: 10
N216: Le compte-rendu transmis comporte les éléments essentiels. | AE216: 10
A218: 4 | C218: Proposer si nécessaire : • les éléments de mise à jour des documents : techniques, de sécurités, de procédures • tous documents, informations nécessaires à la bonne compréhension de l’intervention | N218: Les éléments proposés sont pertinents et utilisables. | AE218: 15
A220: 5 | C220: Préciser éventuellement les difficultés rencontrées. | N220: L’écart entre le travail réalisé et le travail demandé est décrit et argumenté | AE220: 15
A222: Exposer l'étude de cas | AE222: 17 | AF222: =SUM(AE224:AE237) -> 100
A224: 1 | C224: Exposer l’Etude de cas | N224: L’exposé traduit sans équivoque le résultat des analyses relatées dans le rapport: la description de l’équipement | AE224: 16
N226: L’exposé traduit sans équivoque le résultat des analyses relatées dans le rapport: énoncer de la problematique relative à la maintenance | AE226: 16
N228: L’exposé traduit sans équivoque le résultat des analyses relatées dans le rapport: la présentation de la solution retenue. | AE228: 18
N230: L’exposé traduit sans équivoque la mise en œuvre des propositions techniques : la description des interventions réalisées, | AE230: 17
N232: L’exposé traduit sans équivoque la mise en œuvre des propositions techniques : l’intégration des procédures de sécurité, | AE232: 10
N234: L’exposé traduit sans équivoque la mise en œuvre des propositions techniques : l’intégration des procédures d’hygiène, | AE234: 6
N236: L’exposé traduit sans équivoque la mise en œuvre des propositions techniques : la prise en compte de l’environnement. | AE236: 17
A238: Donner des informations complémentaires | AE238: 18 | AF238: =SUM(AE240:AE243) -> 100
A240: 2 | C240: Donner des informations complémentaires. | N240: Les réponses aux membres de la commission d’évaluation permettent d’apporter des informations complémentaires, | AE240: 50
N242: Les réponses aux membres de la commission d’évaluation permettent d’argumenter les choix effectués. | AE242: 50
A245: Baccalauréat professionnel « maintenance des équipements industriels » – Unité U 32 | AE245: =(AE247+AE267) -> 100
A247: CP 1.3 - Réparer un composant | AE247: 80 | AF247: =SUM(AE249:AE266) -> 100
A249: 1 | C249: Etudier le démontage, analyser la gamme ou la réaliser si nécessaire. | N249: La stratégie est logique et permet un démontage sans détérioration. | AE249: 14
A251: 2 | C251: Rassembler et vérifier les outillages et matériels nécessaires. | N251: Les moyens rassemblés sont en bon état et adaptés à l’intervention. | AE251: 8
A253: 3 | C253: Effectuer le démontage | N253: Les moyens de manutention et l’outillage sont mis en œuvre correctement et en toute sécurité | AE253: 15
A255: 4 | C255: Analyser l’état du composant. | N255: L’inspection du composant permet : - de définir les pièces à remplacer ou à retoucher. | AE255: 8
N257: L’inspection du composant permet : - d’évaluer le coût de la réparation et de décider de sa poursuite. | AE257: 8
A259: 5 | C259: Vérifier la disponibilité des pièces de rechange, des consommables, et leurs correspondances avec le composant démonté. | N259: Les pièces de rechanges commandées ou sorties du magasin sont conformes. | AE259: 12
A261: 6 | C261: Remonter le composant avec les pièces de rechange, le régler. | N261: Le remontage est réalisé dans le respect des procédures. | AE261: 15
N263: Les réglages et essais nécessaires sont correctement réalisés. | AE263: 10
A265: 7 | C265: Vérifier le bon fonctionnement du composant. | N265: La réparation réalisée est conforme aux exigences de fonctionnement du composant | AE265: 10
A267: CP 1.7 - Identifier les risques, définir et mettre en œuvre les mesures de prévention adaptées : évaluations des risques autres qu’électriques | AE267: 20 | AF267: =SUM(AE269:AE284) -> 100
A269: 1 | C269: Identifier les phénomènes dangereux et les situations dangereuses | N269: Les phénomènes dangereux et les situations dangereuses liés au bien, à son environnement et à l’activité sont identifiés. | AE269: 15
A271: 2 | C271: Déterminer les mesures de prévention en regard des situations dangereuses identifiées dans l’acte de maintenance | N271: Les mesures de prévention définies sont adaptées aux situations dangereuses identifiées | AE271: 15
A273: 3 | C273: Mettre en œuvre les E.P.I. | N273: La mise en œuvre des E.P.I. est correcte. | AE273: 15
A275: 4 | C275: Mettre en œuvre les E.P.C. | N275: La mise en œuvre des E.P.C. est correcte. | AE275: 15
A277: 5 | C277: Utiliser des équipements individuels de sécurité (EIS) | N277: La mise en œuvre des E.I.S. est correcte. | AE277: 10
A279: 6 | C279: Consigner (énergie, accés…) Respecter les procédures | N279: Les procédures de mise en œuvre des équipements et des outillages sont conformes | AE279: 20
A281: 7 | C281: Proposer des modifications au plan de prévention. | N281: Les propositions permettent: - de se prémunir de situations ou de phénomènes dangereux résiduels identifiés. | AE281: 5
N283: Les propositions permettent: - d’améliorer les mesures de prévention préconisées. | AE283: 5
A287: Baccalauréat professionnel « maintenance des équipements industriels » – Unité U 33 | AE287: =(AE289+AE321+AE337+AE367) -> 100
A289: CP 1.1 - Diagnostiquer les pannes | AE289: 40 | AF289: =SUM(AE291:AE320) -> 100
A291: 1 | C291: Etablir le constat de défaillance. | N291: Les évènements avant panne sont collectés | AE291: 10
N293: Les informations délivrées par le système sont relevées. | AE293: 10
N295: La configuration du bien en panne est analysée | AE295: 10
A297: 2 | C297: Identifier la fonction défaillante | N297: La fonction défaillante est repérée | AE297: 10
A299: 3 | C299: Localiser la panne : • identifier et lister les composants susceptibles d’être défaillants, • hiérarchiser les hypothèses, • effectuer les tests, mesures et contrôles permettant de valider ou non les hypothèses. | N299: Les composants sont listés exhaustivement | AE299: 10
N301: Les hypothèses sont pertinentes, plausibles et correctement hiérarchisées. | AE301: 5
N303: Les points de test et de contrôle sont bien choisis et localisés. | AE303: 5
N305: Les appareils de mesure et de contrôle sont correctement mis en œuvre. | AE305: 5
N307: Les résultats sont bien interprétés. | AE307: 5
N309: La chronologie des tests est adaptée en fonction des résultats des contrôles précédents. | AE309: 5
A311: 4 | C311: Identifier le composant défectueux. | N311: L’identification du composant est correcte. | AE311: 10
N313: La durée de la localisation est optimale. | AE313: 3
A315: 5 | C315: Expertiser le composant et identifier la cause de la panne. | N315: La cause de la panne est plausible | AE315: 5
N317: La demande complémentaire d’expertise du bien est justifiée. | AE317: 3
N319: La durée du diagnostic est optimale | AE319: 4
A321: CP 1.2 - Remettre en état de fonctionnement un bien | AE321: 20 | AF321: =SUM(AE323:AE336) -> 100
A323: 1 | C323: Situer le composant défectueux sur le bien. | N323: Le composant est repéré rapidement sur le bien | AE323: 20
A325: 2 | C325: Rassembler et vérifier les outillages et matériels nécessaires. | N325: Les moyens rassemblés sont en bon état et adaptés à l’intervention. | AE325: 10
A327: 3 | C327: Consigner tout ou partie du bien. | N327: Le bien est consigné dans le respect de la réglementation et des procédures. | AE327: 15
A329: 4 | C329: Effectuer la dépose du composant défectueux. | N329: Les consignes et procédures sont respectées. | AE329: 15
N331: Les moyens de manutention et l’outillage sont mis en œuvre correctement et en toute sécurité. | AE331: 15
A333: 5 | C333: Installer et régler le composant de remplacement. | N333: Le composant est remplacé sans risque pour les personnes et le bien. | AE333: 15
A335: 6 | C335: Mettre en service le bien. | N335: Les performances du bien sont conformes au cahier des charges | AE335: 10
A337: CP 1.6 - Mettre en service un bien dans le respect des procédures | AE337: 20 | AF337: =SUM(AE339:AE366) -> 100
A339: 1 | C339: Préparer le bien pour une mise en service. | N339: Les zones d’actions des effecteurs et la zone de travail sont propres et dégagées. | AE339: 5
N341: La vérification des scellements et la géométrie des biens sont réalisées. | AE341: 5
A343: 2 | C343: S’informer sur le régime du neutre installé | N343: Le régime du neutre est identifié. | AE343: 5
A345: 3 | C345: Vérifier les mises à la terre. | N345: Les mises à la terre sont vérifiées. | AE345: 5
A347: 4 | C347: Déconsigner tout ou partie du bien. | N347: Les procédures de déconsignation sont respectées | AE347: 10
A349: 5 | C349: Vérifier la présence et les niveaux des énergies d’alimentation. | N349: La présence et les niveaux des énergies sont identifiés et conformes au cahier des charges. | AE349: 5
A351: 6 | C351: S’approprier les différentes procédures de mise en service et de sécurité. | N351: Les descriptifs des différents modes de marche et d’arrêt, le document unique d’évaluation des risques et le plan de prévention sont lus et interprétés sans erreur. | AE351: 5
A353: 7 | C353: Vérifier l’efficacité de la chaîne de sécurité | N353: Les arrêts d’urgence et les éléments de sécurité sont vérifiés et efficaces. | AE353: 12
A355: 8 | C355: Participer à la mise en œuvre des procédures de préparation. | N355: Le bien est approvisionné dans ses différentes matières d’œuvre, les effecteurs sont prêts à opérer. | AE355: 5
A357: 9 | C357: Mettre le bien en position initiale. Démarrer ou participer au démarrage du bien. | N357: Le bien est mis en position initiale en toute sécurité. | AE357: 5
N359: Le bien fonctionne. | AE359: 15
N361: Les performances du bien et la matière d’œuvre sortante ou le service sont vérifiés et conformes au cahier des charges. | AE361: 5
A363: 10 | C363: Vérifier le bon fonctionnement des différents modes de marche et d’arrêt. | N363: Les différents modes de marche et d’arrêt sont vérifiés | AE363: 13
A365: 11 | C365: Transmettre éventuellement les nouvelles consignes à l’utilisateur et lui remettre le bien | N365: Les nouvelles consignes sont transmises sans équivoque et le bien est remis à l’utilisateur. | AE365: 5
A367: CP 1.7 - Identifier les risques, définir et mettre en œuvre les mesures de prévention adaptées | AE367: 20 | AF367: =SUM(AE369:AE384) -> 100
A369: 1 | C369: Identifier les phénomènes dangereux et les situations dangereuses | N369: Les phénomènes dangereux et les situations dangereuses liés au bien, à son environnement et à l’activité sont identifiés. | AE369: 15
A371: 2 | C371: Déterminer les mesures de prévention en regard des situations dangereuses identifiées dans l’acte de maintenance | N371: Les mesures de prévention définies sont adaptées aux situations dangereuses identifiées | AE371: 15
A373: 3 | C373: Mettre en œuvre les E.P.I. | N373: La mise en œuvre des E.P.I. est correcte. | AE373: 15
A375: 4 | C375: Mettre en œuvre les E.P.C. | N375: La mise en œuvre des E.P.C. est correcte. | AE375: 15
A377: 5 | C377: Utiliser des équipements individuels de sécurité (EIS) | N377: La mise en œuvre des E.I.S. est correcte. | AE377: 10
A379: 6 | C379: Consigner (energie,accés…) Respecter les procédures | N379: Les procédures de mise en œuvre des équipements et des outillages sont conformes | AE379: 20
A381: 7 | C381: Proposer des modifications au plan de prévention. | N381: Les propositions permettent: - de se prémunir de situations ou de phénomènes dangereux résiduels identifiés. | AE381: 5
N383: Les propositions permettent: - d’améliorer les mesures de prévention préconisées. | AE383: 5

Sheet Situations
A1: Double-cliquer pour créer vos situations
A2: Situations d'évaluation U 11
A3: U11_A | B3: =IF(U11_A!$A$11="","",U11_A!$A$11) -> 
A5: U11_B | B5: =IF(U11_B!$A$11="","",U11_B!$A$11) -> 
A7: U11_C | B7: =IF(U11_C!$A$11="","",U11_C!$A$11) -> 
A9: U11_D | B9: =IF(U11_D!$A$11="","",U11_D!$A$11) -> 
A11: U11_E | B11: =IF(U11_E!$A$11="","",U11_E!$A$11) -> 
A13: U11_F | B13: =IF(U11_F!$A$11="","",U11_F!$A$11) -> 
A15: U11_G | B15: =IF(U11_G!$A$11="","",U11_G!$A$11) -> 
A17: U11_H | B17: =IF(U11_H!$A$11="","",U11_H!$A$11) -> 
A19: Situations d'évaluation U 2
A20: U2_A | B20: =IF(U2_A!$A$11="","",U2_A!$A$11) -> 
A22: U2_B | B22: =IF(U2_B!$A$11="","",U2_B!$A$11) -> 
A24: U2_C | B24: =IF(U2_C!$A$11="","",U2_C!$A$11) -> 
A26: U2_D | B26: =IF(U2_D!$A$11="","",U2_D!$A$11) -> 
A28: U2_E | B28: =IF(U2_E!$A$11="","",U2_E!$A$11) -> 
A30: U2_F | B30: =IF(U2_F!$A$11="","",U2_F!$A$11) -> 
A32: U2_G | B32: =IF(U2_G!$A$11="","",U2_G!$A$11) -> 
A34: U2_H | B34: =IF(U2_H!$A$11="","",U2_H!$A$11) -> 
A36: Situations d'évaluation U 32
A37: U32_A | B37: =IF(U32_A!$A$11="","",U32_A!$A$11) -> 
A39: U32_B | B39: =IF(U32_B!$A$11="","",U32_B!$A$11) -> 
A41: U32_C | B41: =IF(U32_C!$A$11="","",U32_C!$A$11) -> 
A43: U32_D | B43: =IF(U32_D!$A$11="","",U32_D!$A$11) -> 
A45: U32_E | B45: =IF(U32_E!$A$11="","",U32_E!$A$11) -> 
A47: U32_F | B47: =IF(U32_F!$A$11="","",U32_F!$A$11) -> 
A49: U32_G | B49: =IF(U32_G!$A$11="","",U32_G!$A$11) -> 
A51: U32_H | B51: =IF(U32_H!$A$11="","",U32_H!$A$11) -> 
A53: Sitations d'évaluation U 33
A54: U33_A | B54: =IF(U33_A!$A$11="","",U33_A!$A$11) -> 
A56: U33_B | B56: =IF(U33_B!$A$11="","",U33_B!$A$11) -> 
A58: U33_C | B58: =IF(U33_C!$A$11="","",U33_C!$A$11) -> 
A60: U33_D | B60: =IF(U33_D!$A$11="","",U33_D!$A$11) -> 
A62: U33_E | B62: =IF(U33_E!$A$11="","",U33_E!$A$11) -> 
A64: U33_F | B64: =IF(U33_F!$A$11="","",U33_F!$A$11) -> 
A66: U33_G | B66: =IF(U33_G!$A$11="","",U33_G!$A$11) -> 
A68: U33_H | B68: =IF(U33_H!$A$11="","",U33_H!$A$11) -> 

Sheet Bilan
A2: Session | Q2: 3 | R2: 4 | S2: 2 | T2: 3 | U2: 3
A3: Lycée | C3: Accès fiches (Double cliquer sans modifier les écritures) | L3: /20 | Q3: coef 3 | R3: coef 4 | S3: coef 2 | T3: coef 3 | U3: coef 3
A4: N° | B4: Noms & Prénoms | C4: U11 | E4: U2 | G4: U31 | H4: U32 | J4: U33 | L4: U11 | M4: U2 | N4: U31 | O4: U32 | P4: U33 | Q4: U11 | R4: U2 | S4: U31 | T4: U32 | U4: U33
A5: 1 | C5: U11_01 | E5: U2_01 | G5: U31_01 | H5: U32_01 | J5: U33_01 | Q5: =IF(L5="","",L5*$Q$2) ->  | R5: =IF(M5="","",M5*$R$2) ->  | S5: =IF(N5="","",N5*$S$2) ->  | T5: =IF(O5="","",O5*$T$2) ->  | U5: =IF(P5="","",P5*$U$2) -> 
A6: 2 | C6: U11_02 | E6: U2_02 | G6: U31_02 | H6: U32_02 | J6: U33_02 | Q6: =IF(L6="","",L6*$Q$2) ->  | R6: =IF(M6="","",M6*$R$2) ->  | S6: =IF(N6="","",N6*$S$2) ->  | T6: =IF(O6="","",O6*$T$2) ->  | U6: =IF(P6="","",P6*$U$2) -> 
A7: 3 | C7: U11_03 | E7: U2_03 | G7: U31_03 | H7: U32_03 | J7: U33_03
A8: 4 | C8: U11_04 | E8: U2_04 | G8: U31_04 | H8: U32_04 | J8: U33_04
A9: 5 | C9: U11_05 | E9: U2_05 | G9: U31_05 | H9: U32_05 | J9: U33_05
A10: 6 | C10: U11_06 | E10: U2_06 | G10: U31_06 | H10: U32_06 | J10: U33_06
A11: 7 | C11: U11_07 | E11: U2_07 | G11: U31_07 | H11: U32_07 | J11: U33_07
A12: 8 | C12: U11_08 | E12: U2_08 | G12: U31_08 | H12: U32_08 | J12: U33_08
A13: 9 | C13: U11_09 | E13: U2_09 | G13: U31_09 | H13: U32_09 | J13: U33_09
A14: 10 | C14: U11_10 | E14: U2_10 | G14: U31_10 | H14: U32_10 | J14: U33_10
A15: 11 | C15: U11_11 | E15: U2_11 | G15: U31_11 | H15: U32_11 | J15: U33_11
A16: 12 | C16: U11_12 | E16: U2_12 | G16: U31_12 | H16: U32_12 | J16: U33_12
A17: 13 | C17: U11_13 | E17: U2_13 | G17: U31_13 | H17: U32_13 | J17: U33_13
A18: 14 | C18: U11_14 | E18: U2_14 | G18: U31_14 | H18: U32_14 | J18: U33_14
A19: 15 | C19: U11_15 | E19: U2_15 | G19: U31_15 | H19: U32_15 | J19: U33_15
A20: 16 | C20: U11_16 | E20: U2_16 | G20: U31_16 | H20: U32_16 | J20: U33_16
A21: 17 | C21: U11_17 | E21: U2_17 | G21: U31_17 | H21: U32_17 | J21: U33_17
A22: 18 | C22: U11_18 | E22: U2_18 | G22: U31_18 | H22: U32_18 | J22: U33_18
A23: 19 | C23: U11_19 | E23: U2_19 | G23: U31_19 | H23: U32_19 | J23: U33_19
A24: 20 | C24: U11_20 | E24: U2_20 | G24: U31_20 | H24: U32_20 | J24: U33_20
A25: 21 | C25: U11_21 | E25: U2_21 | G25: U31_21 | H25: U32_21 | J25: U33_21
A26: 22 | C26: U11_22 | E26: U2_22 | G26: U31_22 | H26: U32_22 | J26: U33_22
A27: 23 | C27: U11_23 | E27: U2_23 | G27: U31_23 | H27: U32_23 | J27: U33_23
A28: 24 | C28: U11_24 | E28: U2_24 | G28: U31_24 | H28: U32_24 | J28: U33_24
A29: 25 | C29: U11_25 | E29: U2_25 | G29: U31_25 | H29: U32_25 | J29: U33_25
A30: 26 | C30: U11_26 | E30: U2_26 | G30: U31_26 | H30: U32_26 | J30: U33_26
A31: 27 | C31: U11_27 | E31: U2_27 | G31: U31_27 | H31: U32_27 | J31: U33_27
A32: 28 | C32: U11_28 | E32: U2_28 | G32: U31_28 | H32: U32_28 | J32: U33_28
A33: 29 | C33: U11_29 | E33: U2_29 | G33: U31_29 | H33: U32_29 | J33: U33_29
A34: 30 | C34: U11_30 | E34: U2_30 | G34: U31_30 | H34: U32_30 | J34: U33_30
C35: Moyenne | L35: =IF(SUM(L5:L34)=0,"",AVERAGE(L5:L34)) ->  | M35: =IF(SUM(M5:M34)=0,"",AVERAGE(M5:M34)) ->  | N35: =IF(SUM(N5:N34)=0,"",AVERAGE(N5:N34)) ->  | O35: =IF(SUM(O5:O34)=0,"",AVERAGE(O5:O34)) ->  | P35: =IF(SUM(P5:P34)=0,"",AVERAGE(P5:P34)) -> 

Sheet U11 (hidden)
A1: Baccalauréat professionnel « maintenance des équipements industriels »
A2: Épreuve E11 (Unité U11) : ANALYSE ET EXPLOITATION DE DONNEES TECHNIQUES
A3: Établissement : (tampon) | X3: Session : | AE3: =IF(Bilan!B2="","",Bilan!B2) -> 
A4: =IF(Bilan!B3="","",Bilan!B3) ->  | X4: Nom du candidat: | AE4: =IF(INDEX((Bilan!B5:B34),(MATCH(RIGHT(CELL("nomfichier",A1),LEN(CELL("nomfichier",A1))-FIND("]",CELL("nomfichier",A1))),Bilan!C5:C34,0)))="","",INDEX((Bilan!B5:B34),(MATCH(RIGHT(CELL("nomfichier",A1),LEN(CELL("nomfichier",A1))-FIND("]",CELL("nomfichier",A1))),Bilan!C5:C34,0)))) -> 
X5: Prénom :
X6: Date de l'évaluation: | AV6: Choisisser votre situation
A7: Lieu d’évaluation :
A8: Etablissement
A9: Entreprise :
A10: Description sommaire du travail demandé :
A11: =IF($AV$7="","",IF($AV$7="A",IF(U11_A!A11="","",U11_A!A11),IF($AV$7="B",IF(U11_B!A11="","",U11_B!A11),IF($AV$7="C",IF(U11_C!A11="","",U11_C!A11),IF($AV$7="D",IF(U11_D!A11="","",U11_D!A11),IF($AV$7="E",IF(U11_E!A11="","",U11_E!A11),IF($AV$7="F",IF(U11_F!A11="","",U11_F!A11),IF($AV$7="G",IF(U11_G!A11="","",U11_G!A11),IF($AV$7="H",IF(U11_H!A11="","",U11_H!A11),""))))))))) ->  | B11: =IF($AV$7="","",IF($AV$7="A",IF(U11_A!B11="","",U11_A!B11),IF($AV$7="B",IF(U11_B!B11="","",U11_B!B11),IF($AV$7="C",IF(U11_C!B11="","",U11_C!B11),IF($AV$7="D",IF(U11_D!B11="","",U11_D!B11),IF($AV$7="E",IF(U11_E!B11="","",U11_E!B11),IF($AV$7="F",IF(U11_F!B11="","",U11_F!B11),IF($AV$7="G",IF(U11_G!B11="","",U11_G!B11),IF($AV$7="H",IF(U11_H!B11="","",U11_H!B11),""))))))))) ->  | C11: =IF($AV$7="","",IF($AV$7="A",IF(U11_A!C11="","",U11_A!C11),IF($AV$7="B",IF(U11_B!C11="","",U11_B!C11),IF($AV$7="C",IF(U11_C!C11="","",U11_C!C11),IF($AV$7="D",IF(U11_D!C11="","",U11_D!C11),IF($AV$7="E",IF(U11_E!C11="","",U11_E!C11),IF($AV$7="F",IF(U11_F!C11="","",U11_F!C11),IF($AV$7="G",IF(U11_G!C11="","",U11_G!C11),IF($AV$7="H",IF(U11_H!C11="","",U11_H!C11),""))))))))) ->  | D11: =IF($AV$7="","",IF($AV$7="A",IF(U11_A!D11="","",U11_A!D11),IF($AV$7="B",IF(U11_B!D11="","",U11_B!D11),IF($AV$7="C",IF(U11_C!D11="","",U11_C!D11),IF($AV$7="D",IF(U11_D!D11="","",U11_D!D11),IF($AV$7="E",IF(U11_E!D11="","",U11_E!D11),IF($AV$7="F",IF(U11_F!D11="","",U11_F!D11),IF($AV$7="G",IF(U11_G!D11="","",U11_G!D11),IF($AV$7="H",IF(U11_H!D11="","",U11_H!D11),""))))))))) ->  | E11: =IF($AV$7="","",IF($AV$7="A",IF(U11_A!E11="","",U11_A!E11),IF($AV$7="B",IF(U11_B!E11="","",U11_B!E11),IF($AV$7="C",IF(U11_C!E11="","",U11_C!E11),IF($AV$7="D",IF(U11_D!E11="","",U11_D!E11),IF($AV$7="E",IF(U11_E!E11="","",U11_E!E11),IF($AV$7="F",IF(U11_F!E11="","",U11_F!E11),IF($AV$7="G",IF(U11_G!E11="","",U11_G!E11),IF($AV$7="H",IF(U11_H!E11="","",U11_H!E11),""))))))))) ->  | F11: =IF($AV$7="","",IF($AV$7="A",IF(U11_A!F11="","",U11_A!F11),IF($AV$7="B",IF(U11_B!F11="","",U11_B!F11),IF($AV$7="C",IF(U11_C!F11="","",U11_C!F11),IF($AV$7="D",IF(U11_D!F11="","",U11_D!F11),IF($AV$7="E",IF(U11_E!F11="","",U11_E!F11),IF($AV$7="F",IF(U11_F!F11="","",U11_F!F11),IF($AV$7="G",IF(U11_G!F11="","",U11_G!F11),IF($AV$7="H",IF(U11_H!F11="","",U11_H!F11),""))))))))) ->  | G11: =IF($AV$7="","",IF($AV$7="A",IF(U11_A!G11="","",U11_A!G11),IF($AV$7="B",IF(U11_B!G11="","",U11_B!G11),IF($AV$7="C",IF(U11_C!G11="","",U11_C!G11),IF($AV$7="D",IF(U11_D!G11="","",U11_D!G11),IF($AV$7="E",IF(U11_E!G11="","",U11_E!G11),IF($AV$7="F",IF(U11_F!G11="","",U11_F!G11),IF($AV$7="G",IF(U11_G!G11="","",U11_G!G11),IF($AV$7="H",IF(U11_H!G11="","",U11_H!G11),""))))))))) ->  | H11: =IF($AV$7="","",IF($AV$7="A",IF(U11_A!H11="","",U11_A!H11),IF($AV$7="B",IF(U11_B!H11="","",U11_B!H11),IF($AV$7="C",IF(U11_C!H11="","",U11_C!H11),IF($AV$7="D",IF(U11_D!H11="","",U11_D!H11),IF($AV$7="E",IF(U11_E!H11="","",U11_E!H11),IF($AV$7="F",IF(U11_F!H11="","",U11_F!H11),IF($AV$7="G",IF(U11_G!H11="","",U11_G!H11),IF($AV$7="H",IF(U11_H!H11="","",U11_H!H11),""))))))))) ->  | I11: =IF($AV$7="","",IF($AV$7="A",IF(U11_A!I11="","",U11_A!I11),IF($AV$7="B",IF(U11_B!I11="","",U11_B!I11),IF($AV$7="C",IF(U11_C!I11="","",U11_C!I11),IF($AV$7="D",IF(U11_D!I11="","",U11_D!I11),IF($AV$7="E",IF(U11_E!I11="","",U11_E!I11),IF($AV$7="F",IF(U11_F!I11="","",U11_F!I11),IF($AV$7="G",IF(U11_G!I11="","",U11_G!I11),IF($AV$7="H",IF(U11_H!I11="","",U11_H!I11),""))))))))) ->  | J11: =IF($AV$7="","",IF($AV$7="A",IF(U11_A!J11="","",U11_A!J11),IF($AV$7="B",IF(U11_B!J11="","",U11_B!J11),IF($AV$7="C",IF(U11_C!J11="","",U11_C!J11),IF($AV$7="D",IF(U11_D!J11="","",U11_D!J11),IF($AV$7="E",IF(U11_E!J11="","",U11_E!J11),IF($AV$7="F",IF(U11_F!J11="","",U11_F!J11),IF($AV$7="G",IF(U11_G!J11="","",U11_G!J11),IF($AV$7="H",IF(U11_H!J11="","",U11_H!J11),""))))))))) ->  | K11: =IF($AV$7="","",IF($AV$7="A",IF(U11_A!K11="","",U11_A!K11),IF($AV$7="B",IF(U11_B!K11="","",U11_B!K11),IF($AV$7="C",IF(U11_C!K11="","",U11_C!K11),IF($AV$7="D",IF(U11_D!K11="","",U11_D!K11),IF($AV$7="E",IF(U11_E!K11="","",U11_E!K11),IF($AV$7="F",IF(U11_F!K11="","",U11_F!K11),IF($AV$7="G",IF(U11_G!K11="","",U11_G!K11),IF($AV$7="H",IF(U11_H!K11="","",U11_H!K11),""))))))))) ->  | L11: =IF($AV$7="","",IF($AV$7="A",IF(U11_A!L11="","",U11_A!L11),IF($AV$7="B",IF(U11_B!L11="","",U11_B!L11),IF($AV$7="C",IF(U11_C!L11="","",U11_C!L11),IF($AV$7="D",IF(U11_D!L11="","",U11_D!L11),IF($AV$7="E",IF(U11_E!L11="","",U11_E!L11),IF($AV$7="F",IF(U11_F!L11="","",U11_F!L11),IF($AV$7="G",IF(U11_G!L11="","",U11_G!L11),IF($AV$7="H",IF(U11_H!L11="","",U11_H!L11),""))))))))) ->  | M11: =IF($AV$7="","",IF($AV$7="A",IF(U11_A!M11="","",U11_A!M11),IF($AV$7="B",IF(U11_B!M11="","",U11_B!M11),IF($AV$7="C",IF(U11_C!M11="","",U11_C!M11),IF($AV$7="D",IF(U11_D!M11="","",U11_D!M11),IF($AV$7="E",IF(U11_E!M11="","",U11_E!M11),IF($AV$7="F",IF(U11_F!M11="","",U11_F!M11),IF($AV$7="G",IF(U11_G!M11="","",U11_G!M11),IF($AV$7="H",IF(U11_H!M11="","",U11_H!M11),""))))))))) ->  | N11: =IF($AV$7="","",IF($AV$7="A",IF(U11_A!N11="","",U11_A!N11),IF($AV$7="B",IF(U11_B!N11="","",U11_B!N11),IF($AV$7="C",IF(U11_C!N11="","",U11_C!N11),IF($AV$7="D",IF(U11_D!N11="","",U11_D!N11),IF($AV$7="E",IF(U11_E!N11="","",U11_E!N11),IF($AV$7="F",IF(U11_F!N11="","",U11_F!N11),IF($AV$7="G",IF(U11_G!N11="","",U11_G!N11),IF($AV$7="H",IF(U11_H!N11="","",U11_H!N11),""))))))))) ->  | O11: =IF($AV$7="","",IF($AV$7="A",IF(U11_A!O11="","",U11_A!O11),IF($AV$7="B",IF(U11_B!O11="","",U11_B!O11),IF($AV$7="C",IF(U11_C!O11="","",U11_C!O11),IF($AV$7="D",IF(U11_D!O11="","",U11_D!O11),IF($AV$7="E",IF(U11_E!O11="","",U11_E!O11),IF($AV$7="F",IF(U11_F!O11="","",U11_F!O11),IF($AV$7="G",IF(U11_G!O11="","",U11_G!O11),IF($AV$7="H",IF(U11_H!O11="","",U11_H!O11),""))))))))) ->  | P11: =IF($AV$7="","",IF($AV$7="A",IF(U11_A!P11="","",U11_A!P11),IF($AV$7="B",IF(U11_B!P11="","",U11_B!P11),IF($AV$7="C",IF(U11_C!P11="","",U11_C!P11),IF($AV$7="D",IF(U11_D!P11="","",U11_D!P11),IF($AV$7="E",IF(U11_E!P11="","",U11_E!P11),IF($AV$7="F",IF(U11_F!P11="","",U11_F!P11),IF($AV$7="G",IF(U11_G!P11="","",U11_G!P11),IF($AV$7="H",IF(U11_H!P11="","",U11_H!P11),""))))))))) ->  | Q11: =IF($AV$7="","",IF($AV$7="A",IF(U11_A!Q11="","",U11_A!Q11),IF($AV$7="B",IF(U11_B!Q11="","",U11_B!Q11),IF($AV$7="C",IF(U11_C!Q11="","",U11_C!Q11),IF($AV$7="D",IF(U11_D!Q11="","",U11_D!Q11),IF($AV$7="E",IF(U11_E!Q11="","",U11_E!Q11),IF($AV$7="F",IF(U11_F!Q11="","",U11_F!Q11),IF($AV$7="G",IF(U11_G!Q11="","",U11_G!Q11),IF($AV$7="H",IF(U11_H!Q11="","",U11_H!Q11),""))))))))) ->  | R11: =IF($AV$7="","",IF($AV$7="A",IF(U11_A!R11="","",U11_A!R11),IF($AV$7="B",IF(U11_B!R11="","",U11_B!R11),IF($AV$7="C",IF(U11_C!R11="","",U11_C!R11),IF($AV$7="D",IF(U11_D!R11="","",U11_D!R11),IF($AV$7="E",IF(U11_E!R11="","",U11_E!R11),IF($AV$7="F",IF(U11_F!R11="","",U11_F!R11),IF($AV$7="G",IF(U11_G!R11="","",U11_G!R11),IF($AV$7="H",IF(U11_H!R11="","",U11_H!R11),""))))))))) ->  | S11: =IF($AV$7="","",IF($AV$7="A",IF(U11_A!S11="","",U11_A!S11),IF($AV$7="B",IF(U11_B!S11="","",U11_B!S11),IF($AV$7="C",IF(U11_C!S11="","",U11_C!S11),IF($AV$7="D",IF(U11_D!S11="","",U11_D!S11),IF($AV$7="E",IF(U11_E!S11="","",U11_E!S11),IF($AV$7="F",IF(U11_F!S11="","",U11_F!S11),IF($AV$7="G",IF(U11_G!S11="","",U11_G!S11),IF($AV$7="H",IF(U11_H!S11="","",U11_H!S11),""))))))))) ->  | T11: =IF($AV$7="","",IF($AV$7="A",IF(U11_A!T11="","",U11_A!T11),IF($AV$7="B",IF(U11_B!T11="","",U11_B!T11),IF($AV$7="C",IF(U11_C!T11="","",U11_C!T11),IF($AV$7="D",IF(U11_D!T11="","",U11_D!T11),IF($AV$7="E",IF(U11_E!T11="","",U11_E!T11),IF($AV$7="F",IF(U11_F!T11="","",U11_F!T11),IF($AV$7="G",IF(U11_G!T11="","",U11_G!T11),IF($AV$7="H",IF(U11_H!T11="","",U11_H!T11),""))))))))) ->  | U11: =IF($AV$7="","",IF($AV$7="A",IF(U11_A!U11="","",U11_A!U11),IF($AV$7="B",IF(U11_B!U11="","",U11_B!U11),IF($AV$7="C",IF(U11_C!U11="","",U11_C!U11),IF($AV$7="D",IF(U11_D!U11="","",U11_D!U11),IF($AV$7="E",IF(U11_E!U11="","",U11_E!U11),IF($AV$7="F",IF(U11_F!U11="","",U11_F!U11),IF($AV$7="G",IF(U11_G!U11="","",U11_G!U11),IF($AV$7="H",IF(U11_H!U11="","",U11_H!U11),""))))))))) ->  | V11: =IF($AV$7="","",IF($AV$7="A",IF(U11_A!V11="","",U11_A!V11),IF($AV$7="B",IF(U11_B!V11="","",U11_B!V11),IF($AV$7="C",IF(U11_C!V11="","",U11_C!V11),IF($AV$7="D",IF(U11_D!V11="","",U11_D!V11),IF($AV$7="E",IF(U11_E!V11="","",U11_E!V11),IF($AV$7="F",IF(U11_F!V11="","",U11_F!V11),IF($AV$7="G",IF(U11_G!V11="","",U11_G!V11),IF($AV$7="H",IF(U11_H!V11="","",U11_H!V11),""))))))))) ->  | W11: =IF($AV$7="","",IF($AV$7="A",IF(U11_A!W11="","",U11_A!W11),IF($AV$7="B",IF(U11_B!W11="","",U11_B!W11),IF($AV$7="C",IF(U11_C!W11="","",U11_C!W11),IF($AV$7="D",IF(U11_D!W11="","",U11_D!W11),IF($AV$7="E",IF(U11_E!W11="","",U11_E!W11),IF($AV$7="F",IF(U11_F!W11="","",U11_F!W11),IF($AV$7="G",IF(U11_G!W11="","",U11_G!W11),IF($AV$7="H",IF(U11_H!W11="","",U11_H!W11),""))))))))) ->  | X11: =IF($AV$7="","",IF($AV$7="A",IF(U11_A!X11="","",U11_A!X11),IF($AV$7="B",IF(U11_B!X11="","",U11_B!X11),IF($AV$7="C",IF(U11_C!X11="","",U11_C!X11),IF($AV$7="D",IF(U11_D!X11="","",U11_D!X11),IF($AV$7="E",IF(U11_E!X11="","",U11_E!X11),IF($AV$7="F",IF(U11_F!X11="","",U11_F!X11),IF($AV$7="G",IF(U11_G!X11="","",U11_G!X11),IF($AV$7="H",IF(U11_H!X11="","",U11_H!X11),""))))))))) ->  | Y11: =IF($AV$7="","",IF($AV$7="A",IF(U11_A!Y11="","",U11_A!Y11),IF($AV$7="B",IF(U11_B!Y11="","",U11_B!Y11),IF($AV$7="C",IF(U11_C!Y11="","",U11_C!Y11),IF($AV$7="D",IF(U11_D!Y11="","",U11_D!Y11),IF($AV$7="E",IF(U11_E!Y11="","",U11_E!Y11),IF($AV$7="F",IF(U11_F!Y11="","",U11_F!Y11),IF($AV$7="G",IF(U11_G!Y11="","",U11_G!Y11),IF($AV$7="H",IF(U11_H!Y11="","",U11_H!Y11),""))))))))) ->  | Z11: =IF($AV$7="","",IF($AV$7="A",IF(U11_A!Z11="","",U11_A!Z11),IF($AV$7="B",IF(U11_B!Z11="","",U11_B!Z11),IF($AV$7="C",IF(U11_C!Z11="","",U11_C!Z11),IF($AV$7="D",IF(U11_D!Z11="","",U11_D!Z11),IF($AV$7="E",IF(U11_E!Z11="","",U11_E!Z11),IF($AV$7="F",IF(U11_F!Z11="","",U11_F!Z11),IF($AV$7="G",IF(U11_G!Z11="","",U11_G!Z11),IF($AV$7="H",IF(U11_H!Z11="","",U11_H!Z11),""))))))))) ->  | AA11: =IF($AV$7="","",IF($AV$7="A",IF(U11_A!AA11="","",U11_A!AA11),IF($AV$7="B",IF(U11_B!AA11="","",U11_B!AA11),IF($AV$7="C",IF(U11_C!AA11="","",U11_C!AA11),IF($AV$7="D",IF(U11_D!AA11="","",U11_D!AA11),IF($AV$7="E",IF(U11_E!AA11="","",U11_E!AA11),IF($AV$7="F",IF(U11_F!AA11="","",U11_F!AA11),IF($AV$7="G",IF(U11_G!AA11="","",U11_G!AA11),IF($AV$7="H",IF(U11_H!AA11="","",U11_H!AA11),""))))))))) ->  | AB11: =IF($AV$7="","",IF($AV$7="A",IF(U11_A!AB11="","",U11_A!AB11),IF($AV$7="B",IF(U11_B!AB11="","",U11_B!AB11),IF($AV$7="C",IF(U11_C!AB11="","",U11_C!AB11),IF($AV$7="D",IF(U11_D!AB11="","",U11_D!AB11),IF($AV$7="E",IF(U11_E!AB11="","",U11_E!AB11),IF($AV$7="F",IF(U11_F!AB11="","",U11_F!AB11),IF($AV$7="G",IF(U11_G!AB11="","",U11_G!AB11),IF($AV$7="H",IF(U11_H!AB11="","",U11_H!AB11),""))))))))) ->  | AC11: =IF($AV$7="","",IF($AV$7="A",IF(U11_A!AC11="","",U11_A!AC11),IF($AV$7="B",IF(U11_B!AC11="","",U11_B!AC11),IF($AV$7="C",IF(U11_C!AC11="","",U11_C!AC11),IF($AV$7="D",IF(U11_D!AC11="","",U11_D!AC11),IF($AV$7="E",IF(U11_E!AC11="","",U11_E!AC11),IF($AV$7="F",IF(U11_F!AC11="","",U11_F!AC11),IF($AV$7="G",IF(U11_G!AC11="","",U11_G!AC11),IF($AV$7="H",IF(U11_H!AC11="","",U11_H!AC11),""))))))))) ->  | AD11: =IF($AV$7="","",IF($AV$7="A",IF(U11_A!AD11="","",U11_A!AD11),IF($AV$7="B",IF(U11_B!AD11="","",U11_B!AD11),IF($AV$7="C",IF(U11_C!AD11="","",U11_C!AD11),IF($AV$7="D",IF(U11_D!AD11="","",U11_D!AD11),IF($AV$7="E",IF(U11_E!AD11="","",U11_E!AD11),IF($AV$7="F",IF(U11_F!AD11="","",U11_F!AD11),IF($AV$7="G",IF(U11_G!AD11="","",U11_G!AD11),IF($AV$7="H",IF(U11_H!AD11="","",U11_H!AD11),""))))))))) ->  | AE11: =IF($AV$7="","",IF($AV$7="A",IF(U11_A!AE11="","",U11_A!AE11),IF($AV$7="B",IF(U11_B!AE11="","",U11_B!AE11),IF($AV$7="C",IF(U11_C!AE11="","",U11_C!AE11),IF($AV$7="D",IF(U11_D!AE11="","",U11_D!AE11),IF($AV$7="E",IF(U11_E!AE11="","",U11_E!AE11),IF($AV$7="F",IF(U11_F!AE11="","",U11_F!AE11),IF($AV$7="G",IF(U11_G!AE11="","",U11_G!AE11),IF($AV$7="H",IF(U11_H!AE11="","",U11_H!AE11),""))))))))) ->  | AF11: =IF($AV$7="","",IF($AV$7="A",IF(U11_A!AF11="","",U11_A!AF11),IF($AV$7="B",IF(U11_B!AF11="","",U11_B!AF11),IF($AV$7="C",IF(U11_C!AF11="","",U11_C!AF11),IF($AV$7="D",IF(U11_D!AF11="","",U11_D!AF11),IF($AV$7="E",IF(U11_E!AF11="","",U11_E!AF11),IF($AV$7="F",IF(U11_F!AF11="","",U11_F!AF11),IF($AV$7="G",IF(U11_G!AF11="","",U11_G!AF11),IF($AV$7="H",IF(U11_H!AF11="","",U11_H!AF11),""))))))))) ->  | AG11: =IF($AV$7="","",IF($AV$7="A",IF(U11_A!AG11="","",U11_A!AG11),IF($AV$7="B",IF(U11_B!AG11="","",U11_B!AG11),IF($AV$7="C",IF(U11_C!AG11="","",U11_C!AG11),IF($AV$7="D",IF(U11_D!AG11="","",U11_D!AG11),IF($AV$7="E",IF(U11_E!AG11="","",U11_E!AG11),IF($AV$7="F",IF(U11_F!AG11="","",U11_F!AG11),IF($AV$7="G",IF(U11_G!AG11="","",U11_G!AG11),IF($AV$7="H",IF(U11_H!AG11="","",U11_H!AG11),""))))))))) ->  | AH11: =IF($AV$7="","",IF($AV$7="A",IF(U11_A!AH11="","",U11_A!AH11),IF($AV$7="B",IF(U11_B!AH11="","",U11_B!AH11),IF($AV$7="C",IF(U11_C!AH11="","",U11_C!AH11),IF($AV$7="D",IF(U11_D!AH11="","",U11_D!AH11),IF($AV$7="E",IF(U11_E!AH11="","",U11_E!AH11),IF($AV$7="F",IF(U11_F!AH11="","",U11_F!AH11),IF($AV$7="G",IF(U11_G!AH11="","",U11_G!AH11),IF($AV$7="H",IF(U11_H!AH11="","",U11_H!AH11),""))))))))) ->  | AI11: =IF($AV$7="","",IF($AV$7="A",IF(U11_A!AI11="","",U11_A!AI11),IF($AV$7="B",IF(U11_B!AI11="","",U11_B!AI11),IF($AV$7="C",IF(U11_C!AI11="","",U11_C!AI11),IF($AV$7="D",IF(U11_D!AI11="","",U11_D!AI11),IF($AV$7="E",IF(U11_E!AI11="","",U11_E!AI11),IF($AV$7="F",IF(U11_F!AI11="","",U11_F!AI11),IF($AV$7="G",IF(U11_G!AI11="","",U11_G!AI11),IF($AV$7="H",IF(U11_H!AI11="","",U11_H!AI11),""))))))))) ->  | AJ11: =IF($AV$7="","",IF($AV$7="A",IF(U11_A!AJ11="","",U11_A!AJ11),IF($AV$7="B",IF(U11_B!AJ11="","",U11_B!AJ11),IF($AV$7="C",IF(U11_C!AJ11="","",U11_C!AJ11),IF($AV$7="D",IF(U11_D!AJ11="","",U11_D!AJ11),IF($AV$7="E",IF(U11_E!AJ11="","",U11_E!AJ11),IF($AV$7="F",IF(U11_F!AJ11="","",U11_F!AJ11),IF($AV$7="G",IF(U11_G!AJ11="","",U11_G!AJ11),IF($AV$7="H",IF(U11_H!AJ11="","",U11_H!AJ11),""))))))))) ->  | AK11: =IF($AV$7="","",IF($AV$7="A",IF(U11_A!AK11="","",U11_A!AK11),IF($AV$7="B",IF(U11_B!AK11="","",U11_B!AK11),IF($AV$7="C",IF(U11_C!AK11="","",U11_C!AK11),IF($AV$7="D",IF(U11_D!AK11="","",U11_D!AK11),IF($AV$7="E",IF(U11_E!AK11="","",U11_E!AK11),IF($AV$7="F",IF(U11_F!AK11="","",U11_F!AK11),IF($AV$7="G",IF(U11_G!AK11="","",U11_G!AK11),IF($AV$7="H",IF(U11_H!AK11="","",U11_H!AK11),""))))))))) ->  | AL11: =IF($AV$7="","",IF($AV$7="A",IF(U11_A!AL11="","",U11_A!AL11),IF($AV$7="B",IF(U11_B!AL11="","",U11_B!AL11),IF($AV$7="C",IF(U11_C!AL11="","",U11_C!AL11),IF($AV$7="D",IF(U11_D!AL11="","",U11_D!AL11),IF($AV$7="E",IF(U11_E!AL11="","",U11_E!AL11),IF($AV$7="F",IF(U11_F!AL11="","",U11_F!AL11),IF($AV$7="G",IF(U11_G!AL11="","",U11_G!AL11),IF($AV$7="H",IF(U11_H!AL11="","",U11_H!AL11),""))))))))) ->  | AM11: =IF($AV$7="","",IF($AV$7="A",IF(U11_A!AM11="","",U11_A!AM11),IF($AV$7="B",IF(U11_B!AM11="","",U11_B!AM11),IF($AV$7="C",IF(U11_C!AM11="","",U11_C!AM11),IF($AV$7="D",IF(U11_D!AM11="","",U11_D!AM11),IF($AV$7="E",IF(U11_E!AM11="","",U11_E!AM11),IF($AV$7="F",IF(U11_F!AM11="","",U11_F!AM11),IF($AV$7="G",IF(U11_G!AM11="","",U11_G!AM11),IF($AV$7="H",IF(U11_H!AM11="","",U11_H!AM11),""))))))))) ->  | AN11: =IF($AV$7="","",IF($AV$7="A",IF(U11_A!AN11="","",U11_A!AN11),IF($AV$7="B",IF(U11_B!AN11="","",U11_B!AN11),IF($AV$7="C",IF(U11_C!AN11="","",U11_C!AN11),IF($AV$7="D",IF(U11_D!AN11="","",U11_D!AN11),IF($AV$7="E",IF(U11_E!AN11="","",U11_E!AN11),IF($AV$7="F",IF(U11_F!AN11="","",U11_F!AN11),IF($AV$7="G",IF(U11_G!AN11="","",U11_G!AN11),IF($AV$7="H",IF(U11_H!AN11="","",U11_H!AN11),""))))))))) ->  | AO11: =IF($AV$7="","",IF($AV$7="A",IF(U11_A!AO11="","",U11_A!AO11),IF($AV$7="B",IF(U11_B!AO11="","",U11_B!AO11),IF($AV$7="C",IF(U11_C!AO11="","",U11_C!AO11),IF($AV$7="D",IF(U11_D!AO11="","",U11_D!AO11),IF($AV$7="E",IF(U11_E!AO11="","",U11_E!AO11),IF($AV$7="F",IF(U11_F!AO11="","",U11_F!AO11),IF($AV$7="G",IF(U11_G!AO11="","",U11_G!AO11),IF($AV$7="H",IF(U11_H!AO11="","",U11_H!AO11),""))))))))) ->  | AP11: =IF($AV$7="","",IF($AV$7="A",IF(U11_A!AP11="","",U11_A!AP11),IF($AV$7="B",IF(U11_B!AP11="","",U11_B!AP11),IF($AV$7="C",IF(U11_C!AP11="","",U11_C!AP11),IF($AV$7="D",IF(U11_D!AP11="","",U11_D!AP11),IF($AV$7="E",IF(U11_E!AP11="","",U11_E!AP11),IF($AV$7="F",IF(U11_F!AP11="","",U11_F!AP11),IF($AV$7="G",IF(U11_G!AP11="","",U11_G!AP11),IF($AV$7="H",IF(U11_H!AP11="","",U11_H!AP11),""))))))))) ->  | AQ11: =IF($AV$7="","",IF($AV$7="A",IF(U11_A!AQ11="","",U11_A!AQ11),IF($AV$7="B",IF(U11_B!AQ11="","",U11_B!AQ11),IF($AV$7="C",IF(U11_C!AQ11="","",U11_C!AQ11),IF($AV$7="D",IF(U11_D!AQ11="","",U11_D!AQ11),IF($AV$7="E",IF(U11_E!AQ11="","",U11_E!AQ11),IF($AV$7="F",IF(U11_F!AQ11="","",U11_F!AQ11),IF($AV$7="G",IF(U11_G!AQ11="","",U11_G!AQ11),IF($AV$7="H",IF(U11_H!AQ11="","",U11_H!AQ11),""))))))))) ->  | AR11: =IF($AV$7="","",IF($AV$7="A",IF(U11_A!AR11="","",U11_A!AR11),IF($AV$7="B",IF(U11_B!AR11="","",U11_B!AR11),IF($AV$7="C",IF(U11_C!AR11="","",U11_C!AR11),IF($AV$7="D",IF(U11_D!AR11="","",U11_D!AR11),IF($AV$7="E",IF(U11_E!AR11="","",U11_E!AR11),IF($AV$7="F",IF(U11_F!AR11="","",U11_F!AR11),IF($AV$7="G",IF(U11_G!AR11="","",U11_G!AR11),IF($AV$7="H",IF(U11_H!AR11="","",U11_H!AR11),""))))))))) ->  | AS11: =IF($AV$7="","",IF($AV$7="A",IF(U11_A!AS11="","",U11_A!AS11),IF($AV$7="B",IF(U11_B!AS11="","",U11_B!AS11),IF($AV$7="C",IF(U11_C!AS11="","",U11_C!AS11),IF($AV$7="D",IF(U11_D!AS11="","",U11_D!AS11),IF($AV$7="E",IF(U11_E!AS11="","",U11_E!AS11),IF($AV$7="F",IF(U11_F!AS11="","",U11_F!AS11),IF($AV$7="G",IF(U11_G!AS11="","",U11_G!AS11),IF($AV$7="H",IF(U11_H!AS11="","",U11_H!AS11),""))))))))) ->  | AT11: =IF($AV$7="","",IF($AV$7="A",IF(U11_A!AT11="","",U11_A!AT11),IF($AV$7="B",IF(U11_B!AT11="","",U11_B!AT11),IF($AV$7="C",IF(U11_C!AT11="","",U11_C!AT11),IF($AV$7="D",IF(U11_D!AT11="","",U11_D!AT11),IF($AV$7="E",IF(U11_E!AT11="","",U11_E!AT11),IF($AV$7="F",IF(U11_F!AT11="","",U11_F!AT11),IF($AV$7="G",IF(U11_G!AT11="","",U11_G!AT11),IF($AV$7="H",IF(U11_H!AT11="","",U11_H!AT11),""))))))))) -> 
A13: Données fournies au candidat
A14: =IF($AV$7="","",IF($AV$7="A",IF(U11_A!A14="","",U11_A!A14),IF($AV$7="B",IF(U11_B!A14="","",U11_B!A14),IF($AV$7="C",IF(U11_C!A14="","",U11_C!A14),IF($AV$7="D",IF(U11_D!A14="","",U11_D!A14),IF($AV$7="E",IF(U11_E!A14="","",U11_E!A14),IF($AV$7="F",IF(U11_F!A14="","",U11_F!A14),IF($AV$7="G",IF(U11_G!A14="","",U11_G!A14),IF($AV$7="H",IF(U11_H!A14="","",U11_H!A14),""))))))))) ->  | B14: Le dossier technique du bien sur supports papiers ou supports numériques | X14: =IF($AV$7="","",IF($AV$7="A",IF(U11_A!X14="","",U11_A!X14),IF($AV$7="B",IF(U11_B!X14="","",U11_B!X14),IF($AV$7="C",IF(U11_C!X14="","",U11_C!X14),IF($AV$7="D",IF(U11_D!X14="","",U11_D!X14),IF($AV$7="E",IF(U11_E!X14="","",U11_E!X14),IF($AV$7="F",IF(U11_F!X14="","",U11_F!X14),IF($AV$7="G",IF(U11_G!X14="","",U11_G!X14),IF($AV$7="H",IF(U11_H!X14="","",U11_H!X14),""))))))))) ->  | Y14: Le cahier des charges fonctionnel
A15: =IF($AV$7="","",IF($AV$7="A",IF(U11_A!A15="","",U11_A!A15),IF($AV$7="B",IF(U11_B!A15="","",U11_B!A15),IF($AV$7="C",IF(U11_C!A15="","",U11_C!A15),IF($AV$7="D",IF(U11_D!A15="","",U11_D!A15),IF($AV$7="E",IF(U11_E!A15="","",U11_E!A15),IF($AV$7="F",IF(U11_F!A15="","",U11_F!A15),IF($AV$7="G",IF(U11_G!A15="","",U11_G!A15),IF($AV$7="H",IF(U11_H!A15="","",U11_H!A15),""))))))))) ->  | B15: Le bien et les conditions de son environnement | X15: =IF($AV$7="","",IF($AV$7="A",IF(U11_A!X15="","",U11_A!X15),IF($AV$7="B",IF(U11_B!X15="","",U11_B!X15),IF($AV$7="C",IF(U11_C!X15="","",U11_C!X15),IF($AV$7="D",IF(U11_D!X15="","",U11_D!X15),IF($AV$7="E",IF(U11_E!X15="","",U11_E!X15),IF($AV$7="F",IF(U11_F!X15="","",U11_F!X15),IF($AV$7="G",IF(U11_G!X15="","",U11_G!X15),IF($AV$7="H",IF(U11_H!X15="","",U11_H!X15),""))))))))) ->  | Y15: Equipement informatique
A16: =IF($AV$7="","",IF($AV$7="A",IF(U11_A!A16="","",U11_A!A16),IF($AV$7="B",IF(U11_B!A16="","",U11_B!A16),IF($AV$7="C",IF(U11_C!A16="","",U11_C!A16),IF($AV$7="D",IF(U11_D!A16="","",U11_D!A16),IF($AV$7="E",IF(U11_E!A16="","",U11_E!A16),IF($AV$7="F",IF(U11_F!A16="","",U11_F!A16),IF($AV$7="G",IF(U11_G!A16="","",U11_G!A16),IF($AV$7="H",IF(U11_H!A16="","",U11_H!A16),""))))))))) ->  | B16: Les normes | X16: =IF($AV$7="","",IF($AV$7="A",IF(U11_A!X16="","",U11_A!X16),IF($AV$7="B",IF(U11_B!X16="","",U11_B!X16),IF($AV$7="C",IF(U11_C!X16="","",U11_C!X16),IF($AV$7="D",IF(U11_D!X16="","",U11_D!X16),IF($AV$7="E",IF(U11_E!X16="","",U11_E!X16),IF($AV$7="F",IF(U11_F!X16="","",U11_F!X16),IF($AV$7="G",IF(U11_G!X16="","",U11_G!X16),IF($AV$7="H",IF(U11_H!X16="","",U11_H!X16),""))))))))) ->  | Y16: Les logiciels
A17: =IF($AV$7="","",IF($AV$7="A",IF(U11_A!A17="","",U11_A!A17),IF($AV$7="B",IF(U11_B!A17="","",U11_B!A17),IF($AV$7="C",IF(U11_C!A17="","",U11_C!A17),IF($AV$7="D",IF(U11_D!A17="","",U11_D!A17),IF($AV$7="E",IF(U11_E!A17="","",U11_E!A17),IF($AV$7="F",IF(U11_F!A17="","",U11_F!A17),IF($AV$7="G",IF(U11_G!A17="","",U11_G!A17),IF($AV$7="H",IF(U11_H!A17="","",U11_H!A17),""))))))))) ->  | B17: Toutes documentations techniques | X17: =IF($AV$7="","",IF($AV$7="A",IF(U11_A!X17="","",U11_A!X17),IF($AV$7="B",IF(U11_B!X17="","",U11_B!X17),IF($AV$7="C",IF(U11_C!X17="","",U11_C!X17),IF($AV$7="D",IF(U11_D!X17="","",U11_D!X17),IF($AV$7="E",IF(U11_E!X17="","",U11_E!X17),IF($AV$7="F",IF(U11_F!X17="","",U11_F!X17),IF($AV$7="G",IF(U11_G!X17="","",U11_G!X17),IF($AV$7="H",IF(U11_H!X17="","",U11_H!X17),""))))))))) ->  | Y17: Le plan de prévention
A18: =IF($AV$7="","",IF($AV$7="A",IF(U11_A!A18="","",U11_A!A18),IF($AV$7="B",IF(U11_B!A18="","",U11_B!A18),IF($AV$7="C",IF(U11_C!A18="","",U11_C!A18),IF($AV$7="D",IF(U11_D!A18="","",U11_D!A18),IF($AV$7="E",IF(U11_E!A18="","",U11_E!A18),IF($AV$7="F",IF(U11_F!A18="","",U11_F!A18),IF($AV$7="G",IF(U11_G!A18="","",U11_G!A18),IF($AV$7="H",IF(U11_H!A18="","",U11_H!A18),""))))))))) ->  | B18: Document unique d’évaluation des risques | X18: =IF($AV$7="","",IF($AV$7="A",IF(U11_A!X18="","",U11_A!X18),IF($AV$7="B",IF(U11_B!X18="","",U11_B!X18),IF($AV$7="C",IF(U11_C!X18="","",U11_C!X18),IF($AV$7="D",IF(U11_D!X18="","",U11_D!X18),IF($AV$7="E",IF(U11_E!X18="","",U11_E!X18),IF($AV$7="F",IF(U11_F!X18="","",U11_F!X18),IF($AV$7="G",IF(U11_G!X18="","",U11_G!X18),IF($AV$7="H",IF(U11_H!X18="","",U11_H!X18),""))))))))) -> 
A19: =IF($AV$7="","",IF($AV$7="A",IF(U11_A!A19="","",U11_A!A19),IF($AV$7="B",IF(U11_B!A19="","",U11_B!A19),IF($AV$7="C",IF(U11_C!A19="","",U11_C!A19),IF($AV$7="D",IF(U11_D!A19="","",U11_D!A19),IF($AV$7="E",IF(U11_E!A19="","",U11_E!A19),IF($AV$7="F",IF(U11_F!A19="","",U11_F!A19),IF($AV$7="G",IF(U11_G!A19="","",U11_G!A19),IF($AV$7="H",IF(U11_H!A19="","",U11_H!A19),""))))))))) ->  | X19: =IF($AV$7="","",IF($AV$7="A",IF(U11_A!X19="","",U11_A!X19),IF($AV$7="B",IF(U11_B!X19="","",U11_B!X19),IF($AV$7="C",IF(U11_C!X19="","",U11_C!X19),IF($AV$7="D",IF(U11_D!X19="","",U11_D!X19),IF($AV$7="E",IF(U11_E!X19="","",U11_E!X19),IF($AV$7="F",IF(U11_F!X19="","",U11_F!X19),IF($AV$7="G",IF(U11_G!X19="","",U11_G!X19),IF($AV$7="H",IF(U11_H!X19="","",U11_H!X19),""))))))))) -> 
A20: =IF($AV$7="","",IF($AV$7="A",IF(U11_A!A20="","",U11_A!A20),IF($AV$7="B",IF(U11_B!A20="","",U11_B!A20),IF($AV$7="C",IF(U11_C!A20="","",U11_C!A20),IF($AV$7="D",IF(U11_D!A20="","",U11_D!A20),IF($AV$7="E",IF(U11_E!A20="","",U11_E!A20),IF($AV$7="F",IF(U11_F!A20="","",U11_F!A20),IF($AV$7="G",IF(U11_G!A20="","",U11_G!A20),IF($AV$7="H",IF(U11_H!A20="","",U11_H!A20),""))))))))) ->  | X20: =IF($AV$7="","",IF($AV$7="A",IF(U11_A!X20="","",U11_A!X20),IF($AV$7="B",IF(U11_B!X20="","",U11_B!X20),IF($AV$7="C",IF(U11_C!X20="","",U11_C!X20),IF($AV$7="D",IF(U11_D!X20="","",U11_D!X20),IF($AV$7="E",IF(U11_E!X20="","",U11_E!X20),IF($AV$7="F",IF(U11_F!X20="","",U11_F!X20),IF($AV$7="G",IF(U11_G!X20="","",U11_G!X20),IF($AV$7="H",IF(U11_H!X20="","",U11_H!X20),""))))))))) -> 
A21: =IF($AV$7="","",IF($AV$7="A",IF(U11_A!A21="","",U11_A!A21),IF($AV$7="B",IF(U11_B!A21="","",U11_B!A21),IF($AV$7="C",IF(U11_C!A21="","",U11_C!A21),IF($AV$7="D",IF(U11_D!A21="","",U11_D!A21),IF($AV$7="E",IF(U11_E!A21="","",U11_E!A21),IF($AV$7="F",IF(U11_F!A21="","",U11_F!A21),IF($AV$7="G",IF(U11_G!A21="","",U11_G!A21),IF($AV$7="H",IF(U11_H!A21="","",U11_H!A21),""))))))))) ->  | X21: =IF($AV$7="","",IF($AV$7="A",IF(U11_A!X21="","",U11_A!X21),IF($AV$7="B",IF(U11_B!X21="","",U11_B!X21),IF($AV$7="C",IF(U11_C!X21="","",U11_C!X21),IF($AV$7="D",IF(U11_D!X21="","",U11_D!X21),IF($AV$7="E",IF(U11_E!X21="","",U11_E!X21),IF($AV$7="F",IF(U11_F!X21="","",U11_F!X21),IF($AV$7="G",IF(U11_G!X21="","",U11_G!X21),IF($AV$7="H",IF(U11_H!X21="","",U11_H!X21),""))))))))) -> 
A22: ÇRepérer les données fournies | Y22: ÇRepérer les données fournies
A23: Travail demandé
A24: =IF($AV$7="","",IF($AV$7="A",IF(U11_A!A24="","",U11_A!A24),IF($AV$7="B",IF(U11_B!A24="","",U11_B!A24),IF($AV$7="C",IF(U11_C!A24="","",U11_C!A24),IF($AV$7="D",IF(U11_D!A24="","",U11_D!A24),IF($AV$7="E",IF(U11_E!A24="","",U11_E!A24),IF($AV$7="F",IF(U11_F!A24="","",U11_F!A24),IF($AV$7="G",IF(U11_G!A24="","",U11_G!A24),IF($AV$7="H",IF(U11_H!A24="","",U11_H!A24),""))))))))) ->  | B24: A1-T1 | D24: Réaliser la maintenance corrective - Diagnostiquer les pannes.
A25: =IF($AV$7="","",IF($AV$7="A",IF(U11_A!A25="","",U11_A!A25),IF($AV$7="B",IF(U11_B!A25="","",U11_B!A25),IF($AV$7="C",IF(U11_C!A25="","",U11_C!A25),IF($AV$7="D",IF(U11_D!A25="","",U11_D!A25),IF($AV$7="E",IF(U11_E!A25="","",U11_E!A25),IF($AV$7="F",IF(U11_F!A25="","",U11_F!A25),IF($AV$7="G",IF(U11_G!A25="","",U11_G!A25),IF($AV$7="H",IF(U11_H!A25="","",U11_H!A25),""))))))))) ->  | B25: A1-T2 | D25: Réaliser la maintenance corrective - Préparer sa réparation, son dépannage.
A26: =IF($AV$7="","",IF($AV$7="A",IF(U11_A!A26="","",U11_A!A26),IF($AV$7="B",IF(U11_B!A26="","",U11_B!A26),IF($AV$7="C",IF(U11_C!A26="","",U11_C!A26),IF($AV$7="D",IF(U11_D!A26="","",U11_D!A26),IF($AV$7="E",IF(U11_E!A26="","",U11_E!A26),IF($AV$7="F",IF(U11_F!A26="","",U11_F!A26),IF($AV$7="G",IF(U11_G!A26="","",U11_G!A26),IF($AV$7="H",IF(U11_H!A26="","",U11_H!A26),""))))))))) ->  | B26: A1-T3 | D26: Réaliser la maintenance corrective - Réaliser des réparations, des dépannages dans les domaines : mécanique, électrique, pneumatique, hydraulique.
A27: Consulter le référentiel des activités professionnelles pour obtenir le détail des tâches.
A28: Ç Repérer les tâches demandées (ce sont celles qui correspondent à l’unité dans le référentiel de certification, à l’exclusion de toute autre)
A29: Appréciation globale et proposition de note :
A31: Noms et signatures des évaluateurs : | AJ31: Note proposée : | AO31: =IF(AI93="","",AI93) ->  | AR31: /20
AJ32: Note affectée de son coefficient : | AO32: =IF(AO31="","",AO31*3) ->  | AR32: /60
A33: Baccalauréat professionnel « maintenance des équipements industriels » – Unité U 11 | AI33: Validé | AM33: - Synthèse +
A35: CP 2.1 Analyser le fonctionnement et l’organisation d’un système | AE35: Evalué | AI35: =IF(AE35="Non Evalué","NE",IF(AE35="Evalué","E","")) -> E | AJ35: =COUNTIF(AI37:AL56,"Validé") -> 0 | AK35: =COUNTIF(AI37:AL56,"Non Validé") -> 0 | AL35: =COUNTIF(AI37:AL56,"Non Evalué") -> 0 | AV35: =IF(AE35="","Souhaitez-vous évaluer la compétence ?",IF(AND(AE35="Non Evalué",OR(AJ35<>0,AK35<>0)),"Vous avez choisi de ne pas évaluer la compétence. Ne rien indiquez dans la colonne Validé.",IF(AND(AE35="Evalué",OR(AI37="",AI39="",AI41="",AI43="",AI45="",AI47="",AI49="",AI51="",AI53="",AI55="")),"Vous avez choisi d'évaluer la compétence. Indiquez pour chaques actions : Validé, Non Validé ou Non Evalué.",IF(OR(AE35="Non Evalué",(AJ35+AK35)=0),"",CONCATENATE(ROUND((100*AJ36/(AJ36+AK36)),0)," % d'actions validées. ",AJ35," validée(s) sur ",AJ35+AK35," . Conseil: Au maximum , grisez ",ROUND((100*AJ36/(AJ36+AK36))*8/100,0)," colonnes"))))) -> Vous avez choisi d'évaluer la compétence. Indiquez pour chaques actions : Validé, Non Validé ou Non Evalué.
AJ36: =SUMPRODUCT((AI37:AL56="Validé")*(Bareme!AE6:AE25)) -> 0 | AK36: =SUMPRODUCT((AI37:AL56="Non Validé")*(Bareme!AE6:AE25)) -> 0
A37: 1 | C37: Décoder toutes formes de représentation. | N37: Les représentations sont lues et comprises sans erreur. | AV37: 0
A39: 2 | C39: Décrire le système dans son environnement d’un point de vue fonctionnel, temporel et structurel : • Identifier les fonctions opératives. • Identifier la fonction : - sécurité, - dialogue (homme/machine) et surveillance, - alimentation en énergie. • Décrire le rôle et les caractéristiques des composants réalisant ces fonctions. • Lire et décoder l’évolution temporelle du bien. • Décoder les modes de production et/ou l’exploitation du bien. | N39: La description à l’écrit ou à l’oral doit être conforme : - au système, - à son environnement, - aux normes en vigueur.
N41: Ce descriptif intègre toutes les fonctions opératives du système et leurs interactions.
N43: Chaque fonction est repérée et délimitée sur les documents et sur le bien sans erreur.
N45: Les composants qui participent à chaque fonction sont identifiés
AM46: Commentaires:
N47: La description à l’écrit ou à l’oral doit être conforme aux composants et à leurs fonctions.
N49: L’évolution temporelle est assimilée et décrite.
N51: Le fonctionnement est compris.
A53: 3 | C53: Analyser tout ou partie du bilan énergétique. | N53: Les causes des pertes sont identifiées.
N55: Les paramètres de puissance, de travail et de rendement sont identifiés et éventuellement calculés ou vérifiés.
A57: CP 2.2 Analyser les solutions mécaniques réalisant les fonctions opératives. | AE57: Evalué | AI57: =IF(AE57="Non Evalué","NE",IF(AE57="Evalué","E","")) -> E | AJ57: =COUNTIF(AI59:AL88,"Validé") -> 0 | AK57: =COUNTIF(AI59:AL88,"Non Validé") -> 0 | AL57: =COUNTIF(AI59:AL88,"Non Evalué") -> 0 | AV57: =IF(AE57="","Souhaitez-vous évaluer la compétence ?",IF(AND(AE57="Non Evalué",OR(AJ57<>0,AK57<>0)),"Vous avez choisi de ne pas évaluer la compétence. Ne rien indiquez dans la colonne Validé.",IF(AND(AE57="Evalué",OR(AI59="",AI61="",AI63="",AI65="",AI67="",AI69="",AI71="",AI73="",AI75="",AI77="",AI79="",AI81="",AI83="",AI85="",AI87="")),"Vous avez choisi d'évaluer la compétence. Indiquez pour chaques actions : Validé, Non Validé ou Non Evalué.",IF(OR(AE57="Non Evalué",(AJ57+AK57)=0),"",CONCATENATE(ROUND((100*AJ58/(AJ58+AK58)),0)," % d'actions validées. ",AJ57," validée(s) sur ",AJ57+AK57," . Conseil: Au maximum , grisez ",ROUND((100*AJ58/(AJ58+AK58))*8/100,0)," colonnes"))))) -> Vous avez choisi d'évaluer la compétence. Indiquez pour chaques actions : Validé, Non Validé ou Non Evalué.
AJ58: =SUMPRODUCT((AI59:AL88="Validé")*(Bareme!AE28:AE57)) -> 0 | AK58: =SUMPRODUCT((AI59:AL88="Non Validé")*(Bareme!AE28:AE57)) -> 0
A59: 1 | C59: Décoder toutes formes de représentation des solutions constructives. | N59: Les plans, schémas, documents techniques, éclatés… sont lus et compris sans erreur. | AV59: 0
A61: 2 | C61: Identifier, pour chaque solution technique (assemblage, guidage, étanchéité, transmission, transformation des mouvements…) : • les composants utilisés, • les performances attendues ou constatées, • les caractéristiques, • les conditions d’utilisations, • les risques de défaillances. | N61: Les composants constitutifs des solutions et leurs éléments d’assemblage sont identifiés et désignés exhaustivement et sans erreur.
N63: Les caractéristiques, les performances, les conditions d’utilisations, les risques de défaillances sont explicités.
N65: Les dérives de fonctionnement sont justifiées.
A67: 3 | C67: Décrire la cinématique des parties opératives. | N67: La description (schéma cinématique) doit être conforme : - aux solutions mécaniques,
N69: La description (schéma cinématique) doit être conforme : - à son environnement,
N71: La description (schéma cinématique) doit être conforme : - aux normes de représentation en vigueur. | AM71: Commentaires:
A73: 4 | C73: Décrire et vérifier par le calcul des solutions constructives. | N73: La description est conforme à l’ensemble étudié
N75: Les formules sont correctement utilisées.
N77: Les logiciels de calcul et les résultats fournis sont correctement exploités.
A79: 5 | C79: Etablir des schémas et croquis des solutions techniques. | N79: Les schémas réalisés sont conformes aux solutions et respectent les normes de représentation.
N81: Les croquis sont exploitables.
A83: 6 | C83: Rédiger des consignes : - gammes de montage démontage, - procédures de réglages. | N83: Les gammes et les procédures sont exploitables et répondent au besoin.
N85: Le plan de prévention est réactualisé.
N87: Le langage utilisé est correct et approprié.
E90: =IF(OR(I101="",AND(AJ35="",AK35="",AJ57="",AK57="")=0),"",CONCATENATE("PROPOSITION: ",CEILING(I101,0.5),"/20 (",ROUND(100*COUNTIF(U100:U101,"E")/(COUNTIF(U100:U101,"E")+COUNTIF(U100:U101,"NE")),0),"% des compétences évaluées).")) -> 
E93: Proposition des évaluateurs:
E97: Ne pas effacer
O98: Statistique U11 de
O99: Compétences | P99: =IF(AE4="","",AE4) ->  | Q99: Satisfaction maximale | R99: Satisfaction moyenne | S99: Statistique U31 de | T99: Coefficients | U99: Validée ou Non Validée
C100: Somme | I100: =SUM((P100:P101)) -> 0 | K100: =SUM(Q100:Q101) -> 800 | O100: =A37 -> 1 | P100: =IF(OR(U100="NE",U100=""),"",T100*S100) -> 0 | Q100: =IF(OR(U100="NE",U100=""),"",T100*8) -> 320 | R100: =IF(OR(U100="NE",U100=""),"",Q100/2) -> 160 | S100: =AV37 -> 0 | T100: =Bareme!AE4 -> 40 | U100: =IF(AI35="","",AI35) -> E
C101: Moyenne /20 | I101: =IF($I$100=0,"",K101*$I$100/$K$100) ->  | K101: 20 | O101: =A39 -> 2 | P101: =IF(OR(U101="NE",U101=""),"",T101*S101) -> 0 | Q101: =IF(OR(U101="NE",U101=""),"",T101*8) -> 480 | R101: =IF(OR(U101="NE",U101=""),"",Q101/2) -> 240 | S101: =AV59 -> 0 | T101: =Bareme!AE26 -> 60 | U101: =IF(AI57="","",AI57) -> E
C102: Moyenne /60 | I102: =IF($I$100=0,"",K102*$I$100/$K$100) ->  | K102: 60
E103: Ne pas effacer

Sheet U2 (hidden)
A1: Baccalauréat professionnel « maintenance des équipements industriels »
A2: Épreuve E2 (Unité U2) : ANALYSE ETPREPARATION D’UNE ACTIVITE DE MAINTENANCE
A3: Établissement : (tampon) | X3: Session : | AE3: =IF(Bilan!B2="","",Bilan!B2) -> 
A4: =IF(Bilan!B3="","",Bilan!B3) ->  | X4: Nom du candidat: | AE4: =IF(INDEX((Bilan!B5:B34),(MATCH(RIGHT(CELL("nomfichier",A1),LEN(CELL("nomfichier",A1))-FIND("]",CELL("nomfichier",A1))),Bilan!E5:E34,0)))="","",INDEX((Bilan!B5:B34),(MATCH(RIGHT(CELL("nomfichier",A1),LEN(CELL("nomfichier",A1))-FIND("]",CELL("nomfichier",A1))),Bilan!E5:E34,0)))) -> 
X5: Prénom :
X6: Date de l'évaluation: | AV6: Choisisser votre situation
A7: Lieu d’évaluation :
A8: Etablissement
A9: Entreprise :
A10: Description sommaire du travail demandé :
A11: =IF($AV$7="","",IF($AV$7="A",IF(U2_A!A11="","",U2_A!A11),IF($AV$7="B",IF(U2_B!A11="","",U2_B!A11),IF($AV$7="C",IF(U2_C!A11="","",U2_C!A11),IF($AV$7="D",IF(U2_D!A11="","",U2_D!A11),IF($AV$7="E",IF(U2_E!A11="","",U2_E!A11),IF($AV$7="F",IF(U2_F!A11="","",U2_F!A11),IF($AV$7="G",IF(U2_G!A11="","",U2_G!A11),IF($AV$7="H",IF(U2_H!A11="","",U2_H!A11),""))))))))) ->  | B11: =IF($AV$7="","",IF($AV$7="A",IF(U2_A!B11="","",U2_A!B11),IF($AV$7="B",IF(U2_B!B11="","",U2_B!B11),IF($AV$7="C",IF(U2_C!B11="","",U2_C!B11),IF($AV$7="D",IF(U2_D!B11="","",U2_D!B11),IF($AV$7="E",IF(U2_E!B11="","",U2_E!B11),IF($AV$7="F",IF(U2_F!B11="","",U2_F!B11),IF($AV$7="G",IF(U2_G!B11="","",U2_G!B11),IF($AV$7="H",IF(U2_H!B11="","",U2_H!B11),""))))))))) ->  | C11: =IF($AV$7="","",IF($AV$7="A",IF(U2_A!C11="","",U2_A!C11),IF($AV$7="B",IF(U2_B!C11="","",U2_B!C11),IF($AV$7="C",IF(U2_C!C11="","",U2_C!C11),IF($AV$7="D",IF(U2_D!C11="","",U2_D!C11),IF($AV$7="E",IF(U2_E!C11="","",U2_E!C11),IF($AV$7="F",IF(U2_F!C11="","",U2_F!C11),IF($AV$7="G",IF(U2_G!C11="","",U2_G!C11),IF($AV$7="H",IF(U2_H!C11="","",U2_H!C11),""))))))))) ->  | D11: =IF($AV$7="","",IF($AV$7="A",IF(U2_A!D11="","",U2_A!D11),IF($AV$7="B",IF(U2_B!D11="","",U2_B!D11),IF($AV$7="C",IF(U2_C!D11="","",U2_C!D11),IF($AV$7="D",IF(U2_D!D11="","",U2_D!D11),IF($AV$7="E",IF(U2_E!D11="","",U2_E!D11),IF($AV$7="F",IF(U2_F!D11="","",U2_F!D11),IF($AV$7="G",IF(U2_G!D11="","",U2_G!D11),IF($AV$7="H",IF(U2_H!D11="","",U2_H!D11),""))))))))) ->  | E11: =IF($AV$7="","",IF($AV$7="A",IF(U2_A!E11="","",U2_A!E11),IF($AV$7="B",IF(U2_B!E11="","",U2_B!E11),IF($AV$7="C",IF(U2_C!E11="","",U2_C!E11),IF($AV$7="D",IF(U2_D!E11="","",U2_D!E11),IF($AV$7="E",IF(U2_E!E11="","",U2_E!E11),IF($AV$7="F",IF(U2_F!E11="","",U2_F!E11),IF($AV$7="G",IF(U2_G!E11="","",U2_G!E11),IF($AV$7="H",IF(U2_H!E11="","",U2_H!E11),""))))))))) ->  | F11: =IF($AV$7="","",IF($AV$7="A",IF(U2_A!F11="","",U2_A!F11),IF($AV$7="B",IF(U2_B!F11="","",U2_B!F11),IF($AV$7="C",IF(U2_C!F11="","",U2_C!F11),IF($AV$7="D",IF(U2_D!F11="","",U2_D!F11),IF($AV$7="E",IF(U2_E!F11="","",U2_E!F11),IF($AV$7="F",IF(U2_F!F11="","",U2_F!F11),IF($AV$7="G",IF(U2_G!F11="","",U2_G!F11),IF($AV$7="H",IF(U2_H!F11="","",U2_H!F11),""))))))))) ->  | G11: =IF($AV$7="","",IF($AV$7="A",IF(U2_A!G11="","",U2_A!G11),IF($AV$7="B",IF(U2_B!G11="","",U2_B!G11),IF($AV$7="C",IF(U2_C!G11="","",U2_C!G11),IF($AV$7="D",IF(U2_D!G11="","",U2_D!G11),IF($AV$7="E",IF(U2_E!G11="","",U2_E!G11),IF($AV$7="F",IF(U2_F!G11="","",U2_F!G11),IF($AV$7="G",IF(U2_G!G11="","",U2_G!G11),IF($AV$7="H",IF(U2_H!G11="","",U2_H!G11),""))))))))) ->  | H11: =IF($AV$7="","",IF($AV$7="A",IF(U2_A!H11="","",U2_A!H11),IF($AV$7="B",IF(U2_B!H11="","",U2_B!H11),IF($AV$7="C",IF(U2_C!H11="","",U2_C!H11),IF($AV$7="D",IF(U2_D!H11="","",U2_D!H11),IF($AV$7="E",IF(U2_E!H11="","",U2_E!H11),IF($AV$7="F",IF(U2_F!H11="","",U2_F!H11),IF($AV$7="G",IF(U2_G!H11="","",U2_G!H11),IF($AV$7="H",IF(U2_H!H11="","",U2_H!H11),""))))))))) ->  | I11: =IF($AV$7="","",IF($AV$7="A",IF(U2_A!I11="","",U2_A!I11),IF($AV$7="B",IF(U2_B!I11="","",U2_B!I11),IF($AV$7="C",IF(U2_C!I11="","",U2_C!I11),IF($AV$7="D",IF(U2_D!I11="","",U2_D!I11),IF($AV$7="E",IF(U2_E!I11="","",U2_E!I11),IF($AV$7="F",IF(U2_F!I11="","",U2_F!I11),IF($AV$7="G",IF(U2_G!I11="","",U2_G!I11),IF($AV$7="H",IF(U2_H!I11="","",U2_H!I11),""))))))))) ->  | J11: =IF($AV$7="","",IF($AV$7="A",IF(U2_A!J11="","",U2_A!J11),IF($AV$7="B",IF(U2_B!J11="","",U2_B!J11),IF($AV$7="C",IF(U2_C!J11="","",U2_C!J11),IF($AV$7="D",IF(U2_D!J11="","",U2_D!J11),IF($AV$7="E",IF(U2_E!J11="","",U2_E!J11),IF($AV$7="F",IF(U2_F!J11="","",U2_F!J11),IF($AV$7="G",IF(U2_G!J11="","",U2_G!J11),IF($AV$7="H",IF(U2_H!J11="","",U2_H!J11),""))))))))) ->  | K11: =IF($AV$7="","",IF($AV$7="A",IF(U2_A!K11="","",U2_A!K11),IF($AV$7="B",IF(U2_B!K11="","",U2_B!K11),IF($AV$7="C",IF(U2_C!K11="","",U2_C!K11),IF($AV$7="D",IF(U2_D!K11="","",U2_D!K11),IF($AV$7="E",IF(U2_E!K11="","",U2_E!K11),IF($AV$7="F",IF(U2_F!K11="","",U2_F!K11),IF($AV$7="G",IF(U2_G!K11="","",U2_G!K11),IF($AV$7="H",IF(U2_H!K11="","",U2_H!K11),""))))))))) ->  | L11: =IF($AV$7="","",IF($AV$7="A",IF(U2_A!L11="","",U2_A!L11),IF($AV$7="B",IF(U2_B!L11="","",U2_B!L11),IF($AV$7="C",IF(U2_C!L11="","",U2_C!L11),IF($AV$7="D",IF(U2_D!L11="","",U2_D!L11),IF($AV$7="E",IF(U2_E!L11="","",U2_E!L11),IF($AV$7="F",IF(U2_F!L11="","",U2_F!L11),IF($AV$7="G",IF(U2_G!L11="","",U2_G!L11),IF($AV$7="H",IF(U2_H!L11="","",U2_H!L11),""))))))))) ->  | M11: =IF($AV$7="","",IF($AV$7="A",IF(U2_A!M11="","",U2_A!M11),IF($AV$7="B",IF(U2_B!M11="","",U2_B!M11),IF($AV$7="C",IF(U2_C!M11="","",U2_C!M11),IF($AV$7="D",IF(U2_D!M11="","",U2_D!M11),IF($AV$7="E",IF(U2_E!M11="","",U2_E!M11),IF($AV$7="F",IF(U2_F!M11="","",U2_F!M11),IF($AV$7="G",IF(U2_G!M11="","",U2_G!M11),IF($AV$7="H",IF(U2_H!M11="","",U2_H!M11),""))))))))) ->  | N11: =IF($AV$7="","",IF($AV$7="A",IF(U2_A!N11="","",U2_A!N11),IF($AV$7="B",IF(U2_B!N11="","",U2_B!N11),IF($AV$7="C",IF(U2_C!N11="","",U2_C!N11),IF($AV$7="D",IF(U2_D!N11="","",U2_D!N11),IF($AV$7="E",IF(U2_E!N11="","",U2_E!N11),IF($AV$7="F",IF(U2_F!N11="","",U2_F!N11),IF($AV$7="G",IF(U2_G!N11="","",U2_G!N11),IF($AV$7="H",IF(U2_H!N11="","",U2_H!N11),""))))))))) ->  | O11: =IF($AV$7="","",IF($AV$7="A",IF(U2_A!O11="","",U2_A!O11),IF($AV$7="B",IF(U2_B!O11="","",U2_B!O11),IF($AV$7="C",IF(U2_C!O11="","",U2_C!O11),IF($AV$7="D",IF(U2_D!O11="","",U2_D!O11),IF($AV$7="E",IF(U2_E!O11="","",U2_E!O11),IF($AV$7="F",IF(U2_F!O11="","",U2_F!O11),IF($AV$7="G",IF(U2_G!O11="","",U2_G!O11),IF($AV$7="H",IF(U2_H!O11="","",U2_H!O11),""))))))))) ->  | P11: =IF($AV$7="","",IF($AV$7="A",IF(U2_A!P11="","",U2_A!P11),IF($AV$7="B",IF(U2_B!P11="","",U2_B!P11),IF($AV$7="C",IF(U2_C!P11="","",U2_C!P11),IF($AV$7="D",IF(U2_D!P11="","",U2_D!P11),IF($AV$7="E",IF(U2_E!P11="","",U2_E!P11),IF($AV$7="F",IF(U2_F!P11="","",U2_F!P11),IF($AV$7="G",IF(U2_G!P11="","",U2_G!P11),IF($AV$7="H",IF(U2_H!P11="","",U2_H!P11),""))))))))) ->  | Q11: =IF($AV$7="","",IF($AV$7="A",IF(U2_A!Q11="","",U2_A!Q11),IF($AV$7="B",IF(U2_B!Q11="","",U2_B!Q11),IF($AV$7="C",IF(U2_C!Q11="","",U2_C!Q11),IF($AV$7="D",IF(U2_D!Q11="","",U2_D!Q11),IF($AV$7="E",IF(U2_E!Q11="","",U2_E!Q11),IF($AV$7="F",IF(U2_F!Q11="","",U2_F!Q11),IF($AV$7="G",IF(U2_G!Q11="","",U2_G!Q11),IF($AV$7="H",IF(U2_H!Q11="","",U2_H!Q11),""))))))))) ->  | R11: =IF($AV$7="","",IF($AV$7="A",IF(U2_A!R11="","",U2_A!R11),IF($AV$7="B",IF(U2_B!R11="","",U2_B!R11),IF($AV$7="C",IF(U2_C!R11="","",U2_C!R11),IF($AV$7="D",IF(U2_D!R11="","",U2_D!R11),IF($AV$7="E",IF(U2_E!R11="","",U2_E!R11),IF($AV$7="F",IF(U2_F!R11="","",U2_F!R11),IF($AV$7="G",IF(U2_G!R11="","",U2_G!R11),IF($AV$7="H",IF(U2_H!R11="","",U2_H!R11),""))))))))) ->  | S11: =IF($AV$7="","",IF($AV$7="A",IF(U2_A!S11="","",U2_A!S11),IF($AV$7="B",IF(U2_B!S11="","",U2_B!S11),IF($AV$7="C",IF(U2_C!S11="","",U2_C!S11),IF($AV$7="D",IF(U2_D!S11="","",U2_D!S11),IF($AV$7="E",IF(U2_E!S11="","",U2_E!S11),IF($AV$7="F",IF(U2_F!S11="","",U2_F!S11),IF($AV$7="G",IF(U2_G!S11="","",U2_G!S11),IF($AV$7="H",IF(U2_H!S11="","",U2_H!S11),""))))))))) ->  | T11: =IF($AV$7="","",IF($AV$7="A",IF(U2_A!T11="","",U2_A!T11),IF($AV$7="B",IF(U2_B!T11="","",U2_B!T11),IF($AV$7="C",IF(U2_C!T11="","",U2_C!T11),IF($AV$7="D",IF(U2_D!T11="","",U2_D!T11),IF($AV$7="E",IF(U2_E!T11="","",U2_E!T11),IF($AV$7="F",IF(U2_F!T11="","",U2_F!T11),IF($AV$7="G",IF(U2_G!T11="","",U2_G!T11),IF($AV$7="H",IF(U2_H!T11="","",U2_H!T11),""))))))))) ->  | U11: =IF($AV$7="","",IF($AV$7="A",IF(U2_A!U11="","",U2_A!U11),IF($AV$7="B",IF(U2_B!U11="","",U2_B!U11),IF($AV$7="C",IF(U2_C!U11="","",U2_C!U11),IF($AV$7="D",IF(U2_D!U11="","",U2_D!U11),IF($AV$7="E",IF(U2_E!U11="","",U2_E!U11),IF($AV$7="F",IF(U2_F!U11="","",U2_F!U11),IF($AV$7="G",IF(U2_G!U11="","",U2_G!U11),IF($AV$7="H",IF(U2_H!U11="","",U2_H!U11),""))))))))) ->  | V11: =IF($AV$7="","",IF($AV$7="A",IF(U2_A!V11="","",U2_A!V11),IF($AV$7="B",IF(U2_B!V11="","",U2_B!V11),IF($AV$7="C",IF(U2_C!V11="","",U2_C!V11),IF($AV$7="D",IF(U2_D!V11="","",U2_D!V11),IF($AV$7="E",IF(U2_E!V11="","",U2_E!V11),IF($AV$7="F",IF(U2_F!V11="","",U2_F!V11),IF($AV$7="G",IF(U2_G!V11="","",U2_G!V11),IF($AV$7="H",IF(U2_H!V11="","",U2_H!V11),""))))))))) ->  | W11: =IF($AV$7="","",IF($AV$7="A",IF(U2_A!W11="","",U2_A!W11),IF($AV$7="B",IF(U2_B!W11="","",U2_B!W11),IF($AV$7="C",IF(U2_C!W11="","",U2_C!W11),IF($AV$7="D",IF(U2_D!W11="","",U2_D!W11),IF($AV$7="E",IF(U2_E!W11="","",U2_E!W11),IF($AV$7="F",IF(U2_F!W11="","",U2_F!W11),IF($AV$7="G",IF(U2_G!W11="","",U2_G!W11),IF($AV$7="H",IF(U2_H!W11="","",U2_H!W11),""))))))))) ->  | X11: =IF($AV$7="","",IF($AV$7="A",IF(U2_A!X11="","",U2_A!X11),IF($AV$7="B",IF(U2_B!X11="","",U2_B!X11),IF($AV$7="C",IF(U2_C!X11="","",U2_C!X11),IF($AV$7="D",IF(U2_D!X11="","",U2_D!X11),IF($AV$7="E",IF(U2_E!X11="","",U2_E!X11),IF($AV$7="F",IF(U2_F!X11="","",U2_F!X11),IF($AV$7="G",IF(U2_G!X11="","",U2_G!X11),IF($AV$7="H",IF(U2_H!X11="","",U2_H!X11),""))))))))) ->  | Y11: =IF($AV$7="","",IF($AV$7="A",IF(U2_A!Y11="","",U2_A!Y11),IF($AV$7="B",IF(U2_B!Y11="","",U2_B!Y11),IF($AV$7="C",IF(U2_C!Y11="","",U2_C!Y11),IF($AV$7="D",IF(U2_D!Y11="","",U2_D!Y11),IF($AV$7="E",IF(U2_E!Y11="","",U2_E!Y11),IF($AV$7="F",IF(U2_F!Y11="","",U2_F!Y11),IF($AV$7="G",IF(U2_G!Y11="","",U2_G!Y11),IF($AV$7="H",IF(U2_H!Y11="","",U2_H!Y11),""))))))))) ->  | Z11: =IF($AV$7="","",IF($AV$7="A",IF(U2_A!Z11="","",U2_A!Z11),IF($AV$7="B",IF(U2_B!Z11="","",U2_B!Z11),IF($AV$7="C",IF(U2_C!Z11="","",U2_C!Z11),IF($AV$7="D",IF(U2_D!Z11="","",U2_D!Z11),IF($AV$7="E",IF(U2_E!Z11="","",U2_E!Z11),IF($AV$7="F",IF(U2_F!Z11="","",U2_F!Z11),IF($AV$7="G",IF(U2_G!Z11="","",U2_G!Z11),IF($AV$7="H",IF(U2_H!Z11="","",U2_H!Z11),""))))))))) ->  | AA11: =IF($AV$7="","",IF($AV$7="A",IF(U2_A!AA11="","",U2_A!AA11),IF($AV$7="B",IF(U2_B!AA11="","",U2_B!AA11),IF($AV$7="C",IF(U2_C!AA11="","",U2_C!AA11),IF($AV$7="D",IF(U2_D!AA11="","",U2_D!AA11),IF($AV$7="E",IF(U2_E!AA11="","",U2_E!AA11),IF($AV$7="F",IF(U2_F!AA11="","",U2_F!AA11),IF($AV$7="G",IF(U2_G!AA11="","",U2_G!AA11),IF($AV$7="H",IF(U2_H!AA11="","",U2_H!AA11),""))))))))) ->  | AB11: =IF($AV$7="","",IF($AV$7="A",IF(U2_A!AB11="","",U2_A!AB11),IF($AV$7="B",IF(U2_B!AB11="","",U2_B!AB11),IF($AV$7="C",IF(U2_C!AB11="","",U2_C!AB11),IF($AV$7="D",IF(U2_D!AB11="","",U2_D!AB11),IF($AV$7="E",IF(U2_E!AB11="","",U2_E!AB11),IF($AV$7="F",IF(U2_F!AB11="","",U2_F!AB11),IF($AV$7="G",IF(U2_G!AB11="","",U2_G!AB11),IF($AV$7="H",IF(U2_H!AB11="","",U2_H!AB11),""))))))))) ->  | AC11: =IF($AV$7="","",IF($AV$7="A",IF(U2_A!AC11="","",U2_A!AC11),IF($AV$7="B",IF(U2_B!AC11="","",U2_B!AC11),IF($AV$7="C",IF(U2_C!AC11="","",U2_C!AC11),IF($AV$7="D",IF(U2_D!AC11="","",U2_D!AC11),IF($AV$7="E",IF(U2_E!AC11="","",U2_E!AC11),IF($AV$7="F",IF(U2_F!AC11="","",U2_F!AC11),IF($AV$7="G",IF(U2_G!AC11="","",U2_G!AC11),IF($AV$7="H",IF(U2_H!AC11="","",U2_H!AC11),""))))))))) ->  | AD11: =IF($AV$7="","",IF($AV$7="A",IF(U2_A!AD11="","",U2_A!AD11),IF($AV$7="B",IF(U2_B!AD11="","",U2_B!AD11),IF($AV$7="C",IF(U2_C!AD11="","",U2_C!AD11),IF($AV$7="D",IF(U2_D!AD11="","",U2_D!AD11),IF($AV$7="E",IF(U2_E!AD11="","",U2_E!AD11),IF($AV$7="F",IF(U2_F!AD11="","",U2_F!AD11),IF($AV$7="G",IF(U2_G!AD11="","",U2_G!AD11),IF($AV$7="H",IF(U2_H!AD11="","",U2_H!AD11),""))))))))) ->  | AE11: =IF($AV$7="","",IF($AV$7="A",IF(U2_A!AE11="","",U2_A!AE11),IF($AV$7="B",IF(U2_B!AE11="","",U2_B!AE11),IF($AV$7="C",IF(U2_C!AE11="","",U2_C!AE11),IF($AV$7="D",IF(U2_D!AE11="","",U2_D!AE11),IF($AV$7="E",IF(U2_E!AE11="","",U2_E!AE11),IF($AV$7="F",IF(U2_F!AE11="","",U2_F!AE11),IF($AV$7="G",IF(U2_G!AE11="","",U2_G!AE11),IF($AV$7="H",IF(U2_H!AE11="","",U2_H!AE11),""))))))))) ->  | AF11: =IF($AV$7="","",IF($AV$7="A",IF(U2_A!AF11="","",U2_A!AF11),IF($AV$7="B",IF(U2_B!AF11="","",U2_B!AF11),IF($AV$7="C",IF(U2_C!AF11="","",U2_C!AF11),IF($AV$7="D",IF(U2_D!AF11="","",U2_D!AF11),IF($AV$7="E",IF(U2_E!AF11="","",U2_E!AF11),IF($AV$7="F",IF(U2_F!AF11="","",U2_F!AF11),IF($AV$7="G",IF(U2_G!AF11="","",U2_G!AF11),IF($AV$7="H",IF(U2_H!AF11="","",U2_H!AF11),""))))))))) ->  | AG11: =IF($AV$7="","",IF($AV$7="A",IF(U2_A!AG11="","",U2_A!AG11),IF($AV$7="B",IF(U2_B!AG11="","",U2_B!AG11),IF($AV$7="C",IF(U2_C!AG11="","",U2_C!AG11),IF($AV$7="D",IF(U2_D!AG11="","",U2_D!AG11),IF($AV$7="E",IF(U2_E!AG11="","",U2_E!AG11),IF($AV$7="F",IF(U2_F!AG11="","",U2_F!AG11),IF($AV$7="G",IF(U2_G!AG11="","",U2_G!AG11),IF($AV$7="H",IF(U2_H!AG11="","",U2_H!AG11),""))))))))) ->  | AH11: =IF($AV$7="","",IF($AV$7="A",IF(U2_A!AH11="","",U2_A!AH11),IF($AV$7="B",IF(U2_B!AH11="","",U2_B!AH11),IF($AV$7="C",IF(U2_C!AH11="","",U2_C!AH11),IF($AV$7="D",IF(U2_D!AH11="","",U2_D!AH11),IF($AV$7="E",IF(U2_E!AH11="","",U2_E!AH11),IF($AV$7="F",IF(U2_F!AH11="","",U2_F!AH11),IF($AV$7="G",IF(U2_G!AH11="","",U2_G!AH11),IF($AV$7="H",IF(U2_H!AH11="","",U2_H!AH11),""))))))))) ->  | AI11: =IF($AV$7="","",IF($AV$7="A",IF(U2_A!AI11="","",U2_A!AI11),IF($AV$7="B",IF(U2_B!AI11="","",U2_B!AI11),IF($AV$7="C",IF(U2_C!AI11="","",U2_C!AI11),IF($AV$7="D",IF(U2_D!AI11="","",U2_D!AI11),IF($AV$7="E",IF(U2_E!AI11="","",U2_E!AI11),IF($AV$7="F",IF(U2_F!AI11="","",U2_F!AI11),IF($AV$7="G",IF(U2_G!AI11="","",U2_G!AI11),IF($AV$7="H",IF(U2_H!AI11="","",U2_H!AI11),""))))))))) ->  | AJ11: =IF($AV$7="","",IF($AV$7="A",IF(U2_A!AJ11="","",U2_A!AJ11),IF($AV$7="B",IF(U2_B!AJ11="","",U2_B!AJ11),IF($AV$7="C",IF(U2_C!AJ11="","",U2_C!AJ11),IF($AV$7="D",IF(U2_D!AJ11="","",U2_D!AJ11),IF($AV$7="E",IF(U2_E!AJ11="","",U2_E!AJ11),IF($AV$7="F",IF(U2_F!AJ11="","",U2_F!AJ11),IF($AV$7="G",IF(U2_G!AJ11="","",U2_G!AJ11),IF($AV$7="H",IF(U2_H!AJ11="","",U2_H!AJ11),""))))))))) ->  | AK11: =IF($AV$7="","",IF($AV$7="A",IF(U2_A!AK11="","",U2_A!AK11),IF($AV$7="B",IF(U2_B!AK11="","",U2_B!AK11),IF($AV$7="C",IF(U2_C!AK11="","",U2_C!AK11),IF($AV$7="D",IF(U2_D!AK11="","",U2_D!AK11),IF($AV$7="E",IF(U2_E!AK11="","",U2_E!AK11),IF($AV$7="F",IF(U2_F!AK11="","",U2_F!AK11),IF($AV$7="G",IF(U2_G!AK11="","",U2_G!AK11),IF($AV$7="H",IF(U2_H!AK11="","",U2_H!AK11),""))))))))) ->  | AL11: =IF($AV$7="","",IF($AV$7="A",IF(U2_A!AL11="","",U2_A!AL11),IF($AV$7="B",IF(U2_B!AL11="","",U2_B!AL11),IF($AV$7="C",IF(U2_C!AL11="","",U2_C!AL11),IF($AV$7="D",IF(U2_D!AL11="","",U2_D!AL11),IF($AV$7="E",IF(U2_E!AL11="","",U2_E!AL11),IF($AV$7="F",IF(U2_F!AL11="","",U2_F!AL11),IF($AV$7="G",IF(U2_G!AL11="","",U2_G!AL11),IF($AV$7="H",IF(U2_H!AL11="","",U2_H!AL11),""))))))))) ->  | AM11: =IF($AV$7="","",IF($AV$7="A",IF(U2_A!AM11="","",U2_A!AM11),IF($AV$7="B",IF(U2_B!AM11="","",U2_B!AM11),IF($AV$7="C",IF(U2_C!AM11="","",U2_C!AM11),IF($AV$7="D",IF(U2_D!AM11="","",U2_D!AM11),IF($AV$7="E",IF(U2_E!AM11="","",U2_E!AM11),IF($AV$7="F",IF(U2_F!AM11="","",U2_F!AM11),IF($AV$7="G",IF(U2_G!AM11="","",U2_G!AM11),IF($AV$7="H",IF(U2_H!AM11="","",U2_H!AM11),""))))))))) ->  | AN11: =IF($AV$7="","",IF($AV$7="A",IF(U2_A!AN11="","",U2_A!AN11),IF($AV$7="B",IF(U2_B!AN11="","",U2_B!AN11),IF($AV$7="C",IF(U2_C!AN11="","",U2_C!AN11),IF($AV$7="D",IF(U2_D!AN11="","",U2_D!AN11),IF($AV$7="E",IF(U2_E!AN11="","",U2_E!AN11),IF($AV$7="F",IF(U2_F!AN11="","",U2_F!AN11),IF($AV$7="G",IF(U2_G!AN11="","",U2_G!AN11),IF($AV$7="H",IF(U2_H!AN11="","",U2_H!AN11),""))))))))) ->  | AO11: =IF($AV$7="","",IF($AV$7="A",IF(U2_A!AO11="","",U2_A!AO11),IF($AV$7="B",IF(U2_B!AO11="","",U2_B!AO11),IF($AV$7="C",IF(U2_C!AO11="","",U2_C!AO11),IF($AV$7="D",IF(U2_D!AO11="","",U2_D!AO11),IF($AV$7="E",IF(U2_E!AO11="","",U2_E!AO11),IF($AV$7="F",IF(U2_F!AO11="","",U2_F!AO11),IF($AV$7="G",IF(U2_G!AO11="","",U2_G!AO11),IF($AV$7="H",IF(U2_H!AO11="","",U2_H!AO11),""))))))))) ->  | AP11: =IF($AV$7="","",IF($AV$7="A",IF(U2_A!AP11="","",U2_A!AP11),IF($AV$7="B",IF(U2_B!AP11="","",U2_B!AP11),IF($AV$7="C",IF(U2_C!AP11="","",U2_C!AP11),IF($AV$7="D",IF(U2_D!AP11="","",U2_D!AP11),IF($AV$7="E",IF(U2_E!AP11="","",U2_E!AP11),IF($AV$7="F",IF(U2_F!AP11="","",U2_F!AP11),IF($AV$7="G",IF(U2_G!AP11="","",U2_G!AP11),IF($AV$7="H",IF(U2_H!AP11="","",U2_H!AP11),""))))))))) ->  | AQ11: =IF($AV$7="","",IF($AV$7="A",IF(U2_A!AQ11="","",U2_A!AQ11),IF($AV$7="B",IF(U2_B!AQ11="","",U2_B!AQ11),IF($AV$7="C",IF(U2_C!AQ11="","",U2_C!AQ11),IF($AV$7="D",IF(U2_D!AQ11="","",U2_D!AQ11),IF($AV$7="E",IF(U2_E!AQ11="","",U2_E!AQ11),IF($AV$7="F",IF(U2_F!AQ11="","",U2_F!AQ11),IF($AV$7="G",IF(U2_G!AQ11="","",U2_G!AQ11),IF($AV$7="H",IF(U2_H!AQ11="","",U2_H!AQ11),""))))))))) ->  | AR11: =IF($AV$7="","",IF($AV$7="A",IF(U2_A!AR11="","",U2_A!AR11),IF($AV$7="B",IF(U2_B!AR11="","",U2_B!AR11),IF($AV$7="C",IF(U2_C!AR11="","",U2_C!AR11),IF($AV$7="D",IF(U2_D!AR11="","",U2_D!AR11),IF($AV$7="E",IF(U2_E!AR11="","",U2_E!AR11),IF($AV$7="F",IF(U2_F!AR11="","",U2_F!AR11),IF($AV$7="G",IF(U2_G!AR11="","",U2_G!AR11),IF($AV$7="H",IF(U2_H!AR11="","",U2_H!AR11),""))))))))) ->  | AS11: =IF($AV$7="","",IF($AV$7="A",IF(U2_A!AS11="","",U2_A!AS11),IF($AV$7="B",IF(U2_B!AS11="","",U2_B!AS11),IF($AV$7="C",IF(U2_C!AS11="","",U2_C!AS11),IF($AV$7="D",IF(U2_D!AS11="","",U2_D!AS11),IF($AV$7="E",IF(U2_E!AS11="","",U2_E!AS11),IF($AV$7="F",IF(U2_F!AS11="","",U2_F!AS11),IF($AV$7="G",IF(U2_G!AS11="","",U2_G!AS11),IF($AV$7="H",IF(U2_H!AS11="","",U2_H!AS11),""))))))))) ->  | AT11: =IF($AV$7="","",IF($AV$7="A",IF(U2_A!AT11="","",U2_A!AT11),IF($AV$7="B",IF(U2_B!AT11="","",U2_B!AT11),IF($AV$7="C",IF(U2_C!AT11="","",U2_C!AT11),IF($AV$7="D",IF(U2_D!AT11="","",U2_D!AT11),IF($AV$7="E",IF(U2_E!AT11="","",U2_E!AT11),IF($AV$7="F",IF(U2_F!AT11="","",U2_F!AT11),IF($AV$7="G",IF(U2_G!AT11="","",U2_G!AT11),IF($AV$7="H",IF(U2_H!AT11="","",U2_H!AT11),""))))))))) -> 
A13: Données et condition de réalisation.
A14: =IF($AV$7="","",IF($AV$7="A",IF(U2_A!A14="","",U2_A!A14),IF($AV$7="B",IF(U2_B!A14="","",U2_B!A14),IF($AV$7="C",IF(U2_C!A14="","",U2_C!A14),IF($AV$7="D",IF(U2_D!A14="","",U2_D!A14),IF($AV$7="E",IF(U2_E!A14="","",U2_E!A14),IF($AV$7="F",IF(U2_F!A14="","",U2_F!A14),IF($AV$7="G",IF(U2_G!A14="","",U2_G!A14),IF($AV$7="H",IF(U2_H!A14="","",U2_H!A14),""))))))))) ->  | B14: Le dossier technique du bien sur supports papiers ou supports numériques | X14: =IF($AV$7="","",IF($AV$7="A",IF(U2_A!X14="","",U2_A!X14),IF($AV$7="B",IF(U2_B!X14="","",U2_B!X14),IF($AV$7="C",IF(U2_C!X14="","",U2_C!X14),IF($AV$7="D",IF(U2_D!X14="","",U2_D!X14),IF($AV$7="E",IF(U2_E!X14="","",U2_E!X14),IF($AV$7="F",IF(U2_F!X14="","",U2_F!X14),IF($AV$7="G",IF(U2_G!X14="","",U2_G!X14),IF($AV$7="H",IF(U2_H!X14="","",U2_H!X14),""))))))))) ->  | Y14: Le cahier des charges fonctionnel
A15: =IF($AV$7="","",IF($AV$7="A",IF(U2_A!A15="","",U2_A!A15),IF($AV$7="B",IF(U2_B!A15="","",U2_B!A15),IF($AV$7="C",IF(U2_C!A15="","",U2_C!A15),IF($AV$7="D",IF(U2_D!A15="","",U2_D!A15),IF($AV$7="E",IF(U2_E!A15="","",U2_E!A15),IF($AV$7="F",IF(U2_F!A15="","",U2_F!A15),IF($AV$7="G",IF(U2_G!A15="","",U2_G!A15),IF($AV$7="H",IF(U2_H!A15="","",U2_H!A15),""))))))))) ->  | B15: Le bien et les conditions de son environnement | X15: =IF($AV$7="","",IF($AV$7="A",IF(U2_A!X15="","",U2_A!X15),IF($AV$7="B",IF(U2_B!X15="","",U2_B!X15),IF($AV$7="C",IF(U2_C!X15="","",U2_C!X15),IF($AV$7="D",IF(U2_D!X15="","",U2_D!X15),IF($AV$7="E",IF(U2_E!X15="","",U2_E!X15),IF($AV$7="F",IF(U2_F!X15="","",U2_F!X15),IF($AV$7="G",IF(U2_G!X15="","",U2_G!X15),IF($AV$7="H",IF(U2_H!X15="","",U2_H!X15),""))))))))) ->  | Y15: L’équipement informatique
A16: =IF($AV$7="","",IF($AV$7="A",IF(U2_A!A16="","",U2_A!A16),IF($AV$7="B",IF(U2_B!A16="","",U2_B!A16),IF($AV$7="C",IF(U2_C!A16="","",U2_C!A16),IF($AV$7="D",IF(U2_D!A16="","",U2_D!A16),IF($AV$7="E",IF(U2_E!A16="","",U2_E!A16),IF($AV$7="F",IF(U2_F!A16="","",U2_F!A16),IF($AV$7="G",IF(U2_G!A16="","",U2_G!A16),IF($AV$7="H",IF(U2_H!A16="","",U2_H!A16),""))))))))) ->  | B16: Les normes | X16: =IF($AV$7="","",IF($AV$7="A",IF(U2_A!X16="","",U2_A!X16),IF($AV$7="B",IF(U2_B!X16="","",U2_B!X16),IF($AV$7="C",IF(U2_C!X16="","",U2_C!X16),IF($AV$7="D",IF(U2_D!X16="","",U2_D!X16),IF($AV$7="E",IF(U2_E!X16="","",U2_E!X16),IF($AV$7="F",IF(U2_F!X16="","",U2_F!X16),IF($AV$7="G",IF(U2_G!X16="","",U2_G!X16),IF($AV$7="H",IF(U2_H!X16="","",U2_H!X16),""))))))))) ->  | Y16: Les logiciels
A17: =IF($AV$7="","",IF($AV$7="A",IF(U2_A!A17="","",U2_A!A17),IF($AV$7="B",IF(U2_B!A17="","",U2_B!A17),IF($AV$7="C",IF(U2_C!A17="","",U2_C!A17),IF($AV$7="D",IF(U2_D!A17="","",U2_D!A17),IF($AV$7="E",IF(U2_E!A17="","",U2_E!A17),IF($AV$7="F",IF(U2_F!A17="","",U2_F!A17),IF($AV$7="G",IF(U2_G!A17="","",U2_G!A17),IF($AV$7="H",IF(U2_H!A17="","",U2_H!A17),""))))))))) ->  | B17: Toutes documentations techniques | X17: =IF($AV$7="","",IF($AV$7="A",IF(U2_A!X17="","",U2_A!X17),IF($AV$7="B",IF(U2_B!X17="","",U2_B!X17),IF($AV$7="C",IF(U2_C!X17="","",U2_C!X17),IF($AV$7="D",IF(U2_D!X17="","",U2_D!X17),IF($AV$7="E",IF(U2_E!X17="","",U2_E!X17),IF($AV$7="F",IF(U2_F!X17="","",U2_F!X17),IF($AV$7="G",IF(U2_G!X17="","",U2_G!X17),IF($AV$7="H",IF(U2_H!X17="","",U2_H!X17),""))))))))) ->  | Y17: Le plan de prévention
A18: =IF($AV$7="","",IF($AV$7="A",IF(U2_A!A18="","",U2_A!A18),IF($AV$7="B",IF(U2_B!A18="","",U2_B!A18),IF($AV$7="C",IF(U2_C!A18="","",U2_C!A18),IF($AV$7="D",IF(U2_D!A18="","",U2_D!A18),IF($AV$7="E",IF(U2_E!A18="","",U2_E!A18),IF($AV$7="F",IF(U2_F!A18="","",U2_F!A18),IF($AV$7="G",IF(U2_G!A18="","",U2_G!A18),IF($AV$7="H",IF(U2_H!A18="","",U2_H!A18),""))))))))) ->  | B18: Le document unique d’évaluation des risques | X18: =IF($AV$7="","",IF($AV$7="A",IF(U2_A!X18="","",U2_A!X18),IF($AV$7="B",IF(U2_B!X18="","",U2_B!X18),IF($AV$7="C",IF(U2_C!X18="","",U2_C!X18),IF($AV$7="D",IF(U2_D!X18="","",U2_D!X18),IF($AV$7="E",IF(U2_E!X18="","",U2_E!X18),IF($AV$7="F",IF(U2_F!X18="","",U2_F!X18),IF($AV$7="G",IF(U2_G!X18="","",U2_G!X18),IF($AV$7="H",IF(U2_H!X18="","",U2_H!X18),""))))))))) ->  | Y18: Les outils descripteurs (grafcet, chronogramme…)
A19: =IF($AV$7="","",IF($AV$7="A",IF(U2_A!A19="","",U2_A!A19),IF($AV$7="B",IF(U2_B!A19="","",U2_B!A19),IF($AV$7="C",IF(U2_C!A19="","",U2_C!A19),IF($AV$7="D",IF(U2_D!A19="","",U2_D!A19),IF($AV$7="E",IF(U2_E!A19="","",U2_E!A19),IF($AV$7="F",IF(U2_F!A19="","",U2_F!A19),IF($AV$7="G",IF(U2_G!A19="","",U2_G!A19),IF($AV$7="H",IF(U2_H!A19="","",U2_H!A19),""))))))))) ->  | B19: Toutes informations en provenance de l’utilisateur | X19: =IF($AV$7="","",IF($AV$7="A",IF(U2_A!X19="","",U2_A!X19),IF($AV$7="B",IF(U2_B!X19="","",U2_B!X19),IF($AV$7="C",IF(U2_C!X19="","",U2_C!X19),IF($AV$7="D",IF(U2_D!X19="","",U2_D!X19),IF($AV$7="E",IF(U2_E!X19="","",U2_E!X19),IF($AV$7="F",IF(U2_F!X19="","",U2_F!X19),IF($AV$7="G",IF(U2_G!X19="","",U2_G!X19),IF($AV$7="H",IF(U2_H!X19="","",U2_H!X19),""))))))))) ->  | Y19: Le constat de défaillance.
A20: =IF($AV$7="","",IF($AV$7="A",IF(U2_A!A20="","",U2_A!A20),IF($AV$7="B",IF(U2_B!A20="","",U2_B!A20),IF($AV$7="C",IF(U2_C!A20="","",U2_C!A20),IF($AV$7="D",IF(U2_D!A20="","",U2_D!A20),IF($AV$7="E",IF(U2_E!A20="","",U2_E!A20),IF($AV$7="F",IF(U2_F!A20="","",U2_F!A20),IF($AV$7="G",IF(U2_G!A20="","",U2_G!A20),IF($AV$7="H",IF(U2_H!A20="","",U2_H!A20),""))))))))) ->  | B20: Les contraintes dans l’environnement | X20: =IF($AV$7="","",IF($AV$7="A",IF(U2_A!X20="","",U2_A!X20),IF($AV$7="B",IF(U2_B!X20="","",U2_B!X20),IF($AV$7="C",IF(U2_C!X20="","",U2_C!X20),IF($AV$7="D",IF(U2_D!X20="","",U2_D!X20),IF($AV$7="E",IF(U2_E!X20="","",U2_E!X20),IF($AV$7="F",IF(U2_F!X20="","",U2_F!X20),IF($AV$7="G",IF(U2_G!X20="","",U2_G!X20),IF($AV$7="H",IF(U2_H!X20="","",U2_H!X20),""))))))))) ->  | Y20: Les impératifs de production.
A21: =IF($AV$7="","",IF($AV$7="A",IF(U2_A!A21="","",U2_A!A21),IF($AV$7="B",IF(U2_B!A21="","",U2_B!A21),IF($AV$7="C",IF(U2_C!A21="","",U2_C!A21),IF($AV$7="D",IF(U2_D!A21="","",U2_D!A21),IF($AV$7="E",IF(U2_E!A21="","",U2_E!A21),IF($AV$7="F",IF(U2_F!A21="","",U2_F!A21),IF($AV$7="G",IF(U2_G!A21="","",U2_G!A21),IF($AV$7="H",IF(U2_H!A21="","",U2_H!A21),""))))))))) ->  | B21: Les délais d’interventions | X21: =IF($AV$7="","",IF($AV$7="A",IF(U2_A!X21="","",U2_A!X21),IF($AV$7="B",IF(U2_B!X21="","",U2_B!X21),IF($AV$7="C",IF(U2_C!X21="","",U2_C!X21),IF($AV$7="D",IF(U2_D!X21="","",U2_D!X21),IF($AV$7="E",IF(U2_E!X21="","",U2_E!X21),IF($AV$7="F",IF(U2_F!X21="","",U2_F!X21),IF($AV$7="G",IF(U2_G!X21="","",U2_G!X21),IF($AV$7="H",IF(U2_H!X21="","",U2_H!X21),""))))))))) ->  | Y21: Toutes documentations techniques
A22: =IF($AV$7="","",IF($AV$7="A",IF(U2_A!A22="","",U2_A!A22),IF($AV$7="B",IF(U2_B!A22="","",U2_B!A22),IF($AV$7="C",IF(U2_C!A22="","",U2_C!A22),IF($AV$7="D",IF(U2_D!A22="","",U2_D!A22),IF($AV$7="E",IF(U2_E!A22="","",U2_E!A22),IF($AV$7="F",IF(U2_F!A22="","",U2_F!A22),IF($AV$7="G",IF(U2_G!A22="","",U2_G!A22),IF($AV$7="H",IF(U2_H!A22="","",U2_H!A22),""))))))))) ->  | B22: Un groupe de travail. | X22: =IF($AV$7="","",IF($AV$7="A",IF(U2_A!X22="","",U2_A!X22),IF($AV$7="B",IF(U2_B!X22="","",U2_B!X22),IF($AV$7="C",IF(U2_C!X22="","",U2_C!X22),IF($AV$7="D",IF(U2_D!X22="","",U2_D!X22),IF($AV$7="E",IF(U2_E!X22="","",U2_E!X22),IF($AV$7="F",IF(U2_F!X22="","",U2_F!X22),IF($AV$7="G",IF(U2_G!X22="","",U2_G!X22),IF($AV$7="H",IF(U2_H!X22="","",U2_H!X22),""))))))))) ->  | Y22: Les moyens de communication
A23: =IF($AV$7="","",IF($AV$7="A",IF(U2_A!A23="","",U2_A!A23),IF($AV$7="B",IF(U2_B!A23="","",U2_B!A23),IF($AV$7="C",IF(U2_C!A23="","",U2_C!A23),IF($AV$7="D",IF(U2_D!A23="","",U2_D!A23),IF($AV$7="E",IF(U2_E!A23="","",U2_E!A23),IF($AV$7="F",IF(U2_F!A23="","",U2_F!A23),IF($AV$7="G",IF(U2_G!A23="","",U2_G!A23),IF($AV$7="H",IF(U2_H!A23="","",U2_H!A23),""))))))))) ->  | B23: La fiche de procédures | X23: =IF($AV$7="","",IF($AV$7="A",IF(U2_A!X23="","",U2_A!X23),IF($AV$7="B",IF(U2_B!X23="","",U2_B!X23),IF($AV$7="C",IF(U2_C!X23="","",U2_C!X23),IF($AV$7="D",IF(U2_D!X23="","",U2_D!X23),IF($AV$7="E",IF(U2_E!X23="","",U2_E!X23),IF($AV$7="F",IF(U2_F!X23="","",U2_F!X23),IF($AV$7="G",IF(U2_G!X23="","",U2_G!X23),IF($AV$7="H",IF(U2_H!X23="","",U2_H!X23),""))))))))) ->  | Y23: La demande d’intervention ou le bon de travail.
A24: ÇRepérer les données fournies | Y24: ÇRepérer les données fournies
A25: Travail demandé
A26: =IF($AV$7="","",IF($AV$7="A",IF(U2_A!A26="","",U2_A!A26),IF($AV$7="B",IF(U2_B!A26="","",U2_B!A26),IF($AV$7="C",IF(U2_C!A26="","",U2_C!A26),IF($AV$7="D",IF(U2_D!A26="","",U2_D!A26),IF($AV$7="E",IF(U2_E!A26="","",U2_E!A26),IF($AV$7="F",IF(U2_F!A26="","",U2_F!A26),IF($AV$7="G",IF(U2_G!A26="","",U2_G!A26),IF($AV$7="H",IF(U2_H!A26="","",U2_H!A26),""))))))))) ->  | B26: A1-T1 | D26: Réaliser la maintenance corrective - Diagnostiquer les pannes.
A27: =IF($AV$7="","",IF($AV$7="A",IF(U2_A!A27="","",U2_A!A27),IF($AV$7="B",IF(U2_B!A27="","",U2_B!A27),IF($AV$7="C",IF(U2_C!A27="","",U2_C!A27),IF($AV$7="D",IF(U2_D!A27="","",U2_D!A27),IF($AV$7="E",IF(U2_E!A27="","",U2_E!A27),IF($AV$7="F",IF(U2_F!A27="","",U2_F!A27),IF($AV$7="G",IF(U2_G!A27="","",U2_G!A27),IF($AV$7="H",IF(U2_H!A27="","",U2_H!A27),""))))))))) ->  | B27: A1-T2 | D27: Réaliser la maintenance corrective - Préparer sa réparation, son dépannage.
A28: =IF($AV$7="","",IF($AV$7="A",IF(U2_A!A28="","",U2_A!A28),IF($AV$7="B",IF(U2_B!A28="","",U2_B!A28),IF($AV$7="C",IF(U2_C!A28="","",U2_C!A28),IF($AV$7="D",IF(U2_D!A28="","",U2_D!A28),IF($AV$7="E",IF(U2_E!A28="","",U2_E!A28),IF($AV$7="F",IF(U2_F!A28="","",U2_F!A28),IF($AV$7="G",IF(U2_G!A28="","",U2_G!A28),IF($AV$7="H",IF(U2_H!A28="","",U2_H!A28),""))))))))) ->  | B28: A1-T3 | D28: Réaliser la maintenance corrective - Réaliser des réparations, des dépannages dans les domaines : mécanique, électrique, pneumatique, hydraulique.
A29: =IF($AV$7="","",IF($AV$7="A",IF(U2_A!A29="","",U2_A!A29),IF($AV$7="B",IF(U2_B!A29="","",U2_B!A29),IF($AV$7="C",IF(U2_C!A29="","",U2_C!A29),IF($AV$7="D",IF(U2_D!A29="","",U2_D!A29),IF($AV$7="E",IF(U2_E!A29="","",U2_E!A29),IF($AV$7="F",IF(U2_F!A29="","",U2_F!A29),IF($AV$7="G",IF(U2_G!A29="","",U2_G!A29),IF($AV$7="H",IF(U2_H!A29="","",U2_H!A29),""))))))))) ->  | B29: A3-T1 | D29: Mettre en œuvre des améliorations, des modifications - Proposer des améliorations ou des modifications
A30: =IF($AV$7="","",IF($AV$7="A",IF(U2_A!A30="","",U2_A!A30),IF($AV$7="B",IF(U2_B!A30="","",U2_B!A30),IF($AV$7="C",IF(U2_C!A30="","",U2_C!A30),IF($AV$7="D",IF(U2_D!A30="","",U2_D!A30),IF($AV$7="E",IF(U2_E!A30="","",U2_E!A30),IF($AV$7="F",IF(U2_F!A30="","",U2_F!A30),IF($AV$7="G",IF(U2_G!A30="","",U2_G!A30),IF($AV$7="H",IF(U2_H!A30="","",U2_H!A30),""))))))))) ->  | B30: A3-T2 | D30: Mettre en œuvre des améliorations, des modifications - Préparer et réaliser l’amélioration ou la modification
A31: Consulter le référentiel des activités professionnelles pour obtenir le détail des tâches.
A32: Ç Repérer les tâches demandées (ce sont celles qui correspondent à l’unité dans le référentiel de certification, à l’exclusion de toute autre)
A33: Appréciation globale et proposition de note :
A35: Noms et signatures des évaluateurs : | AJ35: Note proposée : | AO35: =IF(AI127="","",AI127) ->  | AR35: /20
AJ36: Note affectée de son coefficient : | AO36: =IF(AO35="","",AO35*4) ->  | AR36: /80
A37: Baccalauréat professionnel « maintenance des équipements industriels » – Unité U 2 | AI37: Validé | AM37: - Synthèse +
A39: CP 2.3 : Analyser les solutions de gestion, de distribution, de conversion des énergies pneumatique hydraulique et électrique. | AE39: Evalué | AI39: =IF(AE39="Non Evalué","NE",IF(AE39="Evalué","E","")) -> E | AJ39: =COUNTIF(AI41:AL58,"Validé") -> 0 | AK39: =COUNTIF(AI41:AL58,"Non Validé") -> 0 | AL39: =COUNTIF(AI41:AL58,"Non Evalué") -> 0 | AV39: =IF(AE39="","Souhaitez-vous évaluer la compétence ?",IF(AND(AE39="Non Evalué",OR(AJ39<>0,AK39<>0)),"Vous avez choisi de ne pas évaluer la compétence. Ne rien indiquez dans la colonne Validé.",IF(AND(AE39="Evalué",OR(AI41="",AI43="",AI45="",AI47="",AI49="",AI51="",AI53="",AI55="",AI57="")),"Vous avez choisi d'évaluer la compétence. Indiquez pour chaques actions : Validé, Non Validé ou Non Evalué.",IF(OR(AE39="Non Evalué",(AJ39+AK39)=0),"",CONCATENATE(ROUND((100*AJ40/(AJ40+AK40)),0)," % d'actions validées. ",AJ39," validée(s) sur ",AJ39+AK39," . Conseil: Au maximum , grisez ",ROUND((100*AJ40/(AJ40+AK40))*8/100,0)," colonnes"))))) -> Vous avez choisi d'évaluer la compétence. Indiquez pour chaques actions : Validé, Non Validé ou Non Evalué.
AJ40: =SUMPRODUCT((AI41:AL58="Validé")*(Bareme!AE63:AE80)) -> 0 | AK40: =SUMPRODUCT((AI41:AL58="Non Validé")*(Bareme!AE63:AE80)) -> 0
A41: 1 | C41: Décoder toutes formes de représentation des circuits de distribution des énergies. | N41: Les représentations sont lues et comprises sans erreur. | AV41: 0
A43: 2 | C43: Identifier les matériels qui concourent à assurer la protection des personnes et des biens. | N43: Les matériels qui concourent à assurer la protection des personnes et des biens sont localisés, reconnus et nommés. Le régime de neutre de l’installation est identifié.
A45: 3 | C45: Identifier et désigner pour chaque solution technique (gestion, traitement, distribution, protection, conversion) : • les composants utilisés, • les performances attendues ou constatées, • les caractéristiques, • les conditions d’utilisations, • les risques de défaillances | N45: Les composants constitutifs des solutions techniques et leurs éléments d’assemblage sont identifiés et désignés exhaustivement et sans erreur.
N47: Les caractéristiques, les performances, les conditions d’utilisations, les risques de défaillances sont listés.
N49: Les dérives de fonctionnement sont justifiées.
N51: Les risques de défaillances sont listés et décrits.
A53: 4 | C53: Décrire d’un point de vue temporel : • l’évolution des niveaux d’énergie • les comportements des différents composants. | N53: Les outils descripteurs sont maîtrisés
N55: La description temporelle représente fidèlement des paramètres des énergies et le fonctionnement des composants.
AM56: Commentaires:
A57: 5 | C57: Décrire et valider par le calcul les niveaux d’énergie associés aux solutions techniques à assurer. | N57: Les paramètres (débit, pression, intensité…) sont vérifiés.
A59: CP 3.1 : Préparer son intervention. | AE59: Evalué | AI59: =IF(AE59="Non Evalué","NE",IF(AE59="Evalué","E","")) -> E | AJ59: =COUNTIF(AI61:AL82,"Validé") -> 0 | AK59: =COUNTIF(AI61:AL82,"Non Validé") -> 0 | AL59: =COUNTIF(AI61:AL82,"Non Evalué") -> 0 | AV59: =IF(AE59="","Souhaitez-vous évaluer la compétence ?",IF(AND(AE59="Non Evalué",OR(AJ59<>0,AK59<>0)),"Vous avez choisi de ne pas évaluer la compétence. Ne rien indiquez dans la colonne Validé.",IF(AND(AE59="Evalué",OR(AI61="",AI63="",AI65="",AI67="",AI69="",AI71="",AI73="",AI75="",AI77="",AI79="",AI81="")),"Vous avez choisi d'évaluer la compétence. Indiquez pour chaques actions : Validé, Non Validé ou Non Evalué.",IF(OR(AE59="Non Evalué",(AJ59+AK59)=0),"",CONCATENATE(ROUND((100*AJ60/(AJ60+AK60)),0)," % d'actions validées. ",AJ59," validée(s) sur ",AJ59+AK59," . Conseil: Au maximum , grisez ",ROUND((100*AJ60/(AJ60+AK60))*8/100,0)," colonnes"))))) -> Vous avez choisi d'évaluer la compétence. Indiquez pour chaques actions : Validé, Non Validé ou Non Evalué.
AJ60: =SUMPRODUCT((AI61:AL82="Validé")*(Bareme!AE83:AE104)) -> 0 | AK60: =SUMPRODUCT((AI61:AL82="Non Validé")*(Bareme!AE83:AE104)) -> 0
A61: 1 | C61: Prendre connaissance de la demande d’intervention. | N61: Les indications portées sur la demande d’intervention et au plan de prévention sont identifiées et assimilées (comprises). | AV61: 0
A63: 2 | C63: Collecter les documents nécessaires à l’intervention. | N63: Les documents collectés permettent d’organiser et de réaliser l’intervention.
A65: 3 | C65: Evaluer les difficultés d’accès aux composants | N65: Les contraintes d’accès sont repérées et énumérées.
A67: 4 | C67: Situer le ou les dispositifs de sécurité interne ou externe du bien. | N67: Les dispositifs de sécurités sont convenablement localisés.
A69: 5 | C69: Identifier les risques de son intervention | N69: Les risques sont bien repérés
A71: 6 | C71: Recenser les moyens de protections individuels et collectifs. | N71: Les moyens sont listés exhaustivement.
A73: 7 | C73: Formuler les modifications à apporter si nécessaire. | N73: Les nouvelles contraintes sont prises en compte.
AM74: Commentaires:
A75: 8 | C75: Analyser ou établir la procédure de son intervention. | N75: La procédure est comprise ou judicieusement rédigée.
A77: 9 | C77: Evaluer le temps nécessaire et le délai de livraison (mise à disposition après réparation). | N77: La durée de l’intervention prévue est adaptée.
A79: 10 | C79: Planifier son intervention en tenant compte : • des impératifs de production, • des stocks disponibles, • de la durée estimée de son intervention | N79: Tous les critères de planification sont respectés.
A81: 11 | C81: Rassembler et inventorier les outils, les appareils de mesures et de contrôles, les moyens de manutention et de sécurité nécessaires. | N81: L’ensemble des moyens est identifié, vérifié et répertorié.
A83: Baccalauréat professionnel « maintenance des équipements industriels » – Unité U 2 | AI83: Validé | AM83: - Synthèse +
A85: CP 3.2 : Émettre des propositions d’améliorations d’un bien | AE85: Evalué | AI85: =IF(AE85="Non Evalué","NE",IF(AE85="Evalué","E","")) -> E | AJ85: =COUNTIF(AI87:AL108,"Validé") -> 0 | AK85: =COUNTIF(AI87:AL108,"Non Validé") -> 0 | AL85: =COUNTIF(AI87:AL108,"Non Evalué") -> 0 | AV85: =IF(AE85="","Souhaitez-vous évaluer la compétence ?",IF(AND(AE85="Non Evalué",OR(AJ85<>0,AK85<>0)),"Vous avez choisi de ne pas évaluer la compétence. Ne rien indiquez dans la colonne Validé.",IF(AND(AE85="Evalué",OR(AI87="",AI89="",AI91="",AI93="",AI95="",AI97="",AI99="",AI101="",AI103="",AI105="",AI107="")),"Vous avez choisi d'évaluer la compétence. Indiquez pour chaques actions : Validé, Non Validé ou Non Evalué.",IF(OR(AE85="Non Evalué",(AJ85+AK85)=0),"",CONCATENATE(ROUND((100*AJ86/(AJ86+AK86)),0)," % d'actions validées. ",AJ85," validée(s) sur ",AJ85+AK85," . Conseil: Au maximum , grisez ",ROUND((100*AJ86/(AJ86+AK86))*8/100,0)," colonnes"))))) -> Vous avez choisi d'évaluer la compétence. Indiquez pour chaques actions : Validé, Non Validé ou Non Evalué.
AJ86: =SUMPRODUCT((AI87:AL108="Validé")*(Bareme!AE107:AE128)) -> 0 | AK86: =SUMPRODUCT((AI87:AL108="Non Validé")*(Bareme!AE107:AE128)) -> 0
A87: 1 | C87: Exploiter l’historique du bien. | N87: Les événements sont analysés. | AV87: 0
N89: Les données liés à la maintenabilité (fiabilité, accessibilité, temps d’intervention…) et à la sécurité, justifiant la proposition de modification, sont repérées.
A91: 2 | C91: Argumenter la proposition d’amélioration au regard des problèmes constatés (maintenabilité, sécurité). | N91: Les justifications orales et écrites sont exploitables et pertinentes. La proposition est justifiée économiquement. | AM91: Commentaires:
A93: 3 | C93: Proposer des solutions d’amélioration d’un point de vue maintenance sur : • la partie commande • la partie opérative • l’environnement Exemple :  une nouvelle solution constructive  un composant de remplacement… | N93: La solution ou le composant proposé doit permettre d’améliorer la fiabilité,
N95: La solution ou le composant proposé doit permettre de diminuer le temps d’intervention,
N97: La solution ou le composant proposé doit permettre d’améliorer l’accessibilité,
N99: La solution ou le composant proposé doit permettre de diminuer le coût des pièces de rechanges
N101: La solution ou le composant proposé doit permettre d’améliorer la sécurité.
N103: La sécurité est optimisée.
A105: 4 | C105: Produire des documents présentant l’évolution. | N105: Les documents produits sont exploitables et conformes aux normes en vigueur quand ils y font référence.
N107: L’évolution du plan de prévention est proposée.
E124: =IF(OR(I135="",AND(AJ39="",AK39="",AJ59="",AK59="",AJ85="",AK85="")=0),"",CONCATENATE("PROPOSITION: ",CEILING(I135,0.5),"/20 (",ROUND(100*COUNTIF(U134:U136,"E")/(COUNTIF(U134:U136,"E")+COUNTIF(U134:U136,"NE")),0),"% des compétences évaluées).")) -> PROPOSITION: 0/20 (100% des compétences évaluées).
E127: Proposition des évaluateurs:
E131: Ne pas effacer
O132: =CONCATENATE("Statistique U31 de ",$AE$4) -> 
O133: Compétences | P133: =IF(AE4="","",AE4) ->  | Q133: Satisfaction maximale | R133: Satisfaction moyenne | S133: =CONCATENATE("Statistique U2 de ",$AE$4) ->  | T133: Coefficients | U133: Validée ou Non Validée
C134: Somme | I134: =SUMPRODUCT((P134:P136)) -> 0 | K134: =SUM(Q134:Q136) -> 800 | O134: =A39 -> CP 2.3 : Analyser les solutions de gestion, de distribution, de conversion des énergies pneumatique hydraulique et électrique. | P134: =IF(OR(U134="NE",U134=""),"",S134*T134) -> 0 | Q134: =IF(OR(U134="NE",U134=""),"",T134*8) -> 320 | R134: =IF(OR(U134="NE",U134=""),"",Q134/2) -> 160 | S134: =IF($AV$41="","",$AV$41) -> 0 | T134: =Bareme!AE61 -> 40 | U134: =IF(AI39="","",AI39) -> E
C135: Moyenne /20 | I135: =IF($K$134=0,"",K135*$I$134/$K$134) -> 0 | K135: 20 | O135: =A59 -> CP 3.1 : Préparer son intervention. | P135: =IF(OR(U135="NE",U135=""),"",S135*T135) -> 0 | Q135: =IF(OR(U135="NE",U135=""),"",T135*8) -> 240 | R135: =IF(OR(U135="NE",U135=""),"",Q135/2) -> 120 | S135: =IF($AV$61="","",$AV$61) -> 0 | T135: =Bareme!AE81 -> 30 | U135: =IF(AI59="","",AI59) -> E
C136: Moyenne /80 | I136: =IF($K$134=0,"",K136*$I$134/$K$134) -> 0 | K136: 80 | O136: =A85 -> CP 3.2 : Émettre des propositions d’améliorations d’un bien | P136: =IF(OR(U136="NE",U136=""),"",S136*T136) -> 0 | Q136: =IF(OR(U136="NE",U136=""),"",T136*8) -> 240 | R136: =IF(OR(U136="NE",U136=""),"",Q136/2) -> 120 | S136: =IF($AV$87="","",$AV$87) -> 0 | T136: =Bareme!AE105 -> 30 | U136: =IF(AI85="","",AI85) -> E
E137: Ne pas effacer

Sheet U31 (hidden)
A1: Baccalauréat professionnel « maintenance des équipements industriels »
A2: Épreuve E31 (Unité U31) : SURVEILLER, AMELIORER, MODIFIER LES EQUIPEMENTS Parties A et B
A3: Établissement : (tampon) | X3: Session : | AE3: =IF(Bilan!B2="","",Bilan!B2) -> 
A4: =IF(Bilan!B3="","",Bilan!B3) ->  | X4: Nom du candidat: | AE4: =IF(INDEX((Bilan!B5:B34),(MATCH(RIGHT(CELL("nomfichier",A1),LEN(CELL("nomfichier",A1))-FIND("]",CELL("nomfichier",A1))),Bilan!G5:G34,0)))="","",INDEX((Bilan!B5:B34),(MATCH(RIGHT(CELL("nomfichier",A1),LEN(CELL("nomfichier",A1))-FIND("]",CELL("nomfichier",A1))),Bilan!G5:G34,0)))) -> 
X5: Prénom :
X6: Date de l'évaluation:
A7: Lieu d’évaluation :
A8: Etablissement
A9: Entreprise :
A10: Description sommaire du travail demandé :
A13: Données et condition de réalisation.
A14: X | B14: Le bien et les conditions de son environnement | X14: X | Y14: Les composants et les conditions de leur environnement
A15: X | B15: Le dossier technique du bien et son dossier de maintenance sur supports papiers ou supports numériques | X15: X | Y15: Toutes informations en provenance de l’utilisateur ou d’autres intervenants
A16: X | B16: Les consignes d’exploitation | X16: X | Y16: Les consommables
A17: X | B17: Toutes informations en provenance de l’utilisateur | X17: X | Y17: Les équipements de protection individuels et collectifs
A18: X | B18: Document unique d’évaluation des risques | X18: X | Y18: Les outillages, matériels de contrôle, de mesure, moyens de manutention.
A19: X | B19: Le document de recette | X19: X | Y19: Les nouvelles énergies sont disponibles.
A20: X | B20: Les normes | X20: X | Y20: Le dossier de manutention.
A21: X | B21: Toutes documentations techniques | X21: X | Y21: Le dossier environnement.
A22: X | B22: Le plan de prévention | X22: X | Y22: Le dossier historique du bien.
A23: X | B23: Le bon de travail. | X23: X | Y23: Les documents utilisateurs du ou des postes de travail.
A24: X | B24: Les consignes et/ou procédures écrites | X24: X | Y24: Tous documents nouveaux nécessaires à la compréhension de l’information : - Nouvelle notice technique. Compte-rendu d’intervention.-Documents de modification.
A25: X | B25: Plan d’implantation du bien | X25: X | Y25: Le dossier technique du bien et de la modification
A27: ÇRepérer les données fournies | Y27: ÇRepérer les données fournies
A28: Travail demandé
A29: X | B29: A1-T4 | D29: Réaliser la maintenance corrective - Rendre compte de son intervention.
A30: X | B30: A1-T5 | D30: Réaliser la maintenance corrective - Actualiser le dossier technique des biens.
A31: X | B31: A2-T1 | D31: Réaliser la maintenance préventive - Réaliser des opérations de surveillance.
A32: X | B32: A2-T3 | D32: Réaliser la maintenance préventive - Alerter si une anomalie est constatée.
A33: X | B33: A3-T2 | D33: Mettre en œuvre des améliorations, des modifications -Préparer et réaliser l’amélioration ou la modification.
A34: X | B34: A5-T1 | D34: Communiquer avec le(s) utilisateur(s), le(s) client(s) et au sein d’une équipe - Dialoguer au sein d’une équipe, d’un groupe de réflexion.
A35: X | B35: A5-T2 | D35: Communiquer avec le(s) utilisateur(s), le(s) client(s) et au sein d’une équipe - Signaler, transmettre des informations.
A36: Consulter le référentiel des activités professionnelles pour obtenir le détail des tâches.
A37: Ç Repérer les tâches demandées (ce sont celles qui correspondent à l’unité dans le référentiel de certification, à l’exclusion de toute autre)
A38: Appréciation globale et proposition de note :
A40: Noms et signatures des évaluateurs : | AJ40: Note proposée : | AO40: =IF(AI184="","",AI184) ->  | AR40: /20
AJ41: Note affectée de son coefficient : | AO41: =IF(AO40="","",AO40*2) ->  | AR41: /40
A42: Nota important : La proposition de note sera issue de cette grille d’évaluation, complétée conjointement par le tuteur de l’entreprise et l’enseignant lors de la situation d’évaluation, en s’appuyant sur le livret individuel de formation. Un dossier constitué de fiches de compte rendu d’activités, renseignées par le candidat lors des travaux réalisés en entreprise servira de support lors de l’entretien. Ce dossier doit contenir les éléments justifiant l’évaluation proposée ; il n’est pas noté.
A43: Baccalauréat professionnel « maintenance des équipements industriels » – Unité U 31 Partie A de la sous épreuve U31 : Les activités professionnelles | AI43: Validé | AM43: - Synthèse +
A45: CP 1.4 - Exécuter des opérations de surveillance et d’inspection | AE45: Evalué | AI45: =IF(AE45="Non Evalué","NE",IF(AE45="Evalué","E","")) -> E | AJ45: =COUNTIF(AI47:AL62,"Validé") -> 0 | AK45: =COUNTIF(AI47:AL62,"Non Validé") -> 0 | AL45: =COUNTIF(AI47:AL62,"Non Evalué") -> 0 | AV45: =IF(AE45="","Souhaitez-vous évaluer la compétence ?",IF(AND(AE45="Non Evalué",OR(AJ45<>0,AK45<>0)),"Vous avez choisi de ne pas évaluer la compétence. Ne rien indiquez dans la colonne Validé.",IF(AND(AE45="Evalué",OR(AI47="",AI49="",AI51="",AI53="",AI55="",AI57="",AI59="",AI61="")),"Vous avez choisi d'évaluer la compétence. Indiquez pour chaques actions : Validé, Non Validé ou Non Evalué.",IF(OR(AE45="Non Evalué",(AJ45+AK45)=0),"",CONCATENATE(ROUND((100*AJ46/(AJ46+AK46)),0)," % d'actions validées. ",AJ45," validée(s) sur ",AJ45+AK45," . Conseil: Au maximum , grisez ",ROUND((100*AJ46/(AJ46+AK46))*8/100,0)," colonnes"))))) -> Vous avez choisi d'évaluer la compétence. Indiquez pour chaques actions : Validé, Non Validé ou Non Evalué.
AJ46: =SUMPRODUCT((AI47:AL62="Validé")*(Bareme!AE134:AE149)) -> 0 | AK46: =SUMPRODUCT((AI47:AL62="Non Validé")*(Bareme!AE134:AE149)) -> 0
A47: 1 | C47: Mettre le bien dans les conditions requises pour effectuer les mesures, les contrôles et les surveillances. | N47: Le plan de prévention est compris et respecté | AV47: 0
A49: 2 | C49: Surveiller un bien : • surveiller le fonctionnement en mobilisant les cinq sens, • vérifier les données de contrôle (indicateurs, voyants…), repérer les dérives. | N49: Les signes d’anomalies sont détectés.
AM50: Commentaires:
N51: Les données sont lues et les dérives détectées.
A53: 3 | C53: Effectuer les mesures et les contrôles : • localiser les points de contrôle sur le bien, • régler, calibrer les appareils ou matériels de contrôle, • collecter et reporter les résultats des mesures et des contrôles. | N53: Les points de contrôle sont repérés sans erreurs.
N55: Les calibres sont choisis et les réglages sont effectués correctement.
N57: Les résultats des mesures et contrôles sont collectés et écrits sans erreurs.
A59: 4 | C59: Remettre le bien dans les conditions normales de fonctionnement. | N59: Le bien est dans les conditions normales de fonctionnement.
A61: 5 | C61: Saisir ou rédiger un compte-rendu d’intervention. | N61: Le compte-rendu, écrit ou saisi, est pertinent et exploitable.
A63: CP 1.5 - Exécuter les travaux d’amélioration ou de modification du bien | AE63: Evalué | AI63: =IF(AE63="Non Evalué","NE",IF(AE63="Evalué","E","")) -> E | AJ63: =COUNTIF(AI65:AL98,"Validé") -> 0 | AK63: =COUNTIF(AI65:AL98,"Non Validé") -> 0 | AL63: =COUNTIF(AI65:AL98,"Non Evalué") -> 0 | AV63: =IF(AE63="","Souhaitez-vous évaluer la compétence ?",IF(AND(AE63="Non Evalué",OR(AJ63<>0,AK63<>0)),"Vous avez choisi de ne pas évaluer la compétence. Ne rien indiquez dans la colonne Validé.",IF(AND(AE63="Evalué",OR(AI65="",AI67="",AI69="",AI71="",AI73="",AI75="",AI77="",AI79="",AI81="",AI83="",AI85="",AI87="",AI89="",AI91="",AI93="",AI95="",AI97="")),"Vous avez choisi d'évaluer la compétence. Indiquez pour chaques actions : Validé, Non Validé ou Non Evalué.",IF(OR(AE63="Non Evalué",(AJ63+AK63)=0),"",CONCATENATE(ROUND((100*AJ64/(AJ64+AK64)),0)," % d'actions validées. ",AJ63," validée(s) sur ",AJ63+AK63," . Conseil: Au maximum , grisez ",ROUND((100*AJ64/(AJ64+AK64))*8/100,0)," colonnes"))))) -> Vous avez choisi d'évaluer la compétence. Indiquez pour chaques actions : Validé, Non Validé ou Non Evalué.
AJ64: =SUMPRODUCT((AI65:AL98="Validé")*(Bareme!AE152:AE185)) -> 0 | AK64: =SUMPRODUCT((AI65:AL98="Non Validé")*(Bareme!AE152:AE185)) -> 0
A65: 1 | C65: Préparer la zone d’intervention (bien et son environnement). | N65: La zone est libérée, nettoyée et sécurisée. | AV65: 0
N67: Les énergies sont repérées, le bien est consigné.
A69: 2 | C69: Effectuer la dépose de la partie du bien à modifier. | N69: Les composants sont repérés et déposés suivant un ordre logique.
N71: Les composants à conserver ne sont pas endommagés.
N73: Les éléments d’assemblage sont classés.
A75: 3 | C75: Réceptionner les travaux externalisés | N75: Les éléments reçus sont vérifiés : dimensions, nature des matériaux,
N77: Les éléments reçus sont vérifiés : quantité, aspect, caractéristiques … | AM77: Commentaires:
A79: 4 | C79: Installer les éléments de l’amélioration ou de la modification. | N79: Tous les composants sont assemblés et montés dans le respect des procédures et des notices techniques.
N81: Les énergies sont raccordées.
A83: 5 | C83: Effectuer les tests et procéder à la mise au point(réglages, paramétrages…) | N83: Les paramétrages sont corrects et respectent les procédures prédéfinies.
N85: Les réglages sont effectués.
N87: Le bien est prêt pour la mise en service.
A89: 6 | C89: Rétablir l’environnement du bien. | N89: L’environnement du bien est préparé et nettoyé.
N91: Les outillages et les équipements sont rangés.
N93: Les déchets sont éliminés.
N95: Les pièces, les composants, les consommables sont classés ou réformés.
A97: 7 | C97: Mettre en service le bien avec l’exploitant (après déconsignation). | N97: Les performances attendues sont atteintes.
A99: Baccalauréat professionnel « maintenance des équipements industriels » – Unité U 31 Partie A de la sous épreuve U31 : Les activités professionnelles | AI99: Validé | AM99: - Synthèse +
A101: CP 4.1 - Recevoir et transmettre des informations | AE101: Evalué | AI101: =IF(AE101="Non Evalué","NE",IF(AE101="Evalué","E","")) -> E | AJ101: =COUNTIF(AI103:AL118,"Validé") -> 0 | AK101: =COUNTIF(AI103:AL118,"Non Validé") -> 0 | AL101: =COUNTIF(AI103:AL118,"Non Evalué") -> 0 | AV101: =IF(AE101="","Souhaitez-vous évaluer la compétence ?",IF(AND(AE101="Non Evalué",OR(AJ101<>0,AK101<>0)),"Vous avez choisi de ne pas évaluer la compétence. Ne rien indiquez dans la colonne Validé.",IF(AND(AE101="Evalué",OR(AI103="",AI105="",AI107="",AI109="",AI111="",AI113="",AI115="",AI117="")),"Vous avez choisi d'évaluer la compétence. Indiquez pour chaques actions : Validé, Non Validé ou Non Evalué.",IF(OR(AE101="Non Evalué",(AJ101+AK101)=0),"",CONCATENATE(ROUND((100*AJ102/(AJ102+AK102)),0)," % d'actions validées. ",AJ101," validée(s) sur ",AJ101+AK101," . Conseil: Au maximum , grisez ",ROUND((100*AJ102/(AJ102+AK102))*8/100,0)," colonnes"))))) -> Vous avez choisi d'évaluer la compétence. Indiquez pour chaques actions : Validé, Non Validé ou Non Evalué.
AJ102: =SUMPRODUCT((AI103:AL118="Validé")*(Bareme!AE188:AE203)) -> 0 | AK102: =SUMPRODUCT((AI103:AL118="Non Validé")*(Bareme!AE188:AE203)) -> 0
A103: 1 | C103: Comprendre, s’approprier un ordre, une consigne, un constat de défaillance. Questionner l’exploitation du bien afin de compléter les informations. | N103: Les paramètres, les éléments du message sont compris sans déformation et dans leur intégralit | AV103: 0
N105: Les questions posées sont pertinentes par rapport à la problématique à résoudre et les réponses retenues sont en adéquation avec le problème.
AM106: Commentaires:
A107: 2 | C107: Extraire les éléments nécessaires à l’information au sein de la documentation disponible | N107: Le choix de la documentation retenue est judicieux et les informations collectées sont comprises et exploitées sans erreur.
A109: 3 | C109: Analyser les informations (ordre, consignes, constat) et les éléments recueillis (documentation). | N109: La synthèse est cohérente avec la problématique.
A111: 4 | C111: Formuler oralement ou par écrit la synthèse de son analyse en utilisant les diverses formes de langages et de communication technique ou scientifique. | N111: A l’écrit, la formulation est claire, univoque. Elle utilise le langage le mieux adapté pour la compréhension du message.
N113: Les désignations employées sont normalisées.
N115: L’expression orale doit être structurée et le vocabulaire utilisé précis. Elle permet une compréhension sans équivoque du message à transmettre.
N117: Le message transmis comporte les éléments essentiels.
A119: CP 4.2 - Rédiger et argumenter des comptes rendus. | AE119: Evalué | AI119: =IF(AE119="Non Evalué","NE",IF(AE119="Evalué","E","")) -> E | AJ119: =COUNTIF(AI121:AL136,"Validé") -> 0 | AK119: =COUNTIF(AI121:AL136,"Non Validé") -> 0 | AL119: =COUNTIF(AI121:AL136,"Non Evalué") -> 0 | AV119: =IF(AE119="","Souhaitez-vous évaluer la compétence ?",IF(AND(AE119="Non Evalué",OR(AJ119<>0,AK119<>0)),"Vous avez choisi de ne pas évaluer la compétence. Ne rien indiquez dans la colonne Validé.",IF(AND(AE119="Evalué",OR(AI121="",AI123="",AI125="",AI127="",AI129="",AI131="",AI133="",AI135="")),"Vous avez choisi d'évaluer la compétence. Indiquez pour chaques actions : Validé, Non Validé ou Non Evalué.",IF(OR(AE119="Non Evalué",(AJ119+AK119)=0),"",CONCATENATE(ROUND((100*AJ120/(AJ120+AK120)),0)," % d'actions validées. ",AJ119," validée(s) sur ",AJ119+AK119," . Conseil: Au maximum , grisez ",ROUND((100*AJ120/(AJ120+AK120))*8/100,0)," colonnes"))))) -> Vous avez choisi d'évaluer la compétence. Indiquez pour chaques actions : Validé, Non Validé ou Non Evalué.
AJ120: =SUMPRODUCT((AI121:AL136="Validé")*(Bareme!AE206:AE221)) -> 0 | AK120: =SUMPRODUCT((AI121:AL136="Non Validé")*(Bareme!AE206:AE221)) -> 0
A121: 1 | C121: Identifier les informations pertinentes relatives à la maintenance. | N121: Les informations pertinentes sont retenues. | AV121: 0
A123: 2 | C123: Choisir les outils de descriptions les mieux adaptés au compte-rendu. | N123: Les documents pour rendre compte sont proposés avec pertinence (schémas, plans, procédures, dossiers technique et de maintenance
AM124: Commentaires:
A125: 3 | C125: Rédiger et mettre en forme le compte-rendu. | N125: A l’écrit, la formulation est claire, univoque. Elle utilise le langage le mieux adapté pour la compréhension du compte-rendu
N127: Les désignations employées sont normalisées
N129: L’expression orale doit être structurée et le vocabulaire utilisé précis. Elle permet une compréhension sans équivoque du compte-rendu.
N131: Le compte-rendu transmis comporte les éléments essentiels.
A133: 4 | C133: Proposer si nécessaire : • les éléments de mise à jour des documents : techniques, de sécurités, de procédures • tous documents, informations nécessaires à la bonne compréhension de l’intervention | N133: Les éléments proposés sont pertinents et utilisables.
A135: 5 | C135: Préciser éventuellement les difficultés rencontrées. | N135: L’écart entre le travail réalisé et le travail demandé est décrit et argumenté
A137: Baccalauréat professionnel « maintenance des équipements industriels » – Unité U 31 Partie B de la sous épreuve U31 : Etude de cas | AI137: Validé | AM137: - Synthèse +
A139: Exposer l'étude de cas | AE139: Evalué | AI139: =IF(AE139="Non Evalué","NE",IF(AE139="Evalué","E","")) -> E | AJ139: =COUNTIF(AI141:AL154,"Validé") -> 0 | AK139: =COUNTIF(AI141:AL154,"Non Validé") -> 0 | AL139: =COUNTIF(AI141:AL154,"Non Evalué") -> 0 | AV139: =IF(AE139="","Souhaitez-vous évaluer la compétence ?",IF(AND(AE139="Non Evalué",OR(AJ139<>0,AK139<>0)),"Vous avez choisi de ne pas évaluer la compétence. Ne rien indiquez dans la colonne Validé.",IF(AND(AE139="Evalué",OR(AI141="",AI143="",AI145="",AI147="",AI149="",AI151="",AI153="")),"Vous avez choisi d'évaluer la compétence. Indiquez pour chaques actions : Validé, Non Validé ou Non Evalué.",IF(OR(AE139="Non Evalué",(AJ139+AK139)=0),"",CONCATENATE(ROUND((100*AJ140/(AJ140+AK140)),0)," % d'actions validées. ",AJ139," validée(s) sur ",AJ139+AK139," . Conseil: Au maximum , grisez ",ROUND((100*AJ140/(AJ140+AK140))*8/100,0)," colonnes"))))) -> Vous avez choisi d'évaluer la compétence. Indiquez pour chaques actions : Validé, Non Validé ou Non Evalué.
AJ140: =SUMPRODUCT((AI141:AL154="Validé")*(Bareme!AE224:AE237)) -> 0 | AK140: =SUMPRODUCT((AI141:AL154="Non Validé")*(Bareme!AE224:AE237)) -> 0
A141: 1 | C141: Exposer l’Etude de cas | N141: L’exposé traduit sans équivoque le résultat des analyses relatées dans le rapport: la description de l’équipement, | AV141: 0
N143: L’exposé traduit sans équivoque le résultat des analyses relatées dans le rapport: énoncer de la problematique relative à la maintenance
AM144: Commentaires:
N145: L’exposé traduit sans équivoque le résultat des analyses relatées dans le rapport: la présentation de la solution retenue.
N147: L’exposé traduit sans équivoque la mise en œuvre des propositions techniques : la description des interventions réalisées,
N149: L’exposé traduit sans équivoque la mise en œuvre des propositions techniques : l’intégration des procédures de sécurité,
N151: L’exposé traduit sans équivoque la mise en œuvre des propositions techniques : l’intégration des procédures d’hygiène,
N153: L’exposé traduit sans équivoque la mise en œuvre des propositions techniques : la prise en compte de l’environnement.
A155: Donner des informations complémentaires | AE155: Evalué | AI155: =IF(AE155="Non Evalué","NE",IF(AE155="Evalué","E","")) -> E | AJ155: =COUNTIF(AI157:AL160,"Validé") -> 0 | AK155: =COUNTIF(AI157:AL160,"Non Validé") -> 0 | AL155: =COUNTIF(AI157:AL160,"Non Evalué") -> 0 | AV155: =IF(AE155="","Souhaitez-vous évaluer la compétence ?",IF(AND(AE155="Non Evalué",OR(AJ155<>0,AK155<>0)),"Vous avez choisi de ne pas évaluer la compétence. Ne rien indiquez dans la colonne Validé.",IF(AND(AE155="Evalué",OR(AI157="",AI159="")),"Vous avez choisi d'évaluer la compétence. Indiquez pour chaques actions : Validé, Non Validé ou Non Evalué.",IF(OR(AE155="Non Evalué",(AJ155+AK155)=0),"",CONCATENATE(ROUND((100*AJ156/(AJ156+AK156)),0)," % d'actions validées. ",AJ155," validée(s) sur ",AJ155+AK155," . Conseil: Au maximum , grisez ",ROUND((100*AJ156/(AJ156+AK156))*8/100,0)," colonnes"))))) -> Vous avez choisi d'évaluer la compétence. Indiquez pour chaques actions : Validé, Non Validé ou Non Evalué.
AJ156: =SUMPRODUCT((AI157:AL160="Validé")*(Bareme!AE240:AE243)) -> 0 | AK156: =SUMPRODUCT((AI157:AL160="Non Validé")*(Bareme!AE240:AE243)) -> 0
A157: 2 | C157: Donner des informations complémentaires. | N157: Les réponses aux membres de la commission d’évaluation permettent d’apporter des informations complémentaires, | AV157: 0
N159: Les réponses aux membres de la commission d’évaluation permettent d’argumenter les choix effectués.
AM160: Commentaires:
E181: =IF(OR(I192="",AND(AE45="",AE63="",AE101="",AE119="",AE139="",AE155="")=0),"",CONCATENATE("PROPOSITION: ",CEILING(I192,0.5),"/20 (",ROUND(100*COUNTIF(U191:U196,"E")/(COUNTIF(U191:U196,"E")+COUNTIF(U191:U196,"NE")),0),"% des compétences évaluées).")) -> PROPOSITION: 0/20 (100% des compétences évaluées).
E184: Proposition des évaluateurs:
E188: Ne pas effacer
O189: =CONCATENATE("Statistique U31 de ",$AE$4) -> 
O190: Compétences | P190: =IF(AE4="","",AE4) ->  | Q190: Satisfaction maximale | R190: Satisfaction moyenne | S190: =CONCATENATE("Statistique U31 de ",$AE$4) ->  | T190: Coefficients | U190: Validée ou Non Validée
C191: Somme | I191: =SUMPRODUCT((P191:P199)) -> 0 | K191: =SUM(Q191:Q199) -> 800 | O191: =A45 -> CP 1.4 - Exécuter des opérations de surveillance et d’inspection | P191: =IF(OR(U191="NE",U191=""),"",S191*T191) -> 0 | Q191: =IF(OR(U191="NE",U191=""),"",T191*8) -> 120 | R191: =IF(OR(U191="NE",U191=""),"",Q191/2) -> 60 | S191: =IF(AV47="","",AV47) -> 0 | T191: =Bareme!AE132 -> 15 | U191: =IF(AI45="","",AI45) -> E
C192: Moyenne /20 | I192: =IF($K$191=0,"",K192*$I$191/$K$191) -> 0 | K192: 20 | O192: =A63 -> CP 1.5 - Exécuter les travaux d’amélioration ou de modification du bien | P192: =IF(OR(U192="NE",U192=""),"",S192*T192) -> 0 | Q192: =IF(OR(U192="NE",U192=""),"",T192*8) -> 208 | R192: =IF(OR(U192="NE",U192=""),"",Q192/2) -> 104 | S192: =IF(AV65="","",AV65) -> 0 | T192: =Bareme!AE150 -> 26 | U192: =IF(AI63="","",AI63) -> E
C193: Moyenne /40 | I193: =IF($K$191=0,"",K193*$I$191/$K$191) -> 0 | K193: 40 | O193: =A101 -> CP 4.1 - Recevoir et transmettre des informations | P193: 0 | Q193: 96 | R193: 48 | S193: =IF(AV103="","",AV103) -> 0 | T193: =Bareme!AE186 -> 12 | U193: =IF(AI101="","",AI101) -> E
O194: =A119 -> CP 4.2 - Rédiger et argumenter des comptes rendus. | P194: 0 | Q194: 96 | R194: 48 | S194: =IF(AV121="","",AV121) -> 0 | T194: =Bareme!AE204 -> 12 | U194: =IF(AI119="","",AI119) -> E
O195: =A139 -> Exposer l'étude de cas | P195: 0 | Q195: 136 | R195: 68 | S195: =IF(AV141="","",AV141) -> 0 | T195: =Bareme!AE222 -> 17 | U195: =IF(AI139="","",AI139) -> E
O196: =A155 -> Donner des informations complémentaires | P196: 0 | Q196: 144 | R196: 72 | S196: =IF(AV157="","",AV157) -> 0 | T196: =Bareme!AE238 -> 18 | U196: =IF(AI155="","",AI155) -> E
E197: Ne pas effacer

Sheet U32 (hidden)
A1: Baccalauréat professionnel « maintenance des équipements industriels »
A2: Épreuve E32 (Unité U32) : INTERVENTION SUR UN EQUIPEMENT MECANIQUE
A3: Établissement : (tampon) | X3: Session : | AE3: =IF(Bilan!B2="","",Bilan!B2) -> 
A4: =IF(Bilan!B3="","",Bilan!B3) ->  | X4: Nom du candidat: | AE4: =IF(INDEX((Bilan!B5:B34),(MATCH(RIGHT(CELL("nomfichier",A1),LEN(CELL("nomfichier",A1))-FIND("]",CELL("nomfichier",A1))),Bilan!H5:H34,0)))="","",INDEX((Bilan!B5:B34),(MATCH(RIGHT(CELL("nomfichier",A1),LEN(CELL("nomfichier",A1))-FIND("]",CELL("nomfichier",A1))),Bilan!H5:H34,0)))) -> 
X5: Prénom :
X6: Date de l'évaluation: | AV6: Choisisser votre situation
A7: Lieu d’évaluation :
A8: Etablissement
A9: Entreprise :
A10: Description sommaire du travail demandé :
A11: =IF($AV$7="","",IF($AV$7="A",IF(U32_A!A11="","",U32_A!A11),IF($AV$7="B",IF(U32_B!A11="","",U32_B!A11),IF($AV$7="C",IF(U32_C!A11="","",U32_C!A11),IF($AV$7="D",IF(U32_D!A11="","",U32_D!A11),IF($AV$7="E",IF(U32_E!A11="","",U32_E!A11),IF($AV$7="F",IF(U32_F!A11="","",U32_F!A11),IF($AV$7="G",IF(U32_G!A11="","",U32_G!A11),IF($AV$7="H",IF(U32_H!A11="","",U32_H!A11),""))))))))) ->  | B11: =IF($AV$7="","",IF($AV$7="A",IF(U32_A!B11="","",U32_A!B11),IF($AV$7="B",IF(U32_B!B11="","",U32_B!B11),IF($AV$7="C",IF(U32_C!B11="","",U32_C!B11),IF($AV$7="D",IF(U32_D!B11="","",U32_D!B11),IF($AV$7="E",IF(U32_E!B11="","",U32_E!B11),IF($AV$7="F",IF(U32_F!B11="","",U32_F!B11),IF($AV$7="G",IF(U32_G!B11="","",U32_G!B11),IF($AV$7="H",IF(U32_H!B11="","",U32_H!B11),""))))))))) ->  | C11: =IF($AV$7="","",IF($AV$7="A",IF(U32_A!C11="","",U32_A!C11),IF($AV$7="B",IF(U32_B!C11="","",U32_B!C11),IF($AV$7="C",IF(U32_C!C11="","",U32_C!C11),IF($AV$7="D",IF(U32_D!C11="","",U32_D!C11),IF($AV$7="E",IF(U32_E!C11="","",U32_E!C11),IF($AV$7="F",IF(U32_F!C11="","",U32_F!C11),IF($AV$7="G",IF(U32_G!C11="","",U32_G!C11),IF($AV$7="H",IF(U32_H!C11="","",U32_H!C11),""))))))))) ->  | D11: =IF($AV$7="","",IF($AV$7="A",IF(U32_A!D11="","",U32_A!D11),IF($AV$7="B",IF(U32_B!D11="","",U32_B!D11),IF($AV$7="C",IF(U32_C!D11="","",U32_C!D11),IF($AV$7="D",IF(U32_D!D11="","",U32_D!D11),IF($AV$7="E",IF(U32_E!D11="","",U32_E!D11),IF($AV$7="F",IF(U32_F!D11="","",U32_F!D11),IF($AV$7="G",IF(U32_G!D11="","",U32_G!D11),IF($AV$7="H",IF(U32_H!D11="","",U32_H!D11),""))))))))) ->  | E11: =IF($AV$7="","",IF($AV$7="A",IF(U32_A!E11="","",U32_A!E11),IF($AV$7="B",IF(U32_B!E11="","",U32_B!E11),IF($AV$7="C",IF(U32_C!E11="","",U32_C!E11),IF($AV$7="D",IF(U32_D!E11="","",U32_D!E11),IF($AV$7="E",IF(U32_E!E11="","",U32_E!E11),IF($AV$7="F",IF(U32_F!E11="","",U32_F!E11),IF($AV$7="G",IF(U32_G!E11="","",U32_G!E11),IF($AV$7="H",IF(U32_H!E11="","",U32_H!E11),""))))))))) ->  | F11: =IF($AV$7="","",IF($AV$7="A",IF(U32_A!F11="","",U32_A!F11),IF($AV$7="B",IF(U32_B!F11="","",U32_B!F11),IF($AV$7="C",IF(U32_C!F11="","",U32_C!F11),IF($AV$7="D",IF(U32_D!F11="","",U32_D!F11),IF($AV$7="E",IF(U32_E!F11="","",U32_E!F11),IF($AV$7="F",IF(U32_F!F11="","",U32_F!F11),IF($AV$7="G",IF(U32_G!F11="","",U32_G!F11),IF($AV$7="H",IF(U32_H!F11="","",U32_H!F11),""))))))))) ->  | G11: =IF($AV$7="","",IF($AV$7="A",IF(U32_A!G11="","",U32_A!G11),IF($AV$7="B",IF(U32_B!G11="","",U32_B!G11),IF($AV$7="C",IF(U32_C!G11="","",U32_C!G11),IF($AV$7="D",IF(U32_D!G11="","",U32_D!G11),IF($AV$7="E",IF(U32_E!G11="","",U32_E!G11),IF($AV$7="F",IF(U32_F!G11="","",U32_F!G11),IF($AV$7="G",IF(U32_G!G11="","",U32_G!G11),IF($AV$7="H",IF(U32_H!G11="","",U32_H!G11),""))))))))) ->  | H11: =IF($AV$7="","",IF($AV$7="A",IF(U32_A!H11="","",U32_A!H11),IF($AV$7="B",IF(U32_B!H11="","",U32_B!H11),IF($AV$7="C",IF(U32_C!H11="","",U32_C!H11),IF($AV$7="D",IF(U32_D!H11="","",U32_D!H11),IF($AV$7="E",IF(U32_E!H11="","",U32_E!H11),IF($AV$7="F",IF(U32_F!H11="","",U32_F!H11),IF($AV$7="G",IF(U32_G!H11="","",U32_G!H11),IF($AV$7="H",IF(U32_H!H11="","",U32_H!H11),""))))))))) ->  | I11: =IF($AV$7="","",IF($AV$7="A",IF(U32_A!I11="","",U32_A!I11),IF($AV$7="B",IF(U32_B!I11="","",U32_B!I11),IF($AV$7="C",IF(U32_C!I11="","",U32_C!I11),IF($AV$7="D",IF(U32_D!I11="","",U32_D!I11),IF($AV$7="E",IF(U32_E!I11="","",U32_E!I11),IF($AV$7="F",IF(U32_F!I11="","",U32_F!I11),IF($AV$7="G",IF(U32_G!I11="","",U32_G!I11),IF($AV$7="H",IF(U32_H!I11="","",U32_H!I11),""))))))))) ->  | J11: =IF($AV$7="","",IF($AV$7="A",IF(U32_A!J11="","",U32_A!J11),IF($AV$7="B",IF(U32_B!J11="","",U32_B!J11),IF($AV$7="C",IF(U32_C!J11="","",U32_C!J11),IF($AV$7="D",IF(U32_D!J11="","",U32_D!J11),IF($AV$7="E",IF(U32_E!J11="","",U32_E!J11),IF($AV$7="F",IF(U32_F!J11="","",U32_F!J11),IF($AV$7="G",IF(U32_G!J11="","",U32_G!J11),IF($AV$7="H",IF(U32_H!J11="","",U32_H!J11),""))))))))) ->  | K11: =IF($AV$7="","",IF($AV$7="A",IF(U32_A!K11="","",U32_A!K11),IF($AV$7="B",IF(U32_B!K11="","",U32_B!K11),IF($AV$7="C",IF(U32_C!K11="","",U32_C!K11),IF($AV$7="D",IF(U32_D!K11="","",U32_D!K11),IF($AV$7="E",IF(U32_E!K11="","",U32_E!K11),IF($AV$7="F",IF(U32_F!K11="","",U32_F!K11),IF($AV$7="G",IF(U32_G!K11="","",U32_G!K11),IF($AV$7="H",IF(U32_H!K11="","",U32_H!K11),""))))))))) ->  | L11: =IF($AV$7="","",IF($AV$7="A",IF(U32_A!L11="","",U32_A!L11),IF($AV$7="B",IF(U32_B!L11="","",U32_B!L11),IF($AV$7="C",IF(U32_C!L11="","",U32_C!L11),IF($AV$7="D",IF(U32_D!L11="","",U32_D!L11),IF($AV$7="E",IF(U32_E!L11="","",U32_E!L11),IF($AV$7="F",IF(U32_F!L11="","",U32_F!L11),IF($AV$7="G",IF(U32_G!L11="","",U32_G!L11),IF($AV$7="H",IF(U32_H!L11="","",U32_H!L11),""))))))))) ->  | M11: =IF($AV$7="","",IF($AV$7="A",IF(U32_A!M11="","",U32_A!M11),IF($AV$7="B",IF(U32_B!M11="","",U32_B!M11),IF($AV$7="C",IF(U32_C!M11="","",U32_C!M11),IF($AV$7="D",IF(U32_D!M11="","",U32_D!M11),IF($AV$7="E",IF(U32_E!M11="","",U32_E!M11),IF($AV$7="F",IF(U32_F!M11="","",U32_F!M11),IF($AV$7="G",IF(U32_G!M11="","",U32_G!M11),IF($AV$7="H",IF(U32_H!M11="","",U32_H!M11),""))))))))) ->  | N11: =IF($AV$7="","",IF($AV$7="A",IF(U32_A!N11="","",U32_A!N11),IF($AV$7="B",IF(U32_B!N11="","",U32_B!N11),IF($AV$7="C",IF(U32_C!N11="","",U32_C!N11),IF($AV$7="D",IF(U32_D!N11="","",U32_D!N11),IF($AV$7="E",IF(U32_E!N11="","",U32_E!N11),IF($AV$7="F",IF(U32_F!N11="","",U32_F!N11),IF($AV$7="G",IF(U32_G!N11="","",U32_G!N11),IF($AV$7="H",IF(U32_H!N11="","",U32_H!N11),""))))))))) ->  | O11: =IF($AV$7="","",IF($AV$7="A",IF(U32_A!O11="","",U32_A!O11),IF($AV$7="B",IF(U32_B!O11="","",U32_B!O11),IF($AV$7="C",IF(U32_C!O11="","",U32_C!O11),IF($AV$7="D",IF(U32_D!O11="","",U32_D!O11),IF($AV$7="E",IF(U32_E!O11="","",U32_E!O11),IF($AV$7="F",IF(U32_F!O11="","",U32_F!O11),IF($AV$7="G",IF(U32_G!O11="","",U32_G!O11),IF($AV$7="H",IF(U32_H!O11="","",U32_H!O11),""))))))))) ->  | P11: =IF($AV$7="","",IF($AV$7="A",IF(U32_A!P11="","",U32_A!P11),IF($AV$7="B",IF(U32_B!P11="","",U32_B!P11),IF($AV$7="C",IF(U32_C!P11="","",U32_C!P11),IF($AV$7="D",IF(U32_D!P11="","",U32_D!P11),IF($AV$7="E",IF(U32_E!P11="","",U32_E!P11),IF($AV$7="F",IF(U32_F!P11="","",U32_F!P11),IF($AV$7="G",IF(U32_G!P11="","",U32_G!P11),IF($AV$7="H",IF(U32_H!P11="","",U32_H!P11),""))))))))) ->  | Q11: =IF($AV$7="","",IF($AV$7="A",IF(U32_A!Q11="","",U32_A!Q11),IF($AV$7="B",IF(U32_B!Q11="","",U32_B!Q11),IF($AV$7="C",IF(U32_C!Q11="","",U32_C!Q11),IF($AV$7="D",IF(U32_D!Q11="","",U32_D!Q11),IF($AV$7="E",IF(U32_E!Q11="","",U32_E!Q11),IF($AV$7="F",IF(U32_F!Q11="","",U32_F!Q11),IF($AV$7="G",IF(U32_G!Q11="","",U32_G!Q11),IF($AV$7="H",IF(U32_H!Q11="","",U32_H!Q11),""))))))))) ->  | R11: =IF($AV$7="","",IF($AV$7="A",IF(U32_A!R11="","",U32_A!R11),IF($AV$7="B",IF(U32_B!R11="","",U32_B!R11),IF($AV$7="C",IF(U32_C!R11="","",U32_C!R11),IF($AV$7="D",IF(U32_D!R11="","",U32_D!R11),IF($AV$7="E",IF(U32_E!R11="","",U32_E!R11),IF($AV$7="F",IF(U32_F!R11="","",U32_F!R11),IF($AV$7="G",IF(U32_G!R11="","",U32_G!R11),IF($AV$7="H",IF(U32_H!R11="","",U32_H!R11),""))))))))) ->  | S11: =IF($AV$7="","",IF($AV$7="A",IF(U32_A!S11="","",U32_A!S11),IF($AV$7="B",IF(U32_B!S11="","",U32_B!S11),IF($AV$7="C",IF(U32_C!S11="","",U32_C!S11),IF($AV$7="D",IF(U32_D!S11="","",U32_D!S11),IF($AV$7="E",IF(U32_E!S11="","",U32_E!S11),IF($AV$7="F",IF(U32_F!S11="","",U32_F!S11),IF($AV$7="G",IF(U32_G!S11="","",U32_G!S11),IF($AV$7="H",IF(U32_H!S11="","",U32_H!S11),""))))))))) ->  | T11: =IF($AV$7="","",IF($AV$7="A",IF(U32_A!T11="","",U32_A!T11),IF($AV$7="B",IF(U32_B!T11="","",U32_B!T11),IF($AV$7="C",IF(U32_C!T11="","",U32_C!T11),IF($AV$7="D",IF(U32_D!T11="","",U32_D!T11),IF($AV$7="E",IF(U32_E!T11="","",U32_E!T11),IF($AV$7="F",IF(U32_F!T11="","",U32_F!T11),IF($AV$7="G",IF(U32_G!T11="","",U32_G!T11),IF($AV$7="H",IF(U32_H!T11="","",U32_H!T11),""))))))))) ->  | U11: =IF($AV$7="","",IF($AV$7="A",IF(U32_A!U11="","",U32_A!U11),IF($AV$7="B",IF(U32_B!U11="","",U32_B!U11),IF($AV$7="C",IF(U32_C!U11="","",U32_C!U11),IF($AV$7="D",IF(U32_D!U11="","",U32_D!U11),IF($AV$7="E",IF(U32_E!U11="","",U32_E!U11),IF($AV$7="F",IF(U32_F!U11="","",U32_F!U11),IF($AV$7="G",IF(U32_G!U11="","",U32_G!U11),IF($AV$7="H",IF(U32_H!U11="","",U32_H!U11),""))))))))) ->  | V11: =IF($AV$7="","",IF($AV$7="A",IF(U32_A!V11="","",U32_A!V11),IF($AV$7="B",IF(U32_B!V11="","",U32_B!V11),IF($AV$7="C",IF(U32_C!V11="","",U32_C!V11),IF($AV$7="D",IF(U32_D!V11="","",U32_D!V11),IF($AV$7="E",IF(U32_E!V11="","",U32_E!V11),IF($AV$7="F",IF(U32_F!V11="","",U32_F!V11),IF($AV$7="G",IF(U32_G!V11="","",U32_G!V11),IF($AV$7="H",IF(U32_H!V11="","",U32_H!V11),""))))))))) ->  | W11: =IF($AV$7="","",IF($AV$7="A",IF(U32_A!W11="","",U32_A!W11),IF($AV$7="B",IF(U32_B!W11="","",U32_B!W11),IF($AV$7="C",IF(U32_C!W11="","",U32_C!W11),IF($AV$7="D",IF(U32_D!W11="","",U32_D!W11),IF($AV$7="E",IF(U32_E!W11="","",U32_E!W11),IF($AV$7="F",IF(U32_F!W11="","",U32_F!W11),IF($AV$7="G",IF(U32_G!W11="","",U32_G!W11),IF($AV$7="H",IF(U32_H!W11="","",U32_H!W11),""))))))))) ->  | X11: =IF($AV$7="","",IF($AV$7="A",IF(U32_A!X11="","",U32_A!X11),IF($AV$7="B",IF(U32_B!X11="","",U32_B!X11),IF($AV$7="C",IF(U32_C!X11="","",U32_C!X11),IF($AV$7="D",IF(U32_D!X11="","",U32_D!X11),IF($AV$7="E",IF(U32_E!X11="","",U32_E!X11),IF($AV$7="F",IF(U32_F!X11="","",U32_F!X11),IF($AV$7="G",IF(U32_G!X11="","",U32_G!X11),IF($AV$7="H",IF(U32_H!X11="","",U32_H!X11),""))))))))) ->  | Y11: =IF($AV$7="","",IF($AV$7="A",IF(U32_A!Y11="","",U32_A!Y11),IF($AV$7="B",IF(U32_B!Y11="","",U32_B!Y11),IF($AV$7="C",IF(U32_C!Y11="","",U32_C!Y11),IF($AV$7="D",IF(U32_D!Y11="","",U32_D!Y11),IF($AV$7="E",IF(U32_E!Y11="","",U32_E!Y11),IF($AV$7="F",IF(U32_F!Y11="","",U32_F!Y11),IF($AV$7="G",IF(U32_G!Y11="","",U32_G!Y11),IF($AV$7="H",IF(U32_H!Y11="","",U32_H!Y11),""))))))))) ->  | Z11: =IF($AV$7="","",IF($AV$7="A",IF(U32_A!Z11="","",U32_A!Z11),IF($AV$7="B",IF(U32_B!Z11="","",U32_B!Z11),IF($AV$7="C",IF(U32_C!Z11="","",U32_C!Z11),IF($AV$7="D",IF(U32_D!Z11="","",U32_D!Z11),IF($AV$7="E",IF(U32_E!Z11="","",U32_E!Z11),IF($AV$7="F",IF(U32_F!Z11="","",U32_F!Z11),IF($AV$7="G",IF(U32_G!Z11="","",U32_G!Z11),IF($AV$7="H",IF(U32_H!Z11="","",U32_H!Z11),""))))))))) ->  | AA11: =IF($AV$7="","",IF($AV$7="A",IF(U32_A!AA11="","",U32_A!AA11),IF($AV$7="B",IF(U32_B!AA11="","",U32_B!AA11),IF($AV$7="C",IF(U32_C!AA11="","",U32_C!AA11),IF($AV$7="D",IF(U32_D!AA11="","",U32_D!AA11),IF($AV$7="E",IF(U32_E!AA11="","",U32_E!AA11),IF($AV$7="F",IF(U32_F!AA11="","",U32_F!AA11),IF($AV$7="G",IF(U32_G!AA11="","",U32_G!AA11),IF($AV$7="H",IF(U32_H!AA11="","",U32_H!AA11),""))))))))) ->  | AB11: =IF($AV$7="","",IF($AV$7="A",IF(U32_A!AB11="","",U32_A!AB11),IF($AV$7="B",IF(U32_B!AB11="","",U32_B!AB11),IF($AV$7="C",IF(U32_C!AB11="","",U32_C!AB11),IF($AV$7="D",IF(U32_D!AB11="","",U32_D!AB11),IF($AV$7="E",IF(U32_E!AB11="","",U32_E!AB11),IF($AV$7="F",IF(U32_F!AB11="","",U32_F!AB11),IF($AV$7="G",IF(U32_G!AB11="","",U32_G!AB11),IF($AV$7="H",IF(U32_H!AB11="","",U32_H!AB11),""))))))))) ->  | AC11: =IF($AV$7="","",IF($AV$7="A",IF(U32_A!AC11="","",U32_A!AC11),IF($AV$7="B",IF(U32_B!AC11="","",U32_B!AC11),IF($AV$7="C",IF(U32_C!AC11="","",U32_C!AC11),IF($AV$7="D",IF(U32_D!AC11="","",U32_D!AC11),IF($AV$7="E",IF(U32_E!AC11="","",U32_E!AC11),IF($AV$7="F",IF(U32_F!AC11="","",U32_F!AC11),IF($AV$7="G",IF(U32_G!AC11="","",U32_G!AC11),IF($AV$7="H",IF(U32_H!AC11="","",U32_H!AC11),""))))))))) ->  | AD11: =IF($AV$7="","",IF($AV$7="A",IF(U32_A!AD11="","",U32_A!AD11),IF($AV$7="B",IF(U32_B!AD11="","",U32_B!AD11),IF($AV$7="C",IF(U32_C!AD11="","",U32_C!AD11),IF($AV$7="D",IF(U32_D!AD11="","",U32_D!AD11),IF($AV$7="E",IF(U32_E!AD11="","",U32_E!AD11),IF($AV$7="F",IF(U32_F!AD11="","",U32_F!AD11),IF($AV$7="G",IF(U32_G!AD11="","",U32_G!AD11),IF($AV$7="H",IF(U32_H!AD11="","",U32_H!AD11),""))))))))) ->  | AE11: =IF($AV$7="","",IF($AV$7="A",IF(U32_A!AE11="","",U32_A!AE11),IF($AV$7="B",IF(U32_B!AE11="","",U32_B!AE11),IF($AV$7="C",IF(U32_C!AE11="","",U32_C!AE11),IF($AV$7="D",IF(U32_D!AE11="","",U32_D!AE11),IF($AV$7="E",IF(U32_E!AE11="","",U32_E!AE11),IF($AV$7="F",IF(U32_F!AE11="","",U32_F!AE11),IF($AV$7="G",IF(U32_G!AE11="","",U32_G!AE11),IF($AV$7="H",IF(U32_H!AE11="","",U32_H!AE11),""))))))))) ->  | AF11: =IF($AV$7="","",IF($AV$7="A",IF(U32_A!AF11="","",U32_A!AF11),IF($AV$7="B",IF(U32_B!AF11="","",U32_B!AF11),IF($AV$7="C",IF(U32_C!AF11="","",U32_C!AF11),IF($AV$7="D",IF(U32_D!AF11="","",U32_D!AF11),IF($AV$7="E",IF(U32_E!AF11="","",U32_E!AF11),IF($AV$7="F",IF(U32_F!AF11="","",U32_F!AF11),IF($AV$7="G",IF(U32_G!AF11="","",U32_G!AF11),IF($AV$7="H",IF(U32_H!AF11="","",U32_H!AF11),""))))))))) ->  | AG11: =IF($AV$7="","",IF($AV$7="A",IF(U32_A!AG11="","",U32_A!AG11),IF($AV$7="B",IF(U32_B!AG11="","",U32_B!AG11),IF($AV$7="C",IF(U32_C!AG11="","",U32_C!AG11),IF($AV$7="D",IF(U32_D!AG11="","",U32_D!AG11),IF($AV$7="E",IF(U32_E!AG11="","",U32_E!AG11),IF($AV$7="F",IF(U32_F!AG11="","",U32_F!AG11),IF($AV$7="G",IF(U32_G!AG11="","",U32_G!AG11),IF($AV$7="H",IF(U32_H!AG11="","",U32_H!AG11),""))))))))) ->  | AH11: =IF($AV$7="","",IF($AV$7="A",IF(U32_A!AH11="","",U32_A!AH11),IF($AV$7="B",IF(U32_B!AH11="","",U32_B!AH11),IF($AV$7="C",IF(U32_C!AH11="","",U32_C!AH11),IF($AV$7="D",IF(U32_D!AH11="","",U32_D!AH11),IF($AV$7="E",IF(U32_E!AH11="","",U32_E!AH11),IF($AV$7="F",IF(U32_F!AH11="","",U32_F!AH11),IF($AV$7="G",IF(U32_G!AH11="","",U32_G!AH11),IF($AV$7="H",IF(U32_H!AH11="","",U32_H!AH11),""))))))))) ->  | AI11: =IF($AV$7="","",IF($AV$7="A",IF(U32_A!AI11="","",U32_A!AI11),IF($AV$7="B",IF(U32_B!AI11="","",U32_B!AI11),IF($AV$7="C",IF(U32_C!AI11="","",U32_C!AI11),IF($AV$7="D",IF(U32_D!AI11="","",U32_D!AI11),IF($AV$7="E",IF(U32_E!AI11="","",U32_E!AI11),IF($AV$7="F",IF(U32_F!AI11="","",U32_F!AI11),IF($AV$7="G",IF(U32_G!AI11="","",U32_G!AI11),IF($AV$7="H",IF(U32_H!AI11="","",U32_H!AI11),""))))))))) ->  | AJ11: =IF($AV$7="","",IF($AV$7="A",IF(U32_A!AJ11="","",U32_A!AJ11),IF($AV$7="B",IF(U32_B!AJ11="","",U32_B!AJ11),IF($AV$7="C",IF(U32_C!AJ11="","",U32_C!AJ11),IF($AV$7="D",IF(U32_D!AJ11="","",U32_D!AJ11),IF($AV$7="E",IF(U32_E!AJ11="","",U32_E!AJ11),IF($AV$7="F",IF(U32_F!AJ11="","",U32_F!AJ11),IF($AV$7="G",IF(U32_G!AJ11="","",U32_G!AJ11),IF($AV$7="H",IF(U32_H!AJ11="","",U32_H!AJ11),""))))))))) ->  | AK11: =IF($AV$7="","",IF($AV$7="A",IF(U32_A!AK11="","",U32_A!AK11),IF($AV$7="B",IF(U32_B!AK11="","",U32_B!AK11),IF($AV$7="C",IF(U32_C!AK11="","",U32_C!AK11),IF($AV$7="D",IF(U32_D!AK11="","",U32_D!AK11),IF($AV$7="E",IF(U32_E!AK11="","",U32_E!AK11),IF($AV$7="F",IF(U32_F!AK11="","",U32_F!AK11),IF($AV$7="G",IF(U32_G!AK11="","",U32_G!AK11),IF($AV$7="H",IF(U32_H!AK11="","",U32_H!AK11),""))))))))) ->  | AL11: =IF($AV$7="","",IF($AV$7="A",IF(U32_A!AL11="","",U32_A!AL11),IF($AV$7="B",IF(U32_B!AL11="","",U32_B!AL11),IF($AV$7="C",IF(U32_C!AL11="","",U32_C!AL11),IF($AV$7="D",IF(U32_D!AL11="","",U32_D!AL11),IF($AV$7="E",IF(U32_E!AL11="","",U32_E!AL11),IF($AV$7="F",IF(U32_F!AL11="","",U32_F!AL11),IF($AV$7="G",IF(U32_G!AL11="","",U32_G!AL11),IF($AV$7="H",IF(U32_H!AL11="","",U32_H!AL11),""))))))))) ->  | AM11: =IF($AV$7="","",IF($AV$7="A",IF(U32_A!AM11="","",U32_A!AM11),IF($AV$7="B",IF(U32_B!AM11="","",U32_B!AM11),IF($AV$7="C",IF(U32_C!AM11="","",U32_C!AM11),IF($AV$7="D",IF(U32_D!AM11="","",U32_D!AM11),IF($AV$7="E",IF(U32_E!AM11="","",U32_E!AM11),IF($AV$7="F",IF(U32_F!AM11="","",U32_F!AM11),IF($AV$7="G",IF(U32_G!AM11="","",U32_G!AM11),IF($AV$7="H",IF(U32_H!AM11="","",U32_H!AM11),""))))))))) ->  | AN11: =IF($AV$7="","",IF($AV$7="A",IF(U32_A!AN11="","",U32_A!AN11),IF($AV$7="B",IF(U32_B!AN11="","",U32_B!AN11),IF($AV$7="C",IF(U32_C!AN11="","",U32_C!AN11),IF($AV$7="D",IF(U32_D!AN11="","",U32_D!AN11),IF($AV$7="E",IF(U32_E!AN11="","",U32_E!AN11),IF($AV$7="F",IF(U32_F!AN11="","",U32_F!AN11),IF($AV$7="G",IF(U32_G!AN11="","",U32_G!AN11),IF($AV$7="H",IF(U32_H!AN11="","",U32_H!AN11),""))))))))) ->  | AO11: =IF($AV$7="","",IF($AV$7="A",IF(U32_A!AO11="","",U32_A!AO11),IF($AV$7="B",IF(U32_B!AO11="","",U32_B!AO11),IF($AV$7="C",IF(U32_C!AO11="","",U32_C!AO11),IF($AV$7="D",IF(U32_D!AO11="","",U32_D!AO11),IF($AV$7="E",IF(U32_E!AO11="","",U32_E!AO11),IF($AV$7="F",IF(U32_F!AO11="","",U32_F!AO11),IF($AV$7="G",IF(U32_G!AO11="","",U32_G!AO11),IF($AV$7="H",IF(U32_H!AO11="","",U32_H!AO11),""))))))))) ->  | AP11: =IF($AV$7="","",IF($AV$7="A",IF(U32_A!AP11="","",U32_A!AP11),IF($AV$7="B",IF(U32_B!AP11="","",U32_B!AP11),IF($AV$7="C",IF(U32_C!AP11="","",U32_C!AP11),IF($AV$7="D",IF(U32_D!AP11="","",U32_D!AP11),IF($AV$7="E",IF(U32_E!AP11="","",U32_E!AP11),IF($AV$7="F",IF(U32_F!AP11="","",U32_F!AP11),IF($AV$7="G",IF(U32_G!AP11="","",U32_G!AP11),IF($AV$7="H",IF(U32_H!AP11="","",U32_H!AP11),""))))))))) ->  | AQ11: =IF($AV$7="","",IF($AV$7="A",IF(U32_A!AQ11="","",U32_A!AQ11),IF($AV$7="B",IF(U32_B!AQ11="","",U32_B!AQ11),IF($AV$7="C",IF(U32_C!AQ11="","",U32_C!AQ11),IF($AV$7="D",IF(U32_D!AQ11="","",U32_D!AQ11),IF($AV$7="E",IF(U32_E!AQ11="","",U32_E!AQ11),IF($AV$7="F",IF(U32_F!AQ11="","",U32_F!AQ11),IF($AV$7="G",IF(U32_G!AQ11="","",U32_G!AQ11),IF($AV$7="H",IF(U32_H!AQ11="","",U32_H!AQ11),""))))))))) ->  | AR11: =IF($AV$7="","",IF($AV$7="A",IF(U32_A!AR11="","",U32_A!AR11),IF($AV$7="B",IF(U32_B!AR11="","",U32_B!AR11),IF($AV$7="C",IF(U32_C!AR11="","",U32_C!AR11),IF($AV$7="D",IF(U32_D!AR11="","",U32_D!AR11),IF($AV$7="E",IF(U32_E!AR11="","",U32_E!AR11),IF($AV$7="F",IF(U32_F!AR11="","",U32_F!AR11),IF($AV$7="G",IF(U32_G!AR11="","",U32_G!AR11),IF($AV$7="H",IF(U32_H!AR11="","",U32_H!AR11),""))))))))) ->  | AS11: =IF($AV$7="","",IF($AV$7="A",IF(U32_A!AS11="","",U32_A!AS11),IF($AV$7="B",IF(U32_B!AS11="","",U32_B!AS11),IF($AV$7="C",IF(U32_C!AS11="","",U32_C!AS11),IF($AV$7="D",IF(U32_D!AS11="","",U32_D!AS11),IF($AV$7="E",IF(U32_E!AS11="","",U32_E!AS11),IF($AV$7="F",IF(U32_F!AS11="","",U32_F!AS11),IF($AV$7="G",IF(U32_G!AS11="","",U32_G!AS11),IF($AV$7="H",IF(U32_H!AS11="","",U32_H!AS11),""))))))))) ->  | AT11: =IF($AV$7="","",IF($AV$7="A",IF(U32_A!AT11="","",U32_A!AT11),IF($AV$7="B",IF(U32_B!AT11="","",U32_B!AT11),IF($AV$7="C",IF(U32_C!AT11="","",U32_C!AT11),IF($AV$7="D",IF(U32_D!AT11="","",U32_D!AT11),IF($AV$7="E",IF(U32_E!AT11="","",U32_E!AT11),IF($AV$7="F",IF(U32_F!AT11="","",U32_F!AT11),IF($AV$7="G",IF(U32_G!AT11="","",U32_G!AT11),IF($AV$7="H",IF(U32_H!AT11="","",U32_H!AT11),""))))))))) -> 
A13: Données fournies au candidat
A14: =IF($AV$7="","",IF($AV$7="A",IF(U32_A!A14="","",U32_A!A14),IF($AV$7="B",IF(U32_B!A14="","",U32_B!A14),IF($AV$7="C",IF(U32_C!A14="","",U32_C!A14),IF($AV$7="D",IF(U32_D!A14="","",U32_D!A14),IF($AV$7="E",IF(U32_E!A14="","",U32_E!A14),IF($AV$7="F",IF(U32_F!A14="","",U32_F!A14),IF($AV$7="G",IF(U32_G!A14="","",U32_G!A14),IF($AV$7="H",IF(U32_H!A14="","",U32_H!A14),""))))))))) ->  | B14: Le bien et les conditions de son environnement | X14: =IF($AV$7="","",IF($AV$7="A",IF(U32_A!X14="","",U32_A!X14),IF($AV$7="B",IF(U32_B!X14="","",U32_B!X14),IF($AV$7="C",IF(U32_C!X14="","",U32_C!X14),IF($AV$7="D",IF(U32_D!X14="","",U32_D!X14),IF($AV$7="E",IF(U32_E!X14="","",U32_E!X14),IF($AV$7="F",IF(U32_F!X14="","",U32_F!X14),IF($AV$7="G",IF(U32_G!X14="","",U32_G!X14),IF($AV$7="H",IF(U32_H!X14="","",U32_H!X14),""))))))))) ->  | Y14: Les composants et les conditions de leur environnement
A15: =IF($AV$7="","",IF($AV$7="A",IF(U32_A!A15="","",U32_A!A15),IF($AV$7="B",IF(U32_B!A15="","",U32_B!A15),IF($AV$7="C",IF(U32_C!A15="","",U32_C!A15),IF($AV$7="D",IF(U32_D!A15="","",U32_D!A15),IF($AV$7="E",IF(U32_E!A15="","",U32_E!A15),IF($AV$7="F",IF(U32_F!A15="","",U32_F!A15),IF($AV$7="G",IF(U32_G!A15="","",U32_G!A15),IF($AV$7="H",IF(U32_H!A15="","",U32_H!A15),""))))))))) ->  | B15: Le dossier technique du bien et son dossier de maintenance sur supports papiers ou supports numériques | X15: =IF($AV$7="","",IF($AV$7="A",IF(U32_A!X15="","",U32_A!X15),IF($AV$7="B",IF(U32_B!X15="","",U32_B!X15),IF($AV$7="C",IF(U32_C!X15="","",U32_C!X15),IF($AV$7="D",IF(U32_D!X15="","",U32_D!X15),IF($AV$7="E",IF(U32_E!X15="","",U32_E!X15),IF($AV$7="F",IF(U32_F!X15="","",U32_F!X15),IF($AV$7="G",IF(U32_G!X15="","",U32_G!X15),IF($AV$7="H",IF(U32_H!X15="","",U32_H!X15),""))))))))) ->  | Y15: Toutes informations en provenance de l’utilisateur ou d’autres intervenants
A16: =IF($AV$7="","",IF($AV$7="A",IF(U32_A!A16="","",U32_A!A16),IF($AV$7="B",IF(U32_B!A16="","",U32_B!A16),IF($AV$7="C",IF(U32_C!A16="","",U32_C!A16),IF($AV$7="D",IF(U32_D!A16="","",U32_D!A16),IF($AV$7="E",IF(U32_E!A16="","",U32_E!A16),IF($AV$7="F",IF(U32_F!A16="","",U32_F!A16),IF($AV$7="G",IF(U32_G!A16="","",U32_G!A16),IF($AV$7="H",IF(U32_H!A16="","",U32_H!A16),""))))))))) ->  | B16: Les consignes d’exploitation | X16: =IF($AV$7="","",IF($AV$7="A",IF(U32_A!X16="","",U32_A!X16),IF($AV$7="B",IF(U32_B!X16="","",U32_B!X16),IF($AV$7="C",IF(U32_C!X16="","",U32_C!X16),IF($AV$7="D",IF(U32_D!X16="","",U32_D!X16),IF($AV$7="E",IF(U32_E!X16="","",U32_E!X16),IF($AV$7="F",IF(U32_F!X16="","",U32_F!X16),IF($AV$7="G",IF(U32_G!X16="","",U32_G!X16),IF($AV$7="H",IF(U32_H!X16="","",U32_H!X16),""))))))))) ->  | Y16: Les pièces de rechange, les consommables
A17: =IF($AV$7="","",IF($AV$7="A",IF(U32_A!A17="","",U32_A!A17),IF($AV$7="B",IF(U32_B!A17="","",U32_B!A17),IF($AV$7="C",IF(U32_C!A17="","",U32_C!A17),IF($AV$7="D",IF(U32_D!A17="","",U32_D!A17),IF($AV$7="E",IF(U32_E!A17="","",U32_E!A17),IF($AV$7="F",IF(U32_F!A17="","",U32_F!A17),IF($AV$7="G",IF(U32_G!A17="","",U32_G!A17),IF($AV$7="H",IF(U32_H!A17="","",U32_H!A17),""))))))))) ->  | B17: Le bon de travail | X17: =IF($AV$7="","",IF($AV$7="A",IF(U32_A!X17="","",U32_A!X17),IF($AV$7="B",IF(U32_B!X17="","",U32_B!X17),IF($AV$7="C",IF(U32_C!X17="","",U32_C!X17),IF($AV$7="D",IF(U32_D!X17="","",U32_D!X17),IF($AV$7="E",IF(U32_E!X17="","",U32_E!X17),IF($AV$7="F",IF(U32_F!X17="","",U32_F!X17),IF($AV$7="G",IF(U32_G!X17="","",U32_G!X17),IF($AV$7="H",IF(U32_H!X17="","",U32_H!X17),""))))))))) ->  | Y17: Les équipements de protection individuels et collectifs
A18: =IF($AV$7="","",IF($AV$7="A",IF(U32_A!A18="","",U32_A!A18),IF($AV$7="B",IF(U32_B!A18="","",U32_B!A18),IF($AV$7="C",IF(U32_C!A18="","",U32_C!A18),IF($AV$7="D",IF(U32_D!A18="","",U32_D!A18),IF($AV$7="E",IF(U32_E!A18="","",U32_E!A18),IF($AV$7="F",IF(U32_F!A18="","",U32_F!A18),IF($AV$7="G",IF(U32_G!A18="","",U32_G!A18),IF($AV$7="H",IF(U32_H!A18="","",U32_H!A18),""))))))))) ->  | B18: Le document unique d’évaluation des risques | X18: =IF($AV$7="","",IF($AV$7="A",IF(U32_A!X18="","",U32_A!X18),IF($AV$7="B",IF(U32_B!X18="","",U32_B!X18),IF($AV$7="C",IF(U32_C!X18="","",U32_C!X18),IF($AV$7="D",IF(U32_D!X18="","",U32_D!X18),IF($AV$7="E",IF(U32_E!X18="","",U32_E!X18),IF($AV$7="F",IF(U32_F!X18="","",U32_F!X18),IF($AV$7="G",IF(U32_G!X18="","",U32_G!X18),IF($AV$7="H",IF(U32_H!X18="","",U32_H!X18),""))))))))) ->  | Y18: Les outillages, matériels de contrôle, de mesure, moyens de manutention.
A19: =IF($AV$7="","",IF($AV$7="A",IF(U32_A!A19="","",U32_A!A19),IF($AV$7="B",IF(U32_B!A19="","",U32_B!A19),IF($AV$7="C",IF(U32_C!A19="","",U32_C!A19),IF($AV$7="D",IF(U32_D!A19="","",U32_D!A19),IF($AV$7="E",IF(U32_E!A19="","",U32_E!A19),IF($AV$7="F",IF(U32_F!A19="","",U32_F!A19),IF($AV$7="G",IF(U32_G!A19="","",U32_G!A19),IF($AV$7="H",IF(U32_H!A19="","",U32_H!A19),""))))))))) ->  | B19: Le carnet de prescription de sécurité électrique | X19: =IF($AV$7="","",IF($AV$7="A",IF(U32_A!X19="","",U32_A!X19),IF($AV$7="B",IF(U32_B!X19="","",U32_B!X19),IF($AV$7="C",IF(U32_C!X19="","",U32_C!X19),IF($AV$7="D",IF(U32_D!X19="","",U32_D!X19),IF($AV$7="E",IF(U32_E!X19="","",U32_E!X19),IF($AV$7="F",IF(U32_F!X19="","",U32_F!X19),IF($AV$7="G",IF(U32_G!X19="","",U32_G!X19),IF($AV$7="H",IF(U32_H!X19="","",U32_H!X19),""))))))))) ->  | Y19: Toutes documentations techniques
A20: =IF($AV$7="","",IF($AV$7="A",IF(U32_A!A20="","",U32_A!A20),IF($AV$7="B",IF(U32_B!A20="","",U32_B!A20),IF($AV$7="C",IF(U32_C!A20="","",U32_C!A20),IF($AV$7="D",IF(U32_D!A20="","",U32_D!A20),IF($AV$7="E",IF(U32_E!A20="","",U32_E!A20),IF($AV$7="F",IF(U32_F!A20="","",U32_F!A20),IF($AV$7="G",IF(U32_G!A20="","",U32_G!A20),IF($AV$7="H",IF(U32_H!A20="","",U32_H!A20),""))))))))) ->  | B20: Les normes | X20: =IF($AV$7="","",IF($AV$7="A",IF(U32_A!X20="","",U32_A!X20),IF($AV$7="B",IF(U32_B!X20="","",U32_B!X20),IF($AV$7="C",IF(U32_C!X20="","",U32_C!X20),IF($AV$7="D",IF(U32_D!X20="","",U32_D!X20),IF($AV$7="E",IF(U32_E!X20="","",U32_E!X20),IF($AV$7="F",IF(U32_F!X20="","",U32_F!X20),IF($AV$7="G",IF(U32_G!X20="","",U32_G!X20),IF($AV$7="H",IF(U32_H!X20="","",U32_H!X20),""))))))))) ->  | Y20: Les consignes et/ou procédures écrites
A21: =IF($AV$7="","",IF($AV$7="A",IF(U32_A!A21="","",U32_A!A21),IF($AV$7="B",IF(U32_B!A21="","",U32_B!A21),IF($AV$7="C",IF(U32_C!A21="","",U32_C!A21),IF($AV$7="D",IF(U32_D!A21="","",U32_D!A21),IF($AV$7="E",IF(U32_E!A21="","",U32_E!A21),IF($AV$7="F",IF(U32_F!A21="","",U32_F!A21),IF($AV$7="G",IF(U32_G!A21="","",U32_G!A21),IF($AV$7="H",IF(U32_H!A21="","",U32_H!A21),""))))))))) ->  | B21: Le plan d’implantation du bien | X21: =IF($AV$7="","",IF($AV$7="A",IF(U32_A!X21="","",U32_A!X21),IF($AV$7="B",IF(U32_B!X21="","",U32_B!X21),IF($AV$7="C",IF(U32_C!X21="","",U32_C!X21),IF($AV$7="D",IF(U32_D!X21="","",U32_D!X21),IF($AV$7="E",IF(U32_E!X21="","",U32_E!X21),IF($AV$7="F",IF(U32_F!X21="","",U32_F!X21),IF($AV$7="G",IF(U32_G!X21="","",U32_G!X21),IF($AV$7="H",IF(U32_H!X21="","",U32_H!X21),""))))))))) ->  | Y21: Le plan de prévention
A22: =IF($AV$7="","",IF($AV$7="A",IF(U32_A!A22="","",U32_A!A22),IF($AV$7="B",IF(U32_B!A22="","",U32_B!A22),IF($AV$7="C",IF(U32_C!A22="","",U32_C!A22),IF($AV$7="D",IF(U32_D!A22="","",U32_D!A22),IF($AV$7="E",IF(U32_E!A22="","",U32_E!A22),IF($AV$7="F",IF(U32_F!A22="","",U32_F!A22),IF($AV$7="G",IF(U32_G!A22="","",U32_G!A22),IF($AV$7="H",IF(U32_H!A22="","",U32_H!A22),""))))))))) ->  | X22: =IF($AV$7="","",IF($AV$7="A",IF(U32_A!X22="","",U32_A!X22),IF($AV$7="B",IF(U32_B!X22="","",U32_B!X22),IF($AV$7="C",IF(U32_C!X22="","",U32_C!X22),IF($AV$7="D",IF(U32_D!X22="","",U32_D!X22),IF($AV$7="E",IF(U32_E!X22="","",U32_E!X22),IF($AV$7="F",IF(U32_F!X22="","",U32_F!X22),IF($AV$7="G",IF(U32_G!X22="","",U32_G!X22),IF($AV$7="H",IF(U32_H!X22="","",U32_H!X22),""))))))))) -> 
A23: =IF($AV$7="","",IF($AV$7="A",IF(U32_A!A23="","",U32_A!A23),IF($AV$7="B",IF(U32_B!A23="","",U32_B!A23),IF($AV$7="C",IF(U32_C!A23="","",U32_C!A23),IF($AV$7="D",IF(U32_D!A23="","",U32_D!A23),IF($AV$7="E",IF(U32_E!A23="","",U32_E!A23),IF($AV$7="F",IF(U32_F!A23="","",U32_F!A23),IF($AV$7="G",IF(U32_G!A23="","",U32_G!A23),IF($AV$7="H",IF(U32_H!A23="","",U32_H!A23),""))))))))) ->  | X23: =IF($AV$7="","",IF($AV$7="A",IF(U32_A!X23="","",U32_A!X23),IF($AV$7="B",IF(U32_B!X23="","",U32_B!X23),IF($AV$7="C",IF(U32_C!X23="","",U32_C!X23),IF($AV$7="D",IF(U32_D!X23="","",U32_D!X23),IF($AV$7="E",IF(U32_E!X23="","",U32_E!X23),IF($AV$7="F",IF(U32_F!X23="","",U32_F!X23),IF($AV$7="G",IF(U32_G!X23="","",U32_G!X23),IF($AV$7="H",IF(U32_H!X23="","",U32_H!X23),""))))))))) -> 
A24: ÇRepérer les données fournies | Y24: ÇRepérer les données fournies
A25: Travail demandé
A26: =IF($AV$7="","",IF($AV$7="A",IF(U32_A!A26="","",U32_A!A26),IF($AV$7="B",IF(U32_B!A26="","",U32_B!A26),IF($AV$7="C",IF(U32_C!A26="","",U32_C!A26),IF($AV$7="D",IF(U32_D!A26="","",U32_D!A26),IF($AV$7="E",IF(U32_E!A26="","",U32_E!A26),IF($AV$7="F",IF(U32_F!A26="","",U32_F!A26),IF($AV$7="G",IF(U32_G!A26="","",U32_G!A26),IF($AV$7="H",IF(U32_H!A26="","",U32_H!A26),""))))))))) ->  | B26: A1-T3 | D26: Réaliser la maintenance corrective - Réaliser des réparations, des dépannages dans les domaines : mécanique, électrique, pneumatique, hydraulique.
A27: =IF($AV$7="","",IF($AV$7="A",IF(U32_A!A27="","",U32_A!A27),IF($AV$7="B",IF(U32_B!A27="","",U32_B!A27),IF($AV$7="C",IF(U32_C!A27="","",U32_C!A27),IF($AV$7="D",IF(U32_D!A27="","",U32_D!A27),IF($AV$7="E",IF(U32_E!A27="","",U32_E!A27),IF($AV$7="F",IF(U32_F!A27="","",U32_F!A27),IF($AV$7="G",IF(U32_G!A27="","",U32_G!A27),IF($AV$7="H",IF(U32_H!A27="","",U32_H!A27),""))))))))) ->  | B27: A2-T2 | D27: Réaliser la maintenance préventive - Réaliser des opérations planifiées.
A28: L’ENSEMBLE DES ACTIVITES ET DES TACHES SONT MOBILISEES EN CE QUI CONCERNE LA COMPETENCE CP1.7 QUI A TRAIT A LA SECURITE ET A LA PREVENTION DES RISQUES
A29: Consulter le référentiel des activités professionnelles pour obtenir le détail des tâches.
A30: Ç Repérer les tâches demandées (ce sont celles qui correspondent à l’unité dans le référentiel de certification, à l’exclusion de toute autre)
A31: Appréciation globale et proposition de note :
A33: Noms et signatures des évaluateurs : | AJ33: Note proposée : | AO33: =IF(AI79="","",AI79) ->  | AR33: /20
AJ34: Note affectée de son coefficient : | AO34: =IF(AO33="","",AO33*3) ->  | AR34: /60
A35: Baccalauréat professionnel « maintenance des équipements industriels » – Unité U 32 | AI35: Validé | AM35: - Synthèse +
A37: CP 1.3 - Réparer un composant | AE37: Evalué | AI37: =IF(AE37="Non Evalué","NE",IF(AE37="Evalué","E","")) -> E | AJ37: =COUNTIF(AI39:AL56,"Validé") -> 0 | AK37: =COUNTIF(AI39:AL56,"Non Validé") -> 0 | AL37: =COUNTIF(AI39:AL56,"Non Evalué") -> 0 | AV37: =IF(AE37="","Souhaitez-vous évaluer la compétence ?",IF(AND(AE37="Non Evalué",OR(AJ37<>0,AK37<>0)),"Vous avez choisi de ne pas évaluer la compétence. Ne rien indiquez dans la colonne Validé.",IF(AND(AE37="Evalué",OR(AI39="",AI41="",AI43="",AI45="",AI47="",AI49="",AI51="",AI53="",AI55="")),"Vous avez choisi d'évaluer la compétence. Indiquez pour chaques actions : Validé, Non Validé ou Non Evalué.",IF(OR(AE37="Non Evalué",(AJ37+AK37)=0),"",CONCATENATE(ROUND((100*AJ38/(AJ38+AK38)),0)," % d'actions validées. ",AJ37," validée(s) sur ",AJ37+AK37," . Conseil: Au maximum , grisez ",ROUND((100*AJ38/(AJ38+AK38))*8/100,0)," colonnes"))))) -> Vous avez choisi d'évaluer la compétence. Indiquez pour chaques actions : Validé, Non Validé ou Non Evalué.
AJ38: =SUMPRODUCT((AI39:AL56="Validé")*(Bareme!AE249:AE266)) -> 0 | AK38: =SUMPRODUCT((AI39:AL56="Non Validé")*(Bareme!AE249:AE266)) -> 0
A39: 1 | C39: Etudier le démontage, analyser la gamme ou la réaliser si nécessaire. | N39: La stratégie est logique et permet un démontage sans détérioration. | AV39: 0
A41: 2 | C41: Rassembler et vérifier les outillages et matériels nécessaires. | N41: Les moyens rassemblés sont en bon état et adaptés à l’intervention.
A43: 3 | C43: Effectuer le démontage | N43: Les moyens de manutention et l’outillage sont mis en œuvre correctement et en toute sécurité
A45: 4 | C45: Analyser l’état du composant. | N45: L’inspection du composant permet : - de définir les pièces à remplacer ou à retoucher.
N47: L’inspection du composant permet : - d’évaluer le coût de la réparation et de décider de sa poursuite.
A49: 5 | C49: Vérifier la disponibilité des pièces de rechange, des consommables, et leurs correspondances avec le composant démonté. | N49: Les pièces de rechanges commandées ou sorties du magasin sont conformes.
A51: 6 | C51: Remonter le composant avec les pièces de rechange, le régler. | N51: Le remontage est réalisé dans le respect des procédures.
AM52: Commentaires:
N53: Les réglages et essais nécessaires sont correctement réalisés.
A55: 7 | C55: Vérifier le bon fonctionnement du composant. | N55: La réparation réalisée est conforme aux exigences de fonctionnement du composant
A57: CP 1.7 - Identifier les risques, définir et mettre en œuvre les mesures de prévention adaptées : évaluations des risques autres qu’électriques | AE57: Evalué | AI57: =IF(AE57="Non Evalué","NE",IF(AE57="Evalué","E","")) -> E | AJ57: =COUNTIF(AI59:AL74,"Validé") -> 0 | AK57: =COUNTIF(AI59:AL74,"Non Validé") -> 0 | AL57: =COUNTIF(AI59:AL74,"Non Evalué") -> 0 | AV57: =IF(AE57="","Souhaitez-vous évaluer la compétence ?",IF(AND(AE57="Non Evalué",OR(AJ57<>0,AK57<>0)),"Vous avez choisi de ne pas évaluer la compétence. Ne rien indiquez dans la colonne Validé.",IF(AND(AE57="Evalué",OR(AI59="",AI61="",AI63="",AI65="",AI67="",AI69="",AI71="",AI73="")),"Vous avez choisi d'évaluer la compétence. Indiquez pour chaques actions : Validé, Non Validé ou Non Evalué.",IF(OR(AE57="Non Evalué",(AJ57+AK57)=0),"",CONCATENATE(ROUND((100*AJ58/(AJ58+AK58)),0)," % d'actions validées. ",AJ57," validée(s) sur ",AJ57+AK57," . Conseil: Au maximum , grisez ",ROUND((100*AJ58/(AJ58+AK58))*8/100,0)," colonnes"))))) -> Vous avez choisi d'évaluer la compétence. Indiquez pour chaques actions : Validé, Non Validé ou Non Evalué.
AJ58: =SUMPRODUCT((AI59:AL74="Validé")*(Bareme!AE269:AE284)) -> 0 | AK58: =SUMPRODUCT((AI59:AL74="Non Validé")*(Bareme!AE269:AE284)) -> 0
A59: 1 | C59: Identifier les phénomènes dangereux et les situations dangereuses | N59: Les phénomènes dangereux et les situations dangereuses liés au bien, à son environnement et à l’activité sont identifiés. | AV59: 0
A61: 2 | C61: Déterminer les mesures de prévention en regard des situations dangereuses identifiées dans l’acte de maintenance | N61: Les mesures de prévention définies sont adaptées aux situations dangereuses identifiées | AM61: Commentaires:
A63: 3 | C63: Mettre en œuvre les E.P.I. | N63: La mise en œuvre des E.P.I. est correcte.
A65: 4 | C65: Mettre en œuvre les E.P.C. | N65: La mise en œuvre des E.P.C. est correcte.
A67: 5 | C67: Utiliser des équipements individuels de sécurité (EIS) | N67: La mise en œuvre des E.I.S. est correcte.
A69: 6 | C69: Consigner (energie,accés…) Respecter les procédures | N69: Les procédures de mise en œuvre des équipements et des outillages sont conformes
A71: 7 | C71: Proposer des modifications au plan de prévention. | N71: Les propositions permettent: - de se prémunir de situations ou de phénomènes dangereux résiduels identifiés.
N73: Les propositions permettent: - d’améliorer les mesures de prévention préconisées.
E76: =IF(OR(I88="",(AND(AE37="",AE57=""))=0),"",CONCATENATE("PROPOSITION: ",CEILING(I88,0.5),"/20 (",ROUND(100*COUNTIF(U87:U88,"E")/(COUNTIF(U87:U88,"E")+COUNTIF(U87:U88,"NE")),0),"% des compétences évaluées).")) -> PROPOSITION: 0/20 (100% des compétences évaluées).
E79: Proposition des évaluateurs:
C84: Ne pas effacer
O85: =CONCATENATE("Statistique U32 de ",$AE$4) -> 
O86: Compétences | P86: =IF(AE4="","",AE4) ->  | Q86: Satisfaction maximale | R86: Satisfaction moyenne | S86: =CONCATENATE("Statistique U31 de ",$AE$4) ->  | T86: Coefficients | U86: Validée ou Non Validée
C87: Somme | I87: =SUMPRODUCT((P87:P88)) -> 0 | K87: =SUM(Q87:Q88) -> 800 | O87: =A37 -> CP 1.3 - Réparer un composant | P87: =IF(OR(U87="NE",U87=""),"",S87*T87) -> 0 | Q87: =IF(OR(U87="NE",U87=""),"",T87*8) -> 640 | R87: =IF(OR(U87="NE",U87=""),"",Q87/2) -> 320 | S87: =IF($AV$39="","",$AV$39) -> 0 | T87: =Bareme!AE247 -> 80 | U87: =IF(AI37="","",AI37) -> E
C88: Moyenne /20 | I88: =IF($K$87=0,"",K88*$I$87/$K$87) -> 0 | K88: 20 | O88: =A57 -> CP 1.7 - Identifier les risques, définir et mettre en œuvre les mesures de prévention adaptées : évaluations des risques autres qu’électriques | P88: 0 | Q88: 160 | R88: 80 | S88: =IF($AV$59="","",$AV$59) -> 0 | T88: =Bareme!AE267 -> 20 | U88: =IF(AI57="","",AI57) -> E
C90: Moyenne /40 | I90: =IF($K$87=0,"",K90*$I$87/$K$87) -> 0 | K90: 60
C92: Ne pas effacer

Sheet U33 (hidden)
A1: Baccalauréat professionnel « maintenance des équipements industriels »
A2: Épreuve E33 (Unité U33) : Maintenance d’un système automatisé
A3: Établissement : (tampon) | X3: Session : | AE3: =IF(Bilan!B2="","",Bilan!B2) -> 
A4: =IF(Bilan!B3="","",Bilan!B3) ->  | X4: Nom du candidat: | AE4: =IF(INDEX((Bilan!B5:B34),(MATCH(RIGHT(CELL("nomfichier",A1),LEN(CELL("nomfichier",A1))-FIND("]",CELL("nomfichier",A1))),Bilan!J5:J34,0)))="","",INDEX((Bilan!B5:B34),(MATCH(RIGHT(CELL("nomfichier",A1),LEN(CELL("nomfichier",A1))-FIND("]",CELL("nomfichier",A1))),Bilan!J5:J34,0)))) -> 
X5: Prénom :
X6: Date de l'évaluation: | AV6: Choisisser votre situation
A7: Lieu d’évaluation :
A8: Etablissement
A9: Entreprise :
A10: Description sommaire du travail demandé :
A11: =IF($AV$7="","",IF($AV$7="A",IF(U33_A!A11="","",U33_A!A11),IF($AV$7="B",IF(U33_B!A11="","",U33_B!A11),IF($AV$7="C",IF(U33_C!A11="","",U33_C!A11),IF($AV$7="D",IF(U33_D!A11="","",U33_D!A11),IF($AV$7="E",IF(U33_E!A11="","",U33_E!A11),IF($AV$7="F",IF(U33_F!A11="","",U33_F!A11),IF($AV$7="G",IF(U33_G!A11="","",U33_G!A11),IF($AV$7="H",IF(U33_H!A11="","",U33_H!A11),""))))))))) ->  | B11: =IF($AV$7="","",IF($AV$7="A",IF(U33_A!B11="","",U33_A!B11),IF($AV$7="B",IF(U33_B!B11="","",U33_B!B11),IF($AV$7="C",IF(U33_C!B11="","",U33_C!B11),IF($AV$7="D",IF(U33_D!B11="","",U33_D!B11),IF($AV$7="E",IF(U33_E!B11="","",U33_E!B11),IF($AV$7="F",IF(U33_F!B11="","",U33_F!B11),IF($AV$7="G",IF(U33_G!B11="","",U33_G!B11),IF($AV$7="H",IF(U33_H!B11="","",U33_H!B11),""))))))))) ->  | C11: =IF($AV$7="","",IF($AV$7="A",IF(U33_A!C11="","",U33_A!C11),IF($AV$7="B",IF(U33_B!C11="","",U33_B!C11),IF($AV$7="C",IF(U33_C!C11="","",U33_C!C11),IF($AV$7="D",IF(U33_D!C11="","",U33_D!C11),IF($AV$7="E",IF(U33_E!C11="","",U33_E!C11),IF($AV$7="F",IF(U33_F!C11="","",U33_F!C11),IF($AV$7="G",IF(U33_G!C11="","",U33_G!C11),IF($AV$7="H",IF(U33_H!C11="","",U33_H!C11),""))))))))) ->  | D11: =IF($AV$7="","",IF($AV$7="A",IF(U33_A!D11="","",U33_A!D11),IF($AV$7="B",IF(U33_B!D11="","",U33_B!D11),IF($AV$7="C",IF(U33_C!D11="","",U33_C!D11),IF($AV$7="D",IF(U33_D!D11="","",U33_D!D11),IF($AV$7="E",IF(U33_E!D11="","",U33_E!D11),IF($AV$7="F",IF(U33_F!D11="","",U33_F!D11),IF($AV$7="G",IF(U33_G!D11="","",U33_G!D11),IF($AV$7="H",IF(U33_H!D11="","",U33_H!D11),""))))))))) ->  | E11: =IF($AV$7="","",IF($AV$7="A",IF(U33_A!E11="","",U33_A!E11),IF($AV$7="B",IF(U33_B!E11="","",U33_B!E11),IF($AV$7="C",IF(U33_C!E11="","",U33_C!E11),IF($AV$7="D",IF(U33_D!E11="","",U33_D!E11),IF($AV$7="E",IF(U33_E!E11="","",U33_E!E11),IF($AV$7="F",IF(U33_F!E11="","",U33_F!E11),IF($AV$7="G",IF(U33_G!E11="","",U33_G!E11),IF($AV$7="H",IF(U33_H!E11="","",U33_H!E11),""))))))))) ->  | F11: =IF($AV$7="","",IF($AV$7="A",IF(U33_A!F11="","",U33_A!F11),IF($AV$7="B",IF(U33_B!F11="","",U33_B!F11),IF($AV$7="C",IF(U33_C!F11="","",U33_C!F11),IF($AV$7="D",IF(U33_D!F11="","",U33_D!F11),IF($AV$7="E",IF(U33_E!F11="","",U33_E!F11),IF($AV$7="F",IF(U33_F!F11="","",U33_F!F11),IF($AV$7="G",IF(U33_G!F11="","",U33_G!F11),IF($AV$7="H",IF(U33_H!F11="","",U33_H!F11),""))))))))) ->  | G11: =IF($AV$7="","",IF($AV$7="A",IF(U33_A!G11="","",U33_A!G11),IF($AV$7="B",IF(U33_B!G11="","",U33_B!G11),IF($AV$7="C",IF(U33_C!G11="","",U33_C!G11),IF($AV$7="D",IF(U33_D!G11="","",U33_D!G11),IF($AV$7="E",IF(U33_E!G11="","",U33_E!G11),IF($AV$7="F",IF(U33_F!G11="","",U33_F!G11),IF($AV$7="G",IF(U33_G!G11="","",U33_G!G11),IF($AV$7="H",IF(U33_H!G11="","",U33_H!G11),""))))))))) ->  | H11: =IF($AV$7="","",IF($AV$7="A",IF(U33_A!H11="","",U33_A!H11),IF($AV$7="B",IF(U33_B!H11="","",U33_B!H11),IF($AV$7="C",IF(U33_C!H11="","",U33_C!H11),IF($AV$7="D",IF(U33_D!H11="","",U33_D!H11),IF($AV$7="E",IF(U33_E!H11="","",U33_E!H11),IF($AV$7="F",IF(U33_F!H11="","",U33_F!H11),IF($AV$7="G",IF(U33_G!H11="","",U33_G!H11),IF($AV$7="H",IF(U33_H!H11="","",U33_H!H11),""))))))))) ->  | I11: =IF($AV$7="","",IF($AV$7="A",IF(U33_A!I11="","",U33_A!I11),IF($AV$7="B",IF(U33_B!I11="","",U33_B!I11),IF($AV$7="C",IF(U33_C!I11="","",U33_C!I11),IF($AV$7="D",IF(U33_D!I11="","",U33_D!I11),IF($AV$7="E",IF(U33_E!I11="","",U33_E!I11),IF($AV$7="F",IF(U33_F!I11="","",U33_F!I11),IF($AV$7="G",IF(U33_G!I11="","",U33_G!I11),IF($AV$7="H",IF(U33_H!I11="","",U33_H!I11),""))))))))) ->  | J11: =IF($AV$7="","",IF($AV$7="A",IF(U33_A!J11="","",U33_A!J11),IF($AV$7="B",IF(U33_B!J11="","",U33_B!J11),IF($AV$7="C",IF(U33_C!J11="","",U33_C!J11),IF($AV$7="D",IF(U33_D!J11="","",U33_D!J11),IF($AV$7="E",IF(U33_E!J11="","",U33_E!J11),IF($AV$7="F",IF(U33_F!J11="","",U33_F!J11),IF($AV$7="G",IF(U33_G!J11="","",U33_G!J11),IF($AV$7="H",IF(U33_H!J11="","",U33_H!J11),""))))))))) ->  | K11: =IF($AV$7="","",IF($AV$7="A",IF(U33_A!K11="","",U33_A!K11),IF($AV$7="B",IF(U33_B!K11="","",U33_B!K11),IF($AV$7="C",IF(U33_C!K11="","",U33_C!K11),IF($AV$7="D",IF(U33_D!K11="","",U33_D!K11),IF($AV$7="E",IF(U33_E!K11="","",U33_E!K11),IF($AV$7="F",IF(U33_F!K11="","",U33_F!K11),IF($AV$7="G",IF(U33_G!K11="","",U33_G!K11),IF($AV$7="H",IF(U33_H!K11="","",U33_H!K11),""))))))))) ->  | L11: =IF($AV$7="","",IF($AV$7="A",IF(U33_A!L11="","",U33_A!L11),IF($AV$7="B",IF(U33_B!L11="","",U33_B!L11),IF($AV$7="C",IF(U33_C!L11="","",U33_C!L11),IF($AV$7="D",IF(U33_D!L11="","",U33_D!L11),IF($AV$7="E",IF(U33_E!L11="","",U33_E!L11),IF($AV$7="F",IF(U33_F!L11="","",U33_F!L11),IF($AV$7="G",IF(U33_G!L11="","",U33_G!L11),IF($AV$7="H",IF(U33_H!L11="","",U33_H!L11),""))))))))) ->  | M11: =IF($AV$7="","",IF($AV$7="A",IF(U33_A!M11="","",U33_A!M11),IF($AV$7="B",IF(U33_B!M11="","",U33_B!M11),IF($AV$7="C",IF(U33_C!M11="","",U33_C!M11),IF($AV$7="D",IF(U33_D!M11="","",U33_D!M11),IF($AV$7="E",IF(U33_E!M11="","",U33_E!M11),IF($AV$7="F",IF(U33_F!M11="","",U33_F!M11),IF($AV$7="G",IF(U33_G!M11="","",U33_G!M11),IF($AV$7="H",IF(U33_H!M11="","",U33_H!M11),""))))))))) ->  | N11: =IF($AV$7="","",IF($AV$7="A",IF(U33_A!N11="","",U33_A!N11),IF($AV$7="B",IF(U33_B!N11="","",U33_B!N11),IF($AV$7="C",IF(U33_C!N11="","",U33_C!N11),IF($AV$7="D",IF(U33_D!N11="","",U33_D!N11),IF($AV$7="E",IF(U33_E!N11="","",U33_E!N11),IF($AV$7="F",IF(U33_F!N11="","",U33_F!N11),IF($AV$7="G",IF(U33_G!N11="","",U33_G!N11),IF($AV$7="H",IF(U33_H!N11="","",U33_H!N11),""))))))))) ->  | O11: =IF($AV$7="","",IF($AV$7="A",IF(U33_A!O11="","",U33_A!O11),IF($AV$7="B",IF(U33_B!O11="","",U33_B!O11),IF($AV$7="C",IF(U33_C!O11="","",U33_C!O11),IF($AV$7="D",IF(U33_D!O11="","",U33_D!O11),IF($AV$7="E",IF(U33_E!O11="","",U33_E!O11),IF($AV$7="F",IF(U33_F!O11="","",U33_F!O11),IF($AV$7="G",IF(U33_G!O11="","",U33_G!O11),IF($AV$7="H",IF(U33_H!O11="","",U33_H!O11),""))))))))) ->  | P11: =IF($AV$7="","",IF($AV$7="A",IF(U33_A!P11="","",U33_A!P11),IF($AV$7="B",IF(U33_B!P11="","",U33_B!P11),IF($AV$7="C",IF(U33_C!P11="","",U33_C!P11),IF($AV$7="D",IF(U33_D!P11="","",U33_D!P11),IF($AV$7="E",IF(U33_E!P11="","",U33_E!P11),IF($AV$7="F",IF(U33_F!P11="","",U33_F!P11),IF($AV$7="G",IF(U33_G!P11="","",U33_G!P11),IF($AV$7="H",IF(U33_H!P11="","",U33_H!P11),""))))))))) ->  | Q11: =IF($AV$7="","",IF($AV$7="A",IF(U33_A!Q11="","",U33_A!Q11),IF($AV$7="B",IF(U33_B!Q11="","",U33_B!Q11),IF($AV$7="C",IF(U33_C!Q11="","",U33_C!Q11),IF($AV$7="D",IF(U33_D!Q11="","",U33_D!Q11),IF($AV$7="E",IF(U33_E!Q11="","",U33_E!Q11),IF($AV$7="F",IF(U33_F!Q11="","",U33_F!Q11),IF($AV$7="G",IF(U33_G!Q11="","",U33_G!Q11),IF($AV$7="H",IF(U33_H!Q11="","",U33_H!Q11),""))))))))) ->  | R11: =IF($AV$7="","",IF($AV$7="A",IF(U33_A!R11="","",U33_A!R11),IF($AV$7="B",IF(U33_B!R11="","",U33_B!R11),IF($AV$7="C",IF(U33_C!R11="","",U33_C!R11),IF($AV$7="D",IF(U33_D!R11="","",U33_D!R11),IF($AV$7="E",IF(U33_E!R11="","",U33_E!R11),IF($AV$7="F",IF(U33_F!R11="","",U33_F!R11),IF($AV$7="G",IF(U33_G!R11="","",U33_G!R11),IF($AV$7="H",IF(U33_H!R11="","",U33_H!R11),""))))))))) ->  | S11: =IF($AV$7="","",IF($AV$7="A",IF(U33_A!S11="","",U33_A!S11),IF($AV$7="B",IF(U33_B!S11="","",U33_B!S11),IF($AV$7="C",IF(U33_C!S11="","",U33_C!S11),IF($AV$7="D",IF(U33_D!S11="","",U33_D!S11),IF($AV$7="E",IF(U33_E!S11="","",U33_E!S11),IF($AV$7="F",IF(U33_F!S11="","",U33_F!S11),IF($AV$7="G",IF(U33_G!S11="","",U33_G!S11),IF($AV$7="H",IF(U33_H!S11="","",U33_H!S11),""))))))))) ->  | T11: =IF($AV$7="","",IF($AV$7="A",IF(U33_A!T11="","",U33_A!T11),IF($AV$7="B",IF(U33_B!T11="","",U33_B!T11),IF($AV$7="C",IF(U33_C!T11="","",U33_C!T11),IF($AV$7="D",IF(U33_D!T11="","",U33_D!T11),IF($AV$7="E",IF(U33_E!T11="","",U33_E!T11),IF($AV$7="F",IF(U33_F!T11="","",U33_F!T11),IF($AV$7="G",IF(U33_G!T11="","",U33_G!T11),IF($AV$7="H",IF(U33_H!T11="","",U33_H!T11),""))))))))) ->  | U11: =IF($AV$7="","",IF($AV$7="A",IF(U33_A!U11="","",U33_A!U11),IF($AV$7="B",IF(U33_B!U11="","",U33_B!U11),IF($AV$7="C",IF(U33_C!U11="","",U33_C!U11),IF($AV$7="D",IF(U33_D!U11="","",U33_D!U11),IF($AV$7="E",IF(U33_E!U11="","",U33_E!U11),IF($AV$7="F",IF(U33_F!U11="","",U33_F!U11),IF($AV$7="G",IF(U33_G!U11="","",U33_G!U11),IF($AV$7="H",IF(U33_H!U11="","",U33_H!U11),""))))))))) ->  | V11: =IF($AV$7="","",IF($AV$7="A",IF(U33_A!V11="","",U33_A!V11),IF($AV$7="B",IF(U33_B!V11="","",U33_B!V11),IF($AV$7="C",IF(U33_C!V11="","",U33_C!V11),IF($AV$7="D",IF(U33_D!V11="","",U33_D!V11),IF($AV$7="E",IF(U33_E!V11="","",U33_E!V11),IF($AV$7="F",IF(U33_F!V11="","",U33_F!V11),IF($AV$7="G",IF(U33_G!V11="","",U33_G!V11),IF($AV$7="H",IF(U33_H!V11="","",U33_H!V11),""))))))))) ->  | W11: =IF($AV$7="","",IF($AV$7="A",IF(U33_A!W11="","",U33_A!W11),IF($AV$7="B",IF(U33_B!W11="","",U33_B!W11),IF($AV$7="C",IF(U33_C!W11="","",U33_C!W11),IF($AV$7="D",IF(U33_D!W11="","",U33_D!W11),IF($AV$7="E",IF(U33_E!W11="","",U33_E!W11),IF($AV$7="F",IF(U33_F!W11="","",U33_F!W11),IF($AV$7="G",IF(U33_G!W11="","",U33_G!W11),IF($AV$7="H",IF(U33_H!W11="","",U33_H!W11),""))))))))) ->  | X11: =IF($AV$7="","",IF($AV$7="A",IF(U33_A!X11="","",U33_A!X11),IF($AV$7="B",IF(U33_B!X11="","",U33_B!X11),IF($AV$7="C",IF(U33_C!X11="","",U33_C!X11),IF($AV$7="D",IF(U33_D!X11="","",U33_D!X11),IF($AV$7="E",IF(U33_E!X11="","",U33_E!X11),IF($AV$7="F",IF(U33_F!X11="","",U33_F!X11),IF($AV$7="G",IF(U33_G!X11="","",U33_G!X11),IF($AV$7="H",IF(U33_H!X11="","",U33_H!X11),""))))))))) ->  | Y11: =IF($AV$7="","",IF($AV$7="A",IF(U33_A!Y11="","",U33_A!Y11),IF($AV$7="B",IF(U33_B!Y11="","",U33_B!Y11),IF($AV$7="C",IF(U33_C!Y11="","",U33_C!Y11),IF($AV$7="D",IF(U33_D!Y11="","",U33_D!Y11),IF($AV$7="E",IF(U33_E!Y11="","",U33_E!Y11),IF($AV$7="F",IF(U33_F!Y11="","",U33_F!Y11),IF($AV$7="G",IF(U33_G!Y11="","",U33_G!Y11),IF($AV$7="H",IF(U33_H!Y11="","",U33_H!Y11),""))))))))) ->  | Z11: =IF($AV$7="","",IF($AV$7="A",IF(U33_A!Z11="","",U33_A!Z11),IF($AV$7="B",IF(U33_B!Z11="","",U33_B!Z11),IF($AV$7="C",IF(U33_C!Z11="","",U33_C!Z11),IF($AV$7="D",IF(U33_D!Z11="","",U33_D!Z11),IF($AV$7="E",IF(U33_E!Z11="","",U33_E!Z11),IF($AV$7="F",IF(U33_F!Z11="","",U33_F!Z11),IF($AV$7="G",IF(U33_G!Z11="","",U33_G!Z11),IF($AV$7="H",IF(U33_H!Z11="","",U33_H!Z11),""))))))))) ->  | AA11: =IF($AV$7="","",IF($AV$7="A",IF(U33_A!AA11="","",U33_A!AA11),IF($AV$7="B",IF(U33_B!AA11="","",U33_B!AA11),IF($AV$7="C",IF(U33_C!AA11="","",U33_C!AA11),IF($AV$7="D",IF(U33_D!AA11="","",U33_D!AA11),IF($AV$7="E",IF(U33_E!AA11="","",U33_E!AA11),IF($AV$7="F",IF(U33_F!AA11="","",U33_F!AA11),IF($AV$7="G",IF(U33_G!AA11="","",U33_G!AA11),IF($AV$7="H",IF(U33_H!AA11="","",U33_H!AA11),""))))))))) ->  | AB11: =IF($AV$7="","",IF($AV$7="A",IF(U33_A!AB11="","",U33_A!AB11),IF($AV$7="B",IF(U33_B!AB11="","",U33_B!AB11),IF($AV$7="C",IF(U33_C!AB11="","",U33_C!AB11),IF($AV$7="D",IF(U33_D!AB11="","",U33_D!AB11),IF($AV$7="E",IF(U33_E!AB11="","",U33_E!AB11),IF($AV$7="F",IF(U33_F!AB11="","",U33_F!AB11),IF($AV$7="G",IF(U33_G!AB11="","",U33_G!AB11),IF($AV$7="H",IF(U33_H!AB11="","",U33_H!AB11),""))))))))) ->  | AC11: =IF($AV$7="","",IF($AV$7="A",IF(U33_A!AC11="","",U33_A!AC11),IF($AV$7="B",IF(U33_B!AC11="","",U33_B!AC11),IF($AV$7="C",IF(U33_C!AC11="","",U33_C!AC11),IF($AV$7="D",IF(U33_D!AC11="","",U33_D!AC11),IF($AV$7="E",IF(U33_E!AC11="","",U33_E!AC11),IF($AV$7="F",IF(U33_F!AC11="","",U33_F!AC11),IF($AV$7="G",IF(U33_G!AC11="","",U33_G!AC11),IF($AV$7="H",IF(U33_H!AC11="","",U33_H!AC11),""))))))))) ->  | AD11: =IF($AV$7="","",IF($AV$7="A",IF(U33_A!AD11="","",U33_A!AD11),IF($AV$7="B",IF(U33_B!AD11="","",U33_B!AD11),IF($AV$7="C",IF(U33_C!AD11="","",U33_C!AD11),IF($AV$7="D",IF(U33_D!AD11="","",U33_D!AD11),IF($AV$7="E",IF(U33_E!AD11="","",U33_E!AD11),IF($AV$7="F",IF(U33_F!AD11="","",U33_F!AD11),IF($AV$7="G",IF(U33_G!AD11="","",U33_G!AD11),IF($AV$7="H",IF(U33_H!AD11="","",U33_H!AD11),""))))))))) ->  | AE11: =IF($AV$7="","",IF($AV$7="A",IF(U33_A!AE11="","",U33_A!AE11),IF($AV$7="B",IF(U33_B!AE11="","",U33_B!AE11),IF($AV$7="C",IF(U33_C!AE11="","",U33_C!AE11),IF($AV$7="D",IF(U33_D!AE11="","",U33_D!AE11),IF($AV$7="E",IF(U33_E!AE11="","",U33_E!AE11),IF($AV$7="F",IF(U33_F!AE11="","",U33_F!AE11),IF($AV$7="G",IF(U33_G!AE11="","",U33_G!AE11),IF($AV$7="H",IF(U33_H!AE11="","",U33_H!AE11),""))))))))) ->  | AF11: =IF($AV$7="","",IF($AV$7="A",IF(U33_A!AF11="","",U33_A!AF11),IF($AV$7="B",IF(U33_B!AF11="","",U33_B!AF11),IF($AV$7="C",IF(U33_C!AF11="","",U33_C!AF11),IF($AV$7="D",IF(U33_D!AF11="","",U33_D!AF11),IF($AV$7="E",IF(U33_E!AF11="","",U33_E!AF11),IF($AV$7="F",IF(U33_F!AF11="","",U33_F!AF11),IF($AV$7="G",IF(U33_G!AF11="","",U33_G!AF11),IF($AV$7="H",IF(U33_H!AF11="","",U33_H!AF11),""))))))))) ->  | AG11: =IF($AV$7="","",IF($AV$7="A",IF(U33_A!AG11="","",U33_A!AG11),IF($AV$7="B",IF(U33_B!AG11="","",U33_B!AG11),IF($AV$7="C",IF(U33_C!AG11="","",U33_C!AG11),IF($AV$7="D",IF(U33_D!AG11="","",U33_D!AG11),IF($AV$7="E",IF(U33_E!AG11="","",U33_E!AG11),IF($AV$7="F",IF(U33_F!AG11="","",U33_F!AG11),IF($AV$7="G",IF(U33_G!AG11="","",U33_G!AG11),IF($AV$7="H",IF(U33_H!AG11="","",U33_H!AG11),""))))))))) ->  | AH11: =IF($AV$7="","",IF($AV$7="A",IF(U33_A!AH11="","",U33_A!AH11),IF($AV$7="B",IF(U33_B!AH11="","",U33_B!AH11),IF($AV$7="C",IF(U33_C!AH11="","",U33_C!AH11),IF($AV$7="D",IF(U33_D!AH11="","",U33_D!AH11),IF($AV$7="E",IF(U33_E!AH11="","",U33_E!AH11),IF($AV$7="F",IF(U33_F!AH11="","",U33_F!AH11),IF($AV$7="G",IF(U33_G!AH11="","",U33_G!AH11),IF($AV$7="H",IF(U33_H!AH11="","",U33_H!AH11),""))))))))) ->  | AI11: =IF($AV$7="","",IF($AV$7="A",IF(U33_A!AI11="","",U33_A!AI11),IF($AV$7="B",IF(U33_B!AI11="","",U33_B!AI11),IF($AV$7="C",IF(U33_C!AI11="","",U33_C!AI11),IF($AV$7="D",IF(U33_D!AI11="","",U33_D!AI11),IF($AV$7="E",IF(U33_E!AI11="","",U33_E!AI11),IF($AV$7="F",IF(U33_F!AI11="","",U33_F!AI11),IF($AV$7="G",IF(U33_G!AI11="","",U33_G!AI11),IF($AV$7="H",IF(U33_H!AI11="","",U33_H!AI11),""))))))))) ->  | AJ11: =IF($AV$7="","",IF($AV$7="A",IF(U33_A!AJ11="","",U33_A!AJ11),IF($AV$7="B",IF(U33_B!AJ11="","",U33_B!AJ11),IF($AV$7="C",IF(U33_C!AJ11="","",U33_C!AJ11),IF($AV$7="D",IF(U33_D!AJ11="","",U33_D!AJ11),IF($AV$7="E",IF(U33_E!AJ11="","",U33_E!AJ11),IF($AV$7="F",IF(U33_F!AJ11="","",U33_F!AJ11),IF($AV$7="G",IF(U33_G!AJ11="","",U33_G!AJ11),IF($AV$7="H",IF(U33_H!AJ11="","",U33_H!AJ11),""))))))))) ->  | AK11: =IF($AV$7="","",IF($AV$7="A",IF(U33_A!AK11="","",U33_A!AK11),IF($AV$7="B",IF(U33_B!AK11="","",U33_B!AK11),IF($AV$7="C",IF(U33_C!AK11="","",U33_C!AK11),IF($AV$7="D",IF(U33_D!AK11="","",U33_D!AK11),IF($AV$7="E",IF(U33_E!AK11="","",U33_E!AK11),IF($AV$7="F",IF(U33_F!AK11="","",U33_F!AK11),IF($AV$7="G",IF(U33_G!AK11="","",U33_G!AK11),IF($AV$7="H",IF(U33_H!AK11="","",U33_H!AK11),""))))))))) ->  | AL11: =IF($AV$7="","",IF($AV$7="A",IF(U33_A!AL11="","",U33_A!AL11),IF($AV$7="B",IF(U33_B!AL11="","",U33_B!AL11),IF($AV$7="C",IF(U33_C!AL11="","",U33_C!AL11),IF($AV$7="D",IF(U33_D!AL11="","",U33_D!AL11),IF($AV$7="E",IF(U33_E!AL11="","",U33_E!AL11),IF($AV$7="F",IF(U33_F!AL11="","",U33_F!AL11),IF($AV$7="G",IF(U33_G!AL11="","",U33_G!AL11),IF($AV$7="H",IF(U33_H!AL11="","",U33_H!AL11),""))))))))) ->  | AM11: =IF($AV$7="","",IF($AV$7="A",IF(U33_A!AM11="","",U33_A!AM11),IF($AV$7="B",IF(U33_B!AM11="","",U33_B!AM11),IF($AV$7="C",IF(U33_C!AM11="","",U33_C!AM11),IF($AV$7="D",IF(U33_D!AM11="","",U33_D!AM11),IF($AV$7="E",IF(U33_E!AM11="","",U33_E!AM11),IF($AV$7="F",IF(U33_F!AM11="","",U33_F!AM11),IF($AV$7="G",IF(U33_G!AM11="","",U33_G!AM11),IF($AV$7="H",IF(U33_H!AM11="","",U33_H!AM11),""))))))))) ->  | AN11: =IF($AV$7="","",IF($AV$7="A",IF(U33_A!AN11="","",U33_A!AN11),IF($AV$7="B",IF(U33_B!AN11="","",U33_B!AN11),IF($AV$7="C",IF(U33_C!AN11="","",U33_C!AN11),IF($AV$7="D",IF(U33_D!AN11="","",U33_D!AN11),IF($AV$7="E",IF(U33_E!AN11="","",U33_E!AN11),IF($AV$7="F",IF(U33_F!AN11="","",U33_F!AN11),IF($AV$7="G",IF(U33_G!AN11="","",U33_G!AN11),IF($AV$7="H",IF(U33_H!AN11="","",U33_H!AN11),""))))))))) ->  | AO11: =IF($AV$7="","",IF($AV$7="A",IF(U33_A!AO11="","",U33_A!AO11),IF($AV$7="B",IF(U33_B!AO11="","",U33_B!AO11),IF($AV$7="C",IF(U33_C!AO11="","",U33_C!AO11),IF($AV$7="D",IF(U33_D!AO11="","",U33_D!AO11),IF($AV$7="E",IF(U33_E!AO11="","",U33_E!AO11),IF($AV$7="F",IF(U33_F!AO11="","",U33_F!AO11),IF($AV$7="G",IF(U33_G!AO11="","",U33_G!AO11),IF($AV$7="H",IF(U33_H!AO11="","",U33_H!AO11),""))))))))) ->  | AP11: =IF($AV$7="","",IF($AV$7="A",IF(U33_A!AP11="","",U33_A!AP11),IF($AV$7="B",IF(U33_B!AP11="","",U33_B!AP11),IF($AV$7="C",IF(U33_C!AP11="","",U33_C!AP11),IF($AV$7="D",IF(U33_D!AP11="","",U33_D!AP11),IF($AV$7="E",IF(U33_E!AP11="","",U33_E!AP11),IF($AV$7="F",IF(U33_F!AP11="","",U33_F!AP11),IF($AV$7="G",IF(U33_G!AP11="","",U33_G!AP11),IF($AV$7="H",IF(U33_H!AP11="","",U33_H!AP11),""))))))))) ->  | AQ11: =IF($AV$7="","",IF($AV$7="A",IF(U33_A!AQ11="","",U33_A!AQ11),IF($AV$7="B",IF(U33_B!AQ11="","",U33_B!AQ11),IF($AV$7="C",IF(U33_C!AQ11="","",U33_C!AQ11),IF($AV$7="D",IF(U33_D!AQ11="","",U33_D!AQ11),IF($AV$7="E",IF(U33_E!AQ11="","",U33_E!AQ11),IF($AV$7="F",IF(U33_F!AQ11="","",U33_F!AQ11),IF($AV$7="G",IF(U33_G!AQ11="","",U33_G!AQ11),IF($AV$7="H",IF(U33_H!AQ11="","",U33_H!AQ11),""))))))))) ->  | AR11: =IF($AV$7="","",IF($AV$7="A",IF(U33_A!AR11="","",U33_A!AR11),IF($AV$7="B",IF(U33_B!AR11="","",U33_B!AR11),IF($AV$7="C",IF(U33_C!AR11="","",U33_C!AR11),IF($AV$7="D",IF(U33_D!AR11="","",U33_D!AR11),IF($AV$7="E",IF(U33_E!AR11="","",U33_E!AR11),IF($AV$7="F",IF(U33_F!AR11="","",U33_F!AR11),IF($AV$7="G",IF(U33_G!AR11="","",U33_G!AR11),IF($AV$7="H",IF(U33_H!AR11="","",U33_H!AR11),""))))))))) ->  | AS11: =IF($AV$7="","",IF($AV$7="A",IF(U33_A!AS11="","",U33_A!AS11),IF($AV$7="B",IF(U33_B!AS11="","",U33_B!AS11),IF($AV$7="C",IF(U33_C!AS11="","",U33_C!AS11),IF($AV$7="D",IF(U33_D!AS11="","",U33_D!AS11),IF($AV$7="E",IF(U33_E!AS11="","",U33_E!AS11),IF($AV$7="F",IF(U33_F!AS11="","",U33_F!AS11),IF($AV$7="G",IF(U33_G!AS11="","",U33_G!AS11),IF($AV$7="H",IF(U33_H!AS11="","",U33_H!AS11),""))))))))) ->  | AT11: =IF($AV$7="","",IF($AV$7="A",IF(U33_A!AT11="","",U33_A!AT11),IF($AV$7="B",IF(U33_B!AT11="","",U33_B!AT11),IF($AV$7="C",IF(U33_C!AT11="","",U33_C!AT11),IF($AV$7="D",IF(U33_D!AT11="","",U33_D!AT11),IF($AV$7="E",IF(U33_E!AT11="","",U33_E!AT11),IF($AV$7="F",IF(U33_F!AT11="","",U33_F!AT11),IF($AV$7="G",IF(U33_G!AT11="","",U33_G!AT11),IF($AV$7="H",IF(U33_H!AT11="","",U33_H!AT11),""))))))))) -> 
A13: Données fournies au candidat
A14: =IF($AV$7="","",IF($AV$7="A",IF(U33_A!A14="","",U33_A!A14),IF($AV$7="B",IF(U33_B!A14="","",U33_B!A14),IF($AV$7="C",IF(U33_C!A14="","",U33_C!A14),IF($AV$7="D",IF(U33_D!A14="","",U33_D!A14),IF($AV$7="E",IF(U33_E!A14="","",U33_E!A14),IF($AV$7="F",IF(U33_F!A14="","",U33_F!A14),IF($AV$7="G",IF(U33_G!A14="","",U33_G!A14),IF($AV$7="H",IF(U33_H!A14="","",U33_H!A14),""))))))))) ->  | B14: Un bien en panne totale ou partielle. | X14: =IF($AV$7="","",IF($AV$7="A",IF(U33_A!X14="","",U33_A!X14),IF($AV$7="B",IF(U33_B!X14="","",U33_B!X14),IF($AV$7="C",IF(U33_C!X14="","",U33_C!X14),IF($AV$7="D",IF(U33_D!X14="","",U33_D!X14),IF($AV$7="E",IF(U33_E!X14="","",U33_E!X14),IF($AV$7="F",IF(U33_F!X14="","",U33_F!X14),IF($AV$7="G",IF(U33_G!X14="","",U33_G!X14),IF($AV$7="H",IF(U33_H!X14="","",U33_H!X14),""))))))))) ->  | Y14: Le bon de travail.
A15: =IF($AV$7="","",IF($AV$7="A",IF(U33_A!A15="","",U33_A!A15),IF($AV$7="B",IF(U33_B!A15="","",U33_B!A15),IF($AV$7="C",IF(U33_C!A15="","",U33_C!A15),IF($AV$7="D",IF(U33_D!A15="","",U33_D!A15),IF($AV$7="E",IF(U33_E!A15="","",U33_E!A15),IF($AV$7="F",IF(U33_F!A15="","",U33_F!A15),IF($AV$7="G",IF(U33_G!A15="","",U33_G!A15),IF($AV$7="H",IF(U33_H!A15="","",U33_H!A15),""))))))))) ->  | B15: Le dossier technique du bien et son dossier de maintenance sur supports papiers ou supports numériques | X15: =IF($AV$7="","",IF($AV$7="A",IF(U33_A!X15="","",U33_A!X15),IF($AV$7="B",IF(U33_B!X15="","",U33_B!X15),IF($AV$7="C",IF(U33_C!X15="","",U33_C!X15),IF($AV$7="D",IF(U33_D!X15="","",U33_D!X15),IF($AV$7="E",IF(U33_E!X15="","",U33_E!X15),IF($AV$7="F",IF(U33_F!X15="","",U33_F!X15),IF($AV$7="G",IF(U33_G!X15="","",U33_G!X15),IF($AV$7="H",IF(U33_H!X15="","",U33_H!X15),""))))))))) ->  | Y15: Toutes informations en provenance de l’utilisateur ou d’autres intervenants
A16: =IF($AV$7="","",IF($AV$7="A",IF(U33_A!A16="","",U33_A!A16),IF($AV$7="B",IF(U33_B!A16="","",U33_B!A16),IF($AV$7="C",IF(U33_C!A16="","",U33_C!A16),IF($AV$7="D",IF(U33_D!A16="","",U33_D!A16),IF($AV$7="E",IF(U33_E!A16="","",U33_E!A16),IF($AV$7="F",IF(U33_F!A16="","",U33_F!A16),IF($AV$7="G",IF(U33_G!A16="","",U33_G!A16),IF($AV$7="H",IF(U33_H!A16="","",U33_H!A16),""))))))))) ->  | B16: Les Consignes et/ou les procédures écrites | X16: =IF($AV$7="","",IF($AV$7="A",IF(U33_A!X16="","",U33_A!X16),IF($AV$7="B",IF(U33_B!X16="","",U33_B!X16),IF($AV$7="C",IF(U33_C!X16="","",U33_C!X16),IF($AV$7="D",IF(U33_D!X16="","",U33_D!X16),IF($AV$7="E",IF(U33_E!X16="","",U33_E!X16),IF($AV$7="F",IF(U33_F!X16="","",U33_F!X16),IF($AV$7="G",IF(U33_G!X16="","",U33_G!X16),IF($AV$7="H",IF(U33_H!X16="","",U33_H!X16),""))))))))) ->  | Y16: La description des évènements par l’exploitant
A17: =IF($AV$7="","",IF($AV$7="A",IF(U33_A!A17="","",U33_A!A17),IF($AV$7="B",IF(U33_B!A17="","",U33_B!A17),IF($AV$7="C",IF(U33_C!A17="","",U33_C!A17),IF($AV$7="D",IF(U33_D!A17="","",U33_D!A17),IF($AV$7="E",IF(U33_E!A17="","",U33_E!A17),IF($AV$7="F",IF(U33_F!A17="","",U33_F!A17),IF($AV$7="G",IF(U33_G!A17="","",U33_G!A17),IF($AV$7="H",IF(U33_H!A17="","",U33_H!A17),""))))))))) ->  | B17: Le dossier historique du bien. | X17: =IF($AV$7="","",IF($AV$7="A",IF(U33_A!X17="","",U33_A!X17),IF($AV$7="B",IF(U33_B!X17="","",U33_B!X17),IF($AV$7="C",IF(U33_C!X17="","",U33_C!X17),IF($AV$7="D",IF(U33_D!X17="","",U33_D!X17),IF($AV$7="E",IF(U33_E!X17="","",U33_E!X17),IF($AV$7="F",IF(U33_F!X17="","",U33_F!X17),IF($AV$7="G",IF(U33_G!X17="","",U33_G!X17),IF($AV$7="H",IF(U33_H!X17="","",U33_H!X17),""))))))))) ->  | Y17: La documentation technique du bien.
A18: =IF($AV$7="","",IF($AV$7="A",IF(U33_A!A18="","",U33_A!A18),IF($AV$7="B",IF(U33_B!A18="","",U33_B!A18),IF($AV$7="C",IF(U33_C!A18="","",U33_C!A18),IF($AV$7="D",IF(U33_D!A18="","",U33_D!A18),IF($AV$7="E",IF(U33_E!A18="","",U33_E!A18),IF($AV$7="F",IF(U33_F!A18="","",U33_F!A18),IF($AV$7="G",IF(U33_G!A18="","",U33_G!A18),IF($AV$7="H",IF(U33_H!A18="","",U33_H!A18),""))))))))) ->  | B18: Document unique d’évaluation des risques | X18: =IF($AV$7="","",IF($AV$7="A",IF(U33_A!X18="","",U33_A!X18),IF($AV$7="B",IF(U33_B!X18="","",U33_B!X18),IF($AV$7="C",IF(U33_C!X18="","",U33_C!X18),IF($AV$7="D",IF(U33_D!X18="","",U33_D!X18),IF($AV$7="E",IF(U33_E!X18="","",U33_E!X18),IF($AV$7="F",IF(U33_F!X18="","",U33_F!X18),IF($AV$7="G",IF(U33_G!X18="","",U33_G!X18),IF($AV$7="H",IF(U33_H!X18="","",U33_H!X18),""))))))))) ->  | Y18: Le plan de prévention
A19: =IF($AV$7="","",IF($AV$7="A",IF(U33_A!A19="","",U33_A!A19),IF($AV$7="B",IF(U33_B!A19="","",U33_B!A19),IF($AV$7="C",IF(U33_C!A19="","",U33_C!A19),IF($AV$7="D",IF(U33_D!A19="","",U33_D!A19),IF($AV$7="E",IF(U33_E!A19="","",U33_E!A19),IF($AV$7="F",IF(U33_F!A19="","",U33_F!A19),IF($AV$7="G",IF(U33_G!A19="","",U33_G!A19),IF($AV$7="H",IF(U33_H!A19="","",U33_H!A19),""))))))))) ->  | B19: Eventuellement une aide au diagnostic : - Tableau cause/effet - Organigramme de défaillance - Diagramme cause/effet – AMPEC, - AMDE… | X19: =IF($AV$7="","",IF($AV$7="A",IF(U33_A!X19="","",U33_A!X19),IF($AV$7="B",IF(U33_B!X19="","",U33_B!X19),IF($AV$7="C",IF(U33_C!X19="","",U33_C!X19),IF($AV$7="D",IF(U33_D!X19="","",U33_D!X19),IF($AV$7="E",IF(U33_E!X19="","",U33_E!X19),IF($AV$7="F",IF(U33_F!X19="","",U33_F!X19),IF($AV$7="G",IF(U33_G!X19="","",U33_G!X19),IF($AV$7="H",IF(U33_H!X19="","",U33_H!X19),""))))))))) ->  | Y19: Les moyens d’investigation : Console de programmation maintenance. Les appareils de mesure, de contrôle, moyens de manutention.
A20: =IF($AV$7="","",IF($AV$7="A",IF(U33_A!A20="","",U33_A!A20),IF($AV$7="B",IF(U33_B!A20="","",U33_B!A20),IF($AV$7="C",IF(U33_C!A20="","",U33_C!A20),IF($AV$7="D",IF(U33_D!A20="","",U33_D!A20),IF($AV$7="E",IF(U33_E!A20="","",U33_E!A20),IF($AV$7="F",IF(U33_F!A20="","",U33_F!A20),IF($AV$7="G",IF(U33_G!A20="","",U33_G!A20),IF($AV$7="H",IF(U33_H!A20="","",U33_H!A20),""))))))))) ->  | B20: Les outillages nécessaires. | X20: =IF($AV$7="","",IF($AV$7="A",IF(U33_A!X20="","",U33_A!X20),IF($AV$7="B",IF(U33_B!X20="","",U33_B!X20),IF($AV$7="C",IF(U33_C!X20="","",U33_C!X20),IF($AV$7="D",IF(U33_D!X20="","",U33_D!X20),IF($AV$7="E",IF(U33_E!X20="","",U33_E!X20),IF($AV$7="F",IF(U33_F!X20="","",U33_F!X20),IF($AV$7="G",IF(U33_G!X20="","",U33_G!X20),IF($AV$7="H",IF(U33_H!X20="","",U33_H!X20),""))))))))) ->  | Y20: Les documentations constructeur spécifiques
A21: =IF($AV$7="","",IF($AV$7="A",IF(U33_A!A21="","",U33_A!A21),IF($AV$7="B",IF(U33_B!A21="","",U33_B!A21),IF($AV$7="C",IF(U33_C!A21="","",U33_C!A21),IF($AV$7="D",IF(U33_D!A21="","",U33_D!A21),IF($AV$7="E",IF(U33_E!A21="","",U33_E!A21),IF($AV$7="F",IF(U33_F!A21="","",U33_F!A21),IF($AV$7="G",IF(U33_G!A21="","",U33_G!A21),IF($AV$7="H",IF(U33_H!A21="","",U33_H!A21),""))))))))) ->  | B21: Les pièces de rechange, consommables | X21: =IF($AV$7="","",IF($AV$7="A",IF(U33_A!X21="","",U33_A!X21),IF($AV$7="B",IF(U33_B!X21="","",U33_B!X21),IF($AV$7="C",IF(U33_C!X21="","",U33_C!X21),IF($AV$7="D",IF(U33_D!X21="","",U33_D!X21),IF($AV$7="E",IF(U33_E!X21="","",U33_E!X21),IF($AV$7="F",IF(U33_F!X21="","",U33_F!X21),IF($AV$7="G",IF(U33_G!X21="","",U33_G!X21),IF($AV$7="H",IF(U33_H!X21="","",U33_H!X21),""))))))))) ->  | Y21: Le plan d’implantation du bien
A22: =IF($AV$7="","",IF($AV$7="A",IF(U33_A!A22="","",U33_A!A22),IF($AV$7="B",IF(U33_B!A22="","",U33_B!A22),IF($AV$7="C",IF(U33_C!A22="","",U33_C!A22),IF($AV$7="D",IF(U33_D!A22="","",U33_D!A22),IF($AV$7="E",IF(U33_E!A22="","",U33_E!A22),IF($AV$7="F",IF(U33_F!A22="","",U33_F!A22),IF($AV$7="G",IF(U33_G!A22="","",U33_G!A22),IF($AV$7="H",IF(U33_H!A22="","",U33_H!A22),""))))))))) ->  | B22: Les équipements de protection individuels et collectifs | X22: =IF($AV$7="","",IF($AV$7="A",IF(U33_A!X22="","",U33_A!X22),IF($AV$7="B",IF(U33_B!X22="","",U33_B!X22),IF($AV$7="C",IF(U33_C!X22="","",U33_C!X22),IF($AV$7="D",IF(U33_D!X22="","",U33_D!X22),IF($AV$7="E",IF(U33_E!X22="","",U33_E!X22),IF($AV$7="F",IF(U33_F!X22="","",U33_F!X22),IF($AV$7="G",IF(U33_G!X22="","",U33_G!X22),IF($AV$7="H",IF(U33_H!X22="","",U33_H!X22),""))))))))) ->  | Y22: Les équipements individuels de sécurité
A23: =IF($AV$7="","",IF($AV$7="A",IF(U33_A!A23="","",U33_A!A23),IF($AV$7="B",IF(U33_B!A23="","",U33_B!A23),IF($AV$7="C",IF(U33_C!A23="","",U33_C!A23),IF($AV$7="D",IF(U33_D!A23="","",U33_D!A23),IF($AV$7="E",IF(U33_E!A23="","",U33_E!A23),IF($AV$7="F",IF(U33_F!A23="","",U33_F!A23),IF($AV$7="G",IF(U33_G!A23="","",U33_G!A23),IF($AV$7="H",IF(U33_H!A23="","",U33_H!A23),""))))))))) ->  | B23: Le planning des interventions | X23: =IF($AV$7="","",IF($AV$7="A",IF(U33_A!X23="","",U33_A!X23),IF($AV$7="B",IF(U33_B!X23="","",U33_B!X23),IF($AV$7="C",IF(U33_C!X23="","",U33_C!X23),IF($AV$7="D",IF(U33_D!X23="","",U33_D!X23),IF($AV$7="E",IF(U33_E!X23="","",U33_E!X23),IF($AV$7="F",IF(U33_F!X23="","",U33_F!X23),IF($AV$7="G",IF(U33_G!X23="","",U33_G!X23),IF($AV$7="H",IF(U33_H!X23="","",U33_H!X23),""))))))))) ->  | Y23: Les documents utilisateurs du ou des postes de travail.
A24: =IF($AV$7="","",IF($AV$7="A",IF(U33_A!A24="","",U33_A!A24),IF($AV$7="B",IF(U33_B!A24="","",U33_B!A24),IF($AV$7="C",IF(U33_C!A24="","",U33_C!A24),IF($AV$7="D",IF(U33_D!A24="","",U33_D!A24),IF($AV$7="E",IF(U33_E!A24="","",U33_E!A24),IF($AV$7="F",IF(U33_F!A24="","",U33_F!A24),IF($AV$7="G",IF(U33_G!A24="","",U33_G!A24),IF($AV$7="H",IF(U33_H!A24="","",U33_H!A24),""))))))))) ->  | B24: Le dossier de préparation | X24: =IF($AV$7="","",IF($AV$7="A",IF(U33_A!X24="","",U33_A!X24),IF($AV$7="B",IF(U33_B!X24="","",U33_B!X24),IF($AV$7="C",IF(U33_C!X24="","",U33_C!X24),IF($AV$7="D",IF(U33_D!X24="","",U33_D!X24),IF($AV$7="E",IF(U33_E!X24="","",U33_E!X24),IF($AV$7="F",IF(U33_F!X24="","",U33_F!X24),IF($AV$7="G",IF(U33_G!X24="","",U33_G!X24),IF($AV$7="H",IF(U33_H!X24="","",U33_H!X24),""))))))))) ->  | Y24: Le document de recette
A25: =IF($AV$7="","",IF($AV$7="A",IF(U33_A!A25="","",U33_A!A25),IF($AV$7="B",IF(U33_B!A25="","",U33_B!A25),IF($AV$7="C",IF(U33_C!A25="","",U33_C!A25),IF($AV$7="D",IF(U33_D!A25="","",U33_D!A25),IF($AV$7="E",IF(U33_E!A25="","",U33_E!A25),IF($AV$7="F",IF(U33_F!A25="","",U33_F!A25),IF($AV$7="G",IF(U33_G!A25="","",U33_G!A25),IF($AV$7="H",IF(U33_H!A25="","",U33_H!A25),""))))))))) ->  | B25: Les normes | X25: =IF($AV$7="","",IF($AV$7="A",IF(U33_A!X25="","",U33_A!X25),IF($AV$7="B",IF(U33_B!X25="","",U33_B!X25),IF($AV$7="C",IF(U33_C!X25="","",U33_C!X25),IF($AV$7="D",IF(U33_D!X25="","",U33_D!X25),IF($AV$7="E",IF(U33_E!X25="","",U33_E!X25),IF($AV$7="F",IF(U33_F!X25="","",U33_F!X25),IF($AV$7="G",IF(U33_G!X25="","",U33_G!X25),IF($AV$7="H",IF(U33_H!X25="","",U33_H!X25),""))))))))) -> 
A26: =IF($AV$7="","",IF($AV$7="A",IF(U33_A!A26="","",U33_A!A26),IF($AV$7="B",IF(U33_B!A26="","",U33_B!A26),IF($AV$7="C",IF(U33_C!A26="","",U33_C!A26),IF($AV$7="D",IF(U33_D!A26="","",U33_D!A26),IF($AV$7="E",IF(U33_E!A26="","",U33_E!A26),IF($AV$7="F",IF(U33_F!A26="","",U33_F!A26),IF($AV$7="G",IF(U33_G!A26="","",U33_G!A26),IF($AV$7="H",IF(U33_H!A26="","",U33_H!A26),""))))))))) ->  | B26: Le Carnet de prescription de sécurité électrique | X26: =IF($AV$7="","",IF($AV$7="A",IF(U33_A!X26="","",U33_A!X26),IF($AV$7="B",IF(U33_B!X26="","",U33_B!X26),IF($AV$7="C",IF(U33_C!X26="","",U33_C!X26),IF($AV$7="D",IF(U33_D!X26="","",U33_D!X26),IF($AV$7="E",IF(U33_E!X26="","",U33_E!X26),IF($AV$7="F",IF(U33_F!X26="","",U33_F!X26),IF($AV$7="G",IF(U33_G!X26="","",U33_G!X26),IF($AV$7="H",IF(U33_H!X26="","",U33_H!X26),""))))))))) -> 
A27: ÇRepérer les données fournies | Y27: ÇRepérer les données fournies
A28: Travail demandé
A29: =IF($AV$7="","",IF($AV$7="A",IF(U33_A!A29="","",U33_A!A29),IF($AV$7="B",IF(U33_B!A29="","",U33_B!A29),IF($AV$7="C",IF(U33_C!A29="","",U33_C!A29),IF($AV$7="D",IF(U33_D!A29="","",U33_D!A29),IF($AV$7="E",IF(U33_E!A29="","",U33_E!A29),IF($AV$7="F",IF(U33_F!A29="","",U33_F!A29),IF($AV$7="G",IF(U33_G!A29="","",U33_G!A29),IF($AV$7="H",IF(U33_H!A29="","",U33_H!A29),""))))))))) ->  | B29: A1-T1 | D29: Réaliser la maintenance corrective - Diagnostiquer les pannes.
A30: =IF($AV$7="","",IF($AV$7="A",IF(U33_A!A30="","",U33_A!A30),IF($AV$7="B",IF(U33_B!A30="","",U33_B!A30),IF($AV$7="C",IF(U33_C!A30="","",U33_C!A30),IF($AV$7="D",IF(U33_D!A30="","",U33_D!A30),IF($AV$7="E",IF(U33_E!A30="","",U33_E!A30),IF($AV$7="F",IF(U33_F!A30="","",U33_F!A30),IF($AV$7="G",IF(U33_G!A30="","",U33_G!A30),IF($AV$7="H",IF(U33_H!A30="","",U33_H!A30),""))))))))) ->  | B30: A1-T3 | D30: Réaliser la maintenance corrective - Réaliser des réparations, des dépannages dans les domaines : mécanique, électrique, pneumatique, hydraulique.
A31: =IF($AV$7="","",IF($AV$7="A",IF(U33_A!A31="","",U33_A!A31),IF($AV$7="B",IF(U33_B!A31="","",U33_B!A31),IF($AV$7="C",IF(U33_C!A31="","",U33_C!A31),IF($AV$7="D",IF(U33_D!A31="","",U33_D!A31),IF($AV$7="E",IF(U33_E!A31="","",U33_E!A31),IF($AV$7="F",IF(U33_F!A31="","",U33_F!A31),IF($AV$7="G",IF(U33_G!A31="","",U33_G!A31),IF($AV$7="H",IF(U33_H!A31="","",U33_H!A31),""))))))))) ->  | B31: A2-T2 | D31: Réaliser la maintenance préventive - Réaliser des opérations planifiées.
A32: =IF($AV$7="","",IF($AV$7="A",IF(U33_A!A32="","",U33_A!A32),IF($AV$7="B",IF(U33_B!A32="","",U33_B!A32),IF($AV$7="C",IF(U33_C!A32="","",U33_C!A32),IF($AV$7="D",IF(U33_D!A32="","",U33_D!A32),IF($AV$7="E",IF(U33_E!A32="","",U33_E!A32),IF($AV$7="F",IF(U33_F!A32="","",U33_F!A32),IF($AV$7="G",IF(U33_G!A32="","",U33_G!A32),IF($AV$7="H",IF(U33_H!A32="","",U33_H!A32),""))))))))) ->  | B32: A4-T1 | D32: Intégrer de nouveaux biens - Installer de nouveaux biens.
A33: =IF($AV$7="","",IF($AV$7="A",IF(U33_A!A33="","",U33_A!A33),IF($AV$7="B",IF(U33_B!A33="","",U33_B!A33),IF($AV$7="C",IF(U33_C!A33="","",U33_C!A33),IF($AV$7="D",IF(U33_D!A33="","",U33_D!A33),IF($AV$7="E",IF(U33_E!A33="","",U33_E!A33),IF($AV$7="F",IF(U33_F!A33="","",U33_F!A33),IF($AV$7="G",IF(U33_G!A33="","",U33_G!A33),IF($AV$7="H",IF(U33_H!A33="","",U33_H!A33),""))))))))) ->  | B33: A4-T2 | D33: Intégrer de nouveaux biens - Mettre en service de nouveaux biens
A34: L’ENSEMBLE DES ACTIVITES ET DES TACHES SONT MOBILISEES EN CE QUI CONCERNE LA COMPETENCE CP1.7 QUI A TRAIT A LA SECURITE ET A LA PREVENTION DES RISQUES
A35: Consulter le référentiel des activités professionnelles pour obtenir le détail des tâches.
A36: Ç Repérer les tâches demandées (ce sont celles qui correspondent à l’unité dans le référentiel de certification, à l’exclusion de toute autre)
A37: Appréciation globale et proposition de note :
A39: Noms et signatures des évaluateurs : | AJ39: Note proposée : | AO39: =IF(AI169="","",AI169) ->  | AR39: /20
AJ40: Note affectée de son coefficient : | AO40: =IF(AO39="","",AO39*3) ->  | AR40: /60
A41: Baccalauréat professionnel « maintenance des équipements industriels » – Unité U 33 | AI41: Validé | AM41: - Synthèse +
A43: CP 1.1 - Diagnostiquer les pannes | AE43: Evalué | AI43: =IF(AE43="Non Evalué","NE",IF(AE43="Evalué","E","")) -> E | AJ43: =COUNTIF(AI45:AL74,"Validé") -> 0 | AK43: =COUNTIF(AI45:AL74,"Non Validé") -> 0 | AL43: =COUNTIF(AI45:AL74,"Non Evalué") -> 0 | AV43: =IF(AE43="","Souhaitez-vous évaluer la compétence ?",IF(AND(AE43="Non Evalué",OR(AJ43<>0,AK43<>0)),"Vous avez choisi de ne pas évaluer la compétence. Ne rien indiquez dans la colonne Validé.",IF(AND(AE43="Evalué",OR(AI45="",AI47="",AI49="",AI51="",AI53="",AI55="",AI57="",AI59="",AI61="",AI63="",AI65="",AI67="",AI69="",AI71="",AI73="")),"Vous avez choisi d'évaluer la compétence. Indiquez pour chaques actions : Validé, Non Validé ou Non Evalué.",IF(OR(AE43="Non Evalué",(AJ43+AK43)=0),"",CONCATENATE(ROUND((100*AJ44/(AJ44+AK44)),0)," % d'actions validées. ",AJ43," validée(s) sur ",AJ43+AK43," . Conseil: Au maximum , grisez ",ROUND((100*AJ44/(AJ44+AK44))*8/100,0)," colonnes"))))) -> Vous avez choisi d'évaluer la compétence. Indiquez pour chaques actions : Validé, Non Validé ou Non Evalué.
AJ44: =SUMPRODUCT((AI45:AL74="Validé")*(Bareme!AE291:AE320)) -> 0 | AK44: =SUMPRODUCT((AI45:AL74="Non Validé")*(Bareme!AE291:AE320)) -> 0
A45: 1 | C45: Etablir le constat de défaillance. | N45: Les évènements avant panne sont collectés | AV45: 0
N47: Les informations délivrées par le système sont relevées.
N49: La configuration du bien en panne est analysée
A51: 2 | C51: Identifier la fonction défaillante | N51: La fonction défaillante est repérée
A53: 3 | C53: Localiser la panne : • identifier et lister les composants susceptibles d’être défaillants, • hiérarchiser les hypothèses, • effectuer les tests, mesures et contrôles permettant de valider ou non les hypothèses. | N53: Les composants sont listés exhaustivement
N55: Les hypothèses sont pertinentes, plausibles et correctement hiérarchisées.
N57: Les points de test et de contrôle sont bien choisis et localisés.
N59: Les appareils de mesure et de contrôle sont correctement mis en œuvre.
N61: Les résultats sont bien interprétés. | AM61: Commentaires:
N63: La chronologie des tests est adaptée en fonction des résultats des contrôles précédents.
A65: 4 | C65: Identifier le composant défectueux. | N65: L’identification du composant est correcte.
N67: La durée de la localisation est optimale.
A69: 5 | C69: Expertiser le composant et identifier la cause de la panne. | N69: La cause de la panne est plausible
N71: La demande complémentaire d’expertise du bien est justifiée.
N73: La durée du diagnostic est optimale
A75: CP 1.2 - Remettre en état de fonctionnement un bien | AE75: Evalué | AI75: =IF(AE75="Non Evalué","NE",IF(AE75="Evalué","E","")) -> E | AJ75: =COUNTIF(AI77:AL90,"Validé") -> 0 | AK75: =COUNTIF(AI77:AL90,"Non Validé") -> 0 | AL75: =COUNTIF(AI77:AL90,"Non Evalué") -> 0 | AV75: =IF(AE75="","Souhaitez-vous évaluer la compétence ?",IF(AND(AE75="Non Evalué",OR(AJ75<>0,AK75<>0)),"Vous avez choisi de ne pas évaluer la compétence. Ne rien indiquez dans la colonne Validé.",IF(AND(AE75="Evalué",OR(AI77="",AI79="",AI81="",AI83="",AI85="",AI87="",AI89="")),"Vous avez choisi d'évaluer la compétence. Indiquez pour chaques actions : Validé, Non Validé ou Non Evalué.",IF(OR(AE75="Non Evalué",(AJ75+AK75)=0),"",CONCATENATE(ROUND((100*AJ76/(AJ76+AK76)),0)," % d'actions validées. ",AJ75," validée(s) sur ",AJ75+AK75," . Conseil: Au maximum , grisez ",ROUND((100*AJ76/(AJ76+AK76))*8/100,0)," colonnes"))))) -> Vous avez choisi d'évaluer la compétence. Indiquez pour chaques actions : Validé, Non Validé ou Non Evalué.
AJ76: =SUMPRODUCT((AI77:AL90="Validé")*(Bareme!AE323:AE336)) -> 0 | AK76: =SUMPRODUCT((AI77:AL90="Non Validé")*(Bareme!AE323:AE336)) -> 0
A77: 1 | C77: Situer le composant défectueux sur le bien. | N77: Le composant est repéré rapidement sur le bien | AV77: 0
A79: 2 | C79: Rassembler et vérifier les outillages et matériels nécessaires. | N79: Les moyens rassemblés sont en bon état et adaptés à l’intervention.
A81: 3 | C81: Consigner tout ou partie du bien. | N81: Le bien est consigné dans le respect de la réglementation et des procédures.
A83: 4 | C83: Effectuer la dépose du composant défectueux. | N83: Les consignes et procédures sont respectées.
AM84: Commentaires:
N85: Les moyens de manutention et l’outillage sont mis en œuvre correctement et en toute sécurité.
A87: 5 | C87: Installer et régler le composant de remplacement. | N87: Le composant est remplacé sans risque pour les personnes et le bien.
A89: 6 | C89: Mettre en service le bien. | N89: Les performances du bien sont conformes au cahier des charges
A91: Baccalauréat professionnel « maintenance des équipements industriels » – Unité U 33 | AI91: Validé | AM91: - Synthèse +
A93: CP 1.6 - Mettre en service un bien dans le respect des procédures | AE93: Evalué | AI93: =IF(AE93="Non Evalué","NE",IF(AE93="Evalué","E","")) -> E | AJ93: =COUNTIF(AI95:AL122,"Validé") -> 0 | AK93: =COUNTIF(AI95:AL122,"Non Validé") -> 0 | AL93: =COUNTIF(AI95:AL122,"Non Evalué") -> 0 | AV93: =IF(AE93="","Souhaitez-vous évaluer la compétence ?",IF(AND(AE93="Non Evalué",OR(AJ93<>0,AK93<>0)),"Vous avez choisi de ne pas évaluer la compétence. Ne rien indiquez dans la colonne Validé.",IF(AND(AE93="Evalué",OR(AI95="",AI97="",AI99="",AI101="",AI103="",AI105="",AI107="",AI109="",AI111="",AI113="",AI115="",AI117="",AI119="",AI121="")),"Vous avez choisi d'évaluer la compétence. Indiquez pour chaques actions : Validé, Non Validé ou Non Evalué.",IF(OR(AE93="Non Evalué",(AJ93+AK93)=0),"",CONCATENATE(ROUND((100*AJ94/(AJ94+AK94)),0)," % d'actions validées. ",AJ93," validée(s) sur ",AJ93+AK93," . Conseil: Au maximum , grisez ",ROUND((100*AJ94/(AJ94+AK94))*8/100,0)," colonnes"))))) -> Vous avez choisi d'évaluer la compétence. Indiquez pour chaques actions : Validé, Non Validé ou Non Evalué.
AJ94: =SUMPRODUCT((AI95:AL122="Validé")*(Bareme!AE339:AE366)) -> 0 | AK94: =SUMPRODUCT((AI95:AL122="Non Validé")*(Bareme!AE339:AE366)) -> 0
A95: 1 | C95: Préparer le bien pour une mise en service. | N95: Les zones d’actions des effecteurs et la zone de travail sont propres et dégagées. | AV95: 0
N97: La vérification des scellements et la géométrie des biens sont réalisées.
A99: 2 | C99: S’informer sur le régime du neutre installé | N99: Le régime du neutre est identifié.
A101: 3 | C101: Vérifier les mises à la terre. | N101: Les mises à la terre sont vérifiées.
AM102: Commentaires:
A103: 4 | C103: Déconsigner tout ou partie du bien. | N103: Les procédures de déconsignation sont respectées
A105: 5 | C105: Vérifier la présence et les niveaux des énergies d’alimentation. | N105: La présence et les niveaux des énergies sont identifiés et conformes au cahier des charges.
A107: 6 | C107: S’approprier les différentes procédures de mise en service et de sécurité. | N107: Les descriptifs des différents modes de marche et d’arrêt, le document unique d’évaluation des risques et le plan de prévention sont lus et interprétés sans erreur.
A109: 7 | C109: Vérifier l’efficacité de la chaîne de sécurité | N109: Les arrêts d’urgence et les éléments de sécurité sont vérifiés et efficaces.
A111: 8 | C111: Participer à la mise en œuvre des procédures de préparation. | N111: Le bien est approvisionné dans ses différentes matières d’œuvre, les effecteurs sont prêts à opérer.
A113: 9 | C113: Mettre le bien en position initiale. Démarrer ou participer au démarrage du bien. | N113: Le bien est mis en position initiale en toute sécurité.
N115: Le bien fonctionne.
N117: Les performances du bien et la matière d’œuvre sortante ou le service sont vérifiés et conformes au cahier des charges.
A119: 10 | C119: Vérifier le bon fonctionnement des différents modes de marche et d’arrêt. | N119: Les différents modes de marche et d’arrêt sont vérifiés
A121: 11 | C121: Transmettre éventuellement les nouvelles consignes à l’utilisateur et lui remettre le bien | N121: Les nouvelles consignes sont transmises sans équivoque et le bien est remis à l’utilisateur.
A123: CP 1.7 - Identifier les risques, définir et mettre en œuvre les mesures de prévention adaptées | AE123: Evalué | AI123: =IF(AE123="Non Evalué","NE",IF(AE123="Evalué","E","")) -> E | AJ123: =COUNTIF(AI125:AL140,"Validé") -> 0 | AK123: =COUNTIF(AI125:AL140,"Non Validé") -> 0 | AL123: =COUNTIF(AI125:AL140,"Non Evalué") -> 0 | AV123: =IF(AE123="","Souhaitez-vous évaluer la compétence ?",IF(AND(AE123="Non Evalué",OR(AJ123<>0,AK123<>0)),"Vous avez choisi de ne pas évaluer la compétence. Ne rien indiquez dans la colonne Validé.",IF(AND(AE123="Evalué",OR(AI125="",AI127="",AI129="",AI131="",AI133="",AI135="",AI137="",AI139="")),"Vous avez choisi d'évaluer la compétence. Indiquez pour chaques actions : Validé, Non Validé ou Non Evalué.",IF(OR(AE123="Non Evalué",(AJ123+AK123)=0),"",CONCATENATE(ROUND((100*AJ124/(AJ124+AK124)),0)," % d'actions validées. ",AJ123," validée(s) sur ",AJ123+AK123," . Conseil: Au maximum , grisez ",ROUND((100*AJ124/(AJ124+AK124))*8/100,0)," colonnes"))))) -> Vous avez choisi d'évaluer la compétence. Indiquez pour chaques actions : Validé, Non Validé ou Non Evalué.
AJ124: =SUMPRODUCT((AI125:AL140="Validé")*(Bareme!AE369:AE384)) -> 0 | AK124: =SUMPRODUCT((AI125:AL140="Non Validé")*(Bareme!AE369:AE384)) -> 0
A125: 1 | C125: Identifier les phénomènes dangereux et les situations dangereuses | N125: Les phénomènes dangereux et les situations dangereuses liés au bien, à son environnement et à l’activité sont identifiés. | AV125: 0
A127: 2 | C127: Déterminer les mesures de prévention en regard des situations dangereuses identifiées dans l’acte de maintenance | N127: Les mesures de prévention définies sont adaptées aux situations dangereuses identifiées
A129: 3 | C129: Mettre en œuvre les E.P.I. | N129: La mise en œuvre des E.P.I. est correcte. | AM129: Commentaires:
A131: 4 | C131: Mettre en œuvre les E.P.C. | N131: La mise en œuvre des E.P.C. est correcte.
A133: 5 | C133: Utiliser des équipements individuels de sécurité (EIS) | N133: La mise en œuvre des E.I.S. est correcte.
A135: 6 | C135: Consigner (energie,accés…) Respecter les procédures | N135: Les procédures de mise en œuvre des équipements et des outillages sont conformes
A137: 7 | C137: Proposer des modifications au plan de prévention. | N137: Les propositions permettent: - de se prémunir de situations ou de phénomènes dangereux résiduels identifiés.
N139: Les propositions permettent: - d’améliorer les mesures de prévention préconisées.
E166: =IF(OR(J178="",(AND(AE43="",AE75="",AE93="",AE123=""))=0),"",CONCATENATE("PROPOSITION: ",CEILING(J178,0.5),"/20 (",ROUND(100*COUNTIF(V176:V179,"E")/(COUNTIF(V176:V179,"E")+COUNTIF(V176:V179,"NE")),0),"% des compétences évaluées).")) -> PROPOSITION: 0/20 (100% des compétences évaluées).
E169: Proposition des évaluateurs:
C173: Ne pas effacer
P174: =CONCATENATE("Statistique U33 de ",$AE$4) -> 
P175: Compétences | Q175: =IF(AE4="","",AE4) ->  | R175: Satisfaction maximale | S175: Satisfaction moyenne | T175: =CONCATENATE("Statistique U31 de ",$AE$4) ->  | U175: Coefficients | V175: Validée ou Non Validée
D176: Somme | J176: =SUM((Q176:Q179)) -> 0 | L176: =SUM(R176:R179) -> 800 | P176: =A43 -> CP 1.1 - Diagnostiquer les pannes | Q176: =IF(OR(V176="NE",V176=""),"",T176*U176) -> 0 | R176: =IF(OR(V176="NE",V176=""),"",U176*8) -> 320 | S176: =IF(OR(V176="NE",V176=""),"",R176/2) -> 160 | T176: =IF($AV$45="","",$AV$45) -> 0 | U176: =Bareme!AE289 -> 40 | V176: =IF(AI43="","",AI43) -> E
P177: =A75 -> CP 1.2 - Remettre en état de fonctionnement un bien | Q177: =IF(OR(V177="NE",V177=""),"",T177*U177) -> 0 | R177: =IF(OR(V177="NE",V177=""),"",U177*8) -> 160 | S177: =IF(OR(V177="NE",V177=""),"",R177/2) -> 80 | T177: =IF($AV$77="","",$AV$77) -> 0 | U177: =Bareme!AE321 -> 20 | V177: =IF(AI75="","",AI75) -> E
D178: Moyenne /20 | J178: =IF($L$176=0,"",L178*$J$176/$L$176) -> 0 | L178: 20 | P178: =A93 -> CP 1.6 - Mettre en service un bien dans le respect des procédures | Q178: =IF(OR(V178="NE",V178=""),"",T178*U178) -> 0 | R178: =IF(OR(V178="NE",V178=""),"",U178*8) -> 160 | S178: =IF(OR(V178="NE",V178=""),"",R178/2) -> 80 | T178: =IF($AV$95="","",$AV$95) -> 0 | U178: =Bareme!AE337 -> 20 | V178: =IF(AI93="","",AI93) -> E
P179: =A123 -> CP 1.7 - Identifier les risques, définir et mettre en œuvre les mesures de prévention adaptées | Q179: 0 | R179: 160 | S179: 80 | T179: =IF($AV$125="","",$AV$125) -> 0 | U179: =Bareme!AE367 -> 20 | V179: =IF(AI123="","",AI123) -> E
D180: Moyenne /40 | J180: =IF($L$176=0,"",L180*$J$176/$L$176) -> 0 | L180: 60
D182: Ne pas effacer

Sheet U11_A (hidden)
A1: Baccalauréat professionnel « maintenance des équipements industriels »
A2: Épreuve E11 (Unité U11) : ANALYSE ET EXPLOITATION DE DONNEES TECHNIQUES
A3: Établissement : (tampon) | X3: Session :
X4: Nom du candidat:
X5: Prénom :
X6: Date de l'évaluation: | AV6: Situation d'évaluation :
A7: Lieu d’évaluation :
A8: Etablissement | AV8: E 11 | AW8: A
A9: Entreprise :
A10: Description sommaire du travail demandé :
A12: fh
A13: Données fournies au candidat
A14: X | B14: Le dossier technique du bien sur supports papiers ou supports numériques | X14: X | Y14: Le cahier des charges fonctionnel
A15: X | B15: Le bien et les conditions de son environnement | X15: X | Y15: Equipement informatique
A16: X | B16: Les normes | X16: X | Y16: Les logiciels
A17: X | B17: Toutes documentations techniques | X17: X | Y17: Le plan de prévention
A18: X | B18: Document unique d’évaluation des risques
A22: ÇRepérer les données fournies | Y22: ÇRepérer les données fournies
A23: Travail demandé
A24: X | B24: A1-T1 | D24: Réaliser la maintenance corrective - Diagnostiquer les pannes.
A25: X | B25: A1-T2 | D25: Réaliser la maintenance corrective - Préparer sa réparation, son dépannage.
A26: X | B26: A1-T3 | D26: Réaliser la maintenance corrective - Réaliser des réparations, des dépannages dans les domaines : mécanique, électrique, pneumatique, hydraulique.
A27: Consulter le référentiel des activités professionnelles pour obtenir le détail des tâches.
A28: Ç Repérer les tâches demandées (ce sont celles qui correspondent à l’unité dans le référentiel de certification, à l’exclusion de toute autre)
A29: Appréciation globale et proposition de note :
A31: Noms et signatures des évaluateurs : | AJ31: Note proposée : | AR31: /20
AJ32: Note affectée de son coefficient : | AR32: /60

Sheet U11_B (hidden)
A1: Baccalauréat professionnel « maintenance des équipements industriels »
A2: Épreuve E11 (Unité U11) : ANALYSE ET EXPLOITATION DE DONNEES TECHNIQUES
A3: Établissement : (tampon) | X3: Session :
X4: Nom du candidat:
X5: Prénom :
X6: Date de l'évaluation: | AV6: Situation d'évaluation :
A7: Lieu d’évaluation :
A8: Etablissement | AV8: E 11 | AW8: B
A9: Entreprise :
A10: Description sommaire du travail demandé :
A12: fh
A13: Données fournies au candidat
A14: X | B14: Le dossier technique du bien sur supports papiers ou supports numériques | X14: X | Y14: Le cahier des charges fonctionnel
A15: X | B15: Le bien et les conditions de son environnement | X15: X | Y15: Equipement informatique
A16: X | B16: Les normes | X16: X | Y16: Les logiciels
A17: X | B17: Toutes documentations techniques | X17: X | Y17: Le plan de prévention
A18: X | B18: Document unique d’évaluation des risques
A22: ÇRepérer les données fournies | Y22: ÇRepérer les données fournies
A23: Travail demandé
A24: X | B24: A1-T1 | D24: Réaliser la maintenance corrective - Diagnostiquer les pannes.
A25: X | B25: A1-T2 | D25: Réaliser la maintenance corrective - Préparer sa réparation, son dépannage.
A26: X | B26: A1-T3 | D26: Réaliser la maintenance corrective - Réaliser des réparations, des dépannages dans les domaines : mécanique, électrique, pneumatique, hydraulique.
A27: Consulter le référentiel des activités professionnelles pour obtenir le détail des tâches.
A28: Ç Repérer les tâches demandées (ce sont celles qui correspondent à l’unité dans le référentiel de certification, à l’exclusion de toute autre)
A29: Appréciation globale et proposition de note :
A31: Noms et signatures des évaluateurs : | AJ31: Note proposée : | AR31: /20
AJ32: Note affectée de son coefficient : | AR32: /60

Sheet U11_C (hidden)
A1: Baccalauréat professionnel « maintenance des équipements industriels »
A2: Épreuve E11 (Unité U11) : ANALYSE ET EXPLOITATION DE DONNEES TECHNIQUES
A3: Établissement : (tampon) | X3: Session :
X4: Nom du candidat:
X5: Prénom :
X6: Date de l'évaluation: | AV6: Situation d'évaluation :
A7: Lieu d’évaluation :
A8: Etablissement | AV8: E 11 | AW8: C
A9: Entreprise :
A10: Description sommaire du travail demandé :
A12: fh
A13: Données fournies au candidat
A14: X | B14: Le dossier technique du bien sur supports papiers ou supports numériques | X14: X | Y14: Le cahier des charges fonctionnel
A15: X | B15: Le bien et les conditions de son environnement | X15: X | Y15: Equipement informatique
A16: X | B16: Les normes | X16: X | Y16: Les logiciels
A17: X | B17: Toutes documentations techniques | X17: X | Y17: Le plan de prévention
A18: X | B18: Document unique d’évaluation des risques
A22: ÇRepérer les données fournies | Y22: ÇRepérer les données fournies
A23: Travail demandé
A24: X | B24: A1-T1 | D24: Réaliser la maintenance corrective - Diagnostiquer les pannes.
A25: X | B25: A1-T2 | D25: Réaliser la maintenance corrective - Préparer sa réparation, son dépannage.
A26: X | B26: A1-T3 | D26: Réaliser la maintenance corrective - Réaliser des réparations, des dépannages dans les domaines : mécanique, électrique, pneumatique, hydraulique.
A27: Consulter le référentiel des activités professionnelles pour obtenir le détail des tâches.
A28: Ç Repérer les tâches demandées (ce sont celles qui correspondent à l’unité dans le référentiel de certification, à l’exclusion de toute autre)
A29: Appréciation globale et proposition de note :
A31: Noms et signatures des évaluateurs : | AJ31: Note proposée : | AR31: /20
AJ32: Note affectée de son coefficient : | AR32: /60

Sheet U11_D (hidden)
A1: Baccalauréat professionnel « maintenance des équipements industriels »
A2: Épreuve E11 (Unité U11) : ANALYSE ET EXPLOITATION DE DONNEES TECHNIQUES
A3: Établissement : (tampon) | X3: Session :
X4: Nom du candidat:
X5: Prénom :
X6: Date de l'évaluation: | AV6: Situation d'évaluation :
A7: Lieu d’évaluation :
A8: Etablissement | AV8: E 11 | AW8: D
A9: Entreprise :
A10: Description sommaire du travail demandé :
A12: fh
A13: Données fournies au candidat
A14: X | B14: Le dossier technique du bien sur supports papiers ou supports numériques | X14: X | Y14: Le cahier des charges fonctionnel
A15: X | B15: Le bien et les conditions de son environnement | X15: X | Y15: Equipement informatique
A16: X | B16: Les normes | X16: X | Y16: Les logiciels
A17: X | B17: Toutes documentations techniques | X17: X | Y17: Le plan de prévention
A18: X | B18: Document unique d’évaluation des risques
A22: ÇRepérer les données fournies | Y22: ÇRepérer les données fournies
A23: Travail demandé
A24: X | B24: A1-T1 | D24: Réaliser la maintenance corrective - Diagnostiquer les pannes.
A25: X | B25: A1-T2 | D25: Réaliser la maintenance corrective - Préparer sa réparation, son dépannage.
A26: X | B26: A1-T3 | D26: Réaliser la maintenance corrective - Réaliser des réparations, des dépannages dans les domaines : mécanique, électrique, pneumatique, hydraulique.
A27: Consulter le référentiel des activités professionnelles pour obtenir le détail des tâches.
A28: Ç Repérer les tâches demandées (ce sont celles qui correspondent à l’unité dans le référentiel de certification, à l’exclusion de toute autre)
A29: Appréciation globale et proposition de note :
A31: Noms et signatures des évaluateurs : | AJ31: Note proposée : | AR31: /20
AJ32: Note affectée de son coefficient : | AR32: /60

Sheet U11_E (hidden)
A1: Baccalauréat professionnel « maintenance des équipements industriels »
A2: Épreuve E11 (Unité U11) : ANALYSE ET EXPLOITATION DE DONNEES TECHNIQUES
A3: Établissement : (tampon) | X3: Session :
X4: Nom du candidat:
X5: Prénom :
X6: Date de l'évaluation: | AV6: Situation d'évaluation :
A7: Lieu d’évaluation :
A8: Etablissement | AV8: E 11 | AW8: E
A9: Entreprise :
A10: Description sommaire du travail demandé :
A12: fh
A13: Données fournies au candidat
A14: X | B14: Le dossier technique du bien sur supports papiers ou supports numériques | X14: X | Y14: Le cahier des charges fonctionnel
A15: X | B15: Le bien et les conditions de son environnement | X15: X | Y15: Equipement informatique
A16: X | B16: Les normes | X16: X | Y16: Les logiciels
A17: X | B17: Toutes documentations techniques | X17: X | Y17: Le plan de prévention
A18: X | B18: Document unique d’évaluation des risques
A22: ÇRepérer les données fournies | Y22: ÇRepérer les données fournies
A23: Travail demandé
A24: X | B24: A1-T1 | D24: Réaliser la maintenance corrective - Diagnostiquer les pannes.
A25: X | B25: A1-T2 | D25: Réaliser la maintenance corrective - Préparer sa réparation, son dépannage.
A26: X | B26: A1-T3 | D26: Réaliser la maintenance corrective - Réaliser des réparations, des dépannages dans les domaines : mécanique, électrique, pneumatique, hydraulique.
A27: Consulter le référentiel des activités professionnelles pour obtenir le détail des tâches.
A28: Ç Repérer les tâches demandées (ce sont celles qui correspondent à l’unité dans le référentiel de certification, à l’exclusion de toute autre)
A29: Appréciation globale et proposition de note :
A31: Noms et signatures des évaluateurs : | AJ31: Note proposée : | AR31: /20
AJ32: Note affectée de son coefficient : | AR32: /60

Sheet U11_F (hidden)
A1: Baccalauréat professionnel « maintenance des équipements industriels »
A2: Épreuve E11 (Unité U11) : ANALYSE ET EXPLOITATION DE DONNEES TECHNIQUES
A3: Établissement : (tampon) | X3: Session :
X4: Nom du candidat:
X5: Prénom :
X6: Date de l'évaluation: | AV6: Situation d'évaluation :
A7: Lieu d’évaluation :
A8: Etablissement | AV8: E 11 | AW8: F
A9: Entreprise :
A10: Description sommaire du travail demandé :
A12: fh
A13: Données fournies au candidat
A14: X | B14: Le dossier technique du bien sur supports papiers ou supports numériques | X14: X | Y14: Le cahier des charges fonctionnel
A15: X | B15: Le bien et les conditions de son environnement | X15: X | Y15: Equipement informatique
A16: X | B16: Les normes | X16: X | Y16: Les logiciels
A17: X | B17: Toutes documentations techniques | X17: X | Y17: Le plan de prévention
A18: X | B18: Document unique d’évaluation des risques
A22: ÇRepérer les données fournies | Y22: ÇRepérer les données fournies
A23: Travail demandé
A24: X | B24: A1-T1 | D24: Réaliser la maintenance corrective - Diagnostiquer les pannes.
A25: X | B25: A1-T2 | D25: Réaliser la maintenance corrective - Préparer sa réparation, son dépannage.
A26: X | B26: A1-T3 | D26: Réaliser la maintenance corrective - Réaliser des réparations, des dépannages dans les domaines : mécanique, électrique, pneumatique, hydraulique.
A27: Consulter le référentiel des activités professionnelles pour obtenir le détail des tâches.
A28: Ç Repérer les tâches demandées (ce sont celles qui correspondent à l’unité dans le référentiel de certification, à l’exclusion de toute autre)
A29: Appréciation globale et proposition de note :
A31: Noms et signatures des évaluateurs : | AJ31: Note proposée : | AR31: /20
AJ32: Note affectée de son coefficient : | AR32: /60

Sheet U11_G (hidden)
A1: Baccalauréat professionnel « maintenance des équipements industriels »
A2: Épreuve E11 (Unité U11) : ANALYSE ET EXPLOITATION DE DONNEES TECHNIQUES
A3: Établissement : (tampon) | X3: Session :
X4: Nom du candidat:
X5: Prénom :
X6: Date de l'évaluation: | AV6: Situation d'évaluation :
A7: Lieu d’évaluation :
A8: Etablissement | AV8: E 11 | AW8: G
A9: Entreprise :
A10: Description sommaire du travail demandé :
A12: fh
A13: Données fournies au candidat
A14: X | B14: Le dossier technique du bien sur supports papiers ou supports numériques | X14: X | Y14: Le cahier des charges fonctionnel
A15: X | B15: Le bien et les conditions de son environnement | X15: X | Y15: Equipement informatique
A16: X | B16: Les normes | X16: X | Y16: Les logiciels
A17: X | B17: Toutes documentations techniques | X17: X | Y17: Le plan de prévention
A18: X | B18: Document unique d’évaluation des risques
A22: ÇRepérer les données fournies | Y22: ÇRepérer les données fournies
A23: Travail demandé
A24: X | B24: A1-T1 | D24: Réaliser la maintenance corrective - Diagnostiquer les pannes.
A25: X | B25: A1-T2 | D25: Réaliser la maintenance corrective - Préparer sa réparation, son dépannage.
A26: X | B26: A1-T3 | D26: Réaliser la maintenance corrective - Réaliser des réparations, des dépannages dans les domaines : mécanique, électrique, pneumatique, hydraulique.
A27: Consulter le référentiel des activités professionnelles pour obtenir le détail des tâches.
A28: Ç Repérer les tâches demandées (ce sont celles qui correspondent à l’unité dans le référentiel de certification, à l’exclusion de toute autre)
A29: Appréciation globale et proposition de note :
A31: Noms et signatures des évaluateurs : | AJ31: Note proposée : | AR31: /20
AJ32: Note affectée de son coefficient : | AR32: /60

Sheet U11_H (hidden)
A1: Baccalauréat professionnel « maintenance des équipements industriels »
A2: Épreuve E11 (Unité U11) : ANALYSE ET EXPLOITATION DE DONNEES TECHNIQUES
A3: Établissement : (tampon) | X3: Session :
X4: Nom du candidat:
X5: Prénom :
X6: Date de l'évaluation: | AV6: Situation d'évaluation :
A7: Lieu d’évaluation :
A8: Etablissement | AV8: E 11 | AW8: H
A9: Entreprise :
A10: Description sommaire du travail demandé :
A12: fh
A13: Données fournies au candidat
A14: X | B14: Le dossier technique du bien sur supports papiers ou supports numériques | X14: X | Y14: Le cahier des charges fonctionnel
A15: X | B15: Le bien et les conditions de son environnement | X15: X | Y15: Equipement informatique
A16: X | B16: Les normes | X16: X | Y16: Les logiciels
A17: X | B17: Toutes documentations techniques | X17: X | Y17: Le plan de prévention
A18: X | B18: Document unique d’évaluation des risques
A22: ÇRepérer les données fournies | Y22: ÇRepérer les données fournies
A23: Travail demandé
A24: X | B24: A1-T1 | D24: Réaliser la maintenance corrective - Diagnostiquer les pannes.
A25: X | B25: A1-T2 | D25: Réaliser la maintenance corrective - Préparer sa réparation, son dépannage.
A26: X | B26: A1-T3 | D26: Réaliser la maintenance corrective - Réaliser des réparations, des dépannages dans les domaines : mécanique, électrique, pneumatique, hydraulique.
A27: Consulter le référentiel des activités professionnelles pour obtenir le détail des tâches.
A28: Ç Repérer les tâches demandées (ce sont celles qui correspondent à l’unité dans le référentiel de certification, à l’exclusion de toute autre)
A29: Appréciation globale et proposition de note :
A31: Noms et signatures des évaluateurs : | AJ31: Note proposée : | AR31: /20
AJ32: Note affectée de son coefficient : | AR32: /60

Sheet U2_A (hidden)
A1: Baccalauréat professionnel « maintenance des équipements industriels »
A2: Épreuve E2 (Unité U2) : ANALYSE ETPREPARATION D’UNE ACTIVITE DE MAINTENANCE
A3: Établissement : (tampon) | X3: Session :
X4: Nom du candidat:
X5: Prénom :
X6: Date de l'évaluation: | AV6: Situation d'évaluation :
A7: Lieu d’évaluation :
A8: Etablissement | AV8: E 2 | AW8: A
A9: Entreprise :
A10: Description sommaire du travail demandé :
A13: Données et condition de réalisation.
A14: X | B14: Le dossier technique du bien sur supports papiers ou supports numériques | X14: X | Y14: Le cahier des charges fonctionnel
A15: X | B15: Le bien et les conditions de son environnement | X15: X | Y15: L’équipement informatique
A16: X | B16: Les normes | X16: X | Y16: Les logiciels
A17: X | B17: Toutes documentations techniques | X17: X | Y17: Le plan de prévention
A18: X | B18: Le document unique d’évaluation des risques | X18: X | Y18: Les outils descripteurs (grafcet, chronogramme…)
A19: X | B19: Toutes informations en provenance de l’utilisateur | X19: X | Y19: Le constat de défaillance.
A20: X | B20: Les contraintes dans l’environnement | X20: X | Y20: Les impératifs de production.
A21: X | B21: Les délais d’interventions | X21: X | Y21: Toutes documentations techniques
A22: X | B22: Un groupe de travail. | X22: X | Y22: Les moyens de communication
A23: X | B23: La fiche de procédures | X23: X | Y23: La demande d’intervention ou le bon de travail.
A24: ÇRepérer les données fournies | Y24: ÇRepérer les données fournies
A25: Travail demandé
A26: X | B26: A1-T1 | D26: Réaliser la maintenance corrective - Diagnostiquer les pannes.
A27: X | B27: A1-T2 | D27: Réaliser la maintenance corrective - Préparer sa réparation, son dépannage.
A28: X | B28: A1-T3 | D28: Réaliser la maintenance corrective - Réaliser des réparations, des dépannages dans les domaines : mécanique, électrique, pneumatique, hydraulique.
A29: X | B29: A3-T1 | D29: Mettre en œuvre des améliorations, des modifications - Proposer des améliorations ou des modifications
A30: X | B30: A3-T2 | D30: Mettre en œuvre des améliorations, des modifications - Préparer et réaliser l’amélioration ou la modification
A31: Consulter le référentiel des activités professionnelles pour obtenir le détail des tâches.
A32: Ç Repérer les tâches demandées (ce sont celles qui correspondent à l’unité dans le référentiel de certification, à l’exclusion de toute autre)
A33: Appréciation globale et proposition de note :
A35: Noms et signatures des évaluateurs : | AJ35: Note proposée : | AR35: /20
AJ36: Note affectée de son coefficient : | AR36: /80

Sheet U2_B (hidden)
A1: Baccalauréat professionnel « maintenance des équipements industriels »
A2: Épreuve E2 (Unité U2) : ANALYSE ETPREPARATION D’UNE ACTIVITE DE MAINTENANCE
A3: Établissement : (tampon) | X3: Session :
X4: Nom du candidat:
X5: Prénom :
X6: Date de l'évaluation: | AV6: Situation d'évaluation :
A7: Lieu d’évaluation :
A8: Etablissement | AV8: E 2 | AW8: B
A9: Entreprise :
A10: Description sommaire du travail demandé :
A13: Données et condition de réalisation.
A14: X | B14: Le dossier technique du bien sur supports papiers ou supports numériques | X14: X | Y14: Le cahier des charges fonctionnel
A15: X | B15: Le bien et les conditions de son environnement | X15: X | Y15: L’équipement informatique
A16: X | B16: Les normes | X16: X | Y16: Les logiciels
A17: X | B17: Toutes documentations techniques | X17: X | Y17: Le plan de prévention
A18: X | B18: Le document unique d’évaluation des risques | X18: X | Y18: Les outils descripteurs (grafcet, chronogramme…)
A19: X | B19: Toutes informations en provenance de l’utilisateur | X19: X | Y19: Le constat de défaillance.
A20: X | B20: Les contraintes dans l’environnement | X20: X | Y20: Les impératifs de production.
A21: X | B21: Les délais d’interventions | X21: X | Y21: Toutes documentations techniques
A22: X | B22: Un groupe de travail. | X22: X | Y22: Les moyens de communication
A23: X | B23: La fiche de procédures | X23: X | Y23: La demande d’intervention ou le bon de travail.
A24: ÇRepérer les données fournies | Y24: ÇRepérer les données fournies
A25: Travail demandé
A26: X | B26: A1-T1 | D26: Réaliser la maintenance corrective - Diagnostiquer les pannes.
A27: X | B27: A1-T2 | D27: Réaliser la maintenance corrective - Préparer sa réparation, son dépannage.
A28: X | B28: A1-T3 | D28: Réaliser la maintenance corrective - Réaliser des réparations, des dépannages dans les domaines : mécanique, électrique, pneumatique, hydraulique.
A29: X | B29: A3-T1 | D29: Mettre en œuvre des améliorations, des modifications - Proposer des améliorations ou des modifications
A30: X | B30: A3-T2 | D30: Mettre en œuvre des améliorations, des modifications - Préparer et réaliser l’amélioration ou la modification
A31: Consulter le référentiel des activités professionnelles pour obtenir le détail des tâches.
A32: Ç Repérer les tâches demandées (ce sont celles qui correspondent à l’unité dans le référentiel de certification, à l’exclusion de toute autre)
A33: Appréciation globale et proposition de note :
A35: Noms et signatures des évaluateurs : | AJ35: Note proposée : | AR35: /20
AJ36: Note affectée de son coefficient : | AR36: /80

Sheet U2_C (hidden)
A1: Baccalauréat professionnel « maintenance des équipements industriels »
A2: Épreuve E2 (Unité U2) : ANALYSE ETPREPARATION D’UNE ACTIVITE DE MAINTENANCE
A3: Établissement : (tampon) | X3: Session :
X4: Nom du candidat:
X5: Prénom :
X6: Date de l'évaluation: | AV6: Situation d'évaluation :
A7: Lieu d’évaluation :
A8: Etablissement | AV8: E 2 | AW8: C
A9: Entreprise :
A10: Description sommaire du travail demandé :
A13: Données et condition de réalisation.
A14: X | B14: Le dossier technique du bien sur supports papiers ou supports numériques | X14: X | Y14: Le cahier des charges fonctionnel
A15: X | B15: Le bien et les conditions de son environnement | X15: X | Y15: L’équipement informatique
A16: X | B16: Les normes | X16: X | Y16: Les logiciels
A17: X | B17: Toutes documentations techniques | X17: X | Y17: Le plan de prévention
A18: X | B18: Le document unique d’évaluation des risques | X18: X | Y18: Les outils descripteurs (grafcet, chronogramme…)
A19: X | B19: Toutes informations en provenance de l’utilisateur | X19: X | Y19: Le constat de défaillance.
A20: X | B20: Les contraintes dans l’environnement | X20: X | Y20: Les impératifs de production.
A21: X | B21: Les délais d’interventions | X21: X | Y21: Toutes documentations techniques
A22: X | B22: Un groupe de travail. | X22: X | Y22: Les moyens de communication
A23: X | B23: La fiche de procédures | X23: X | Y23: La demande d’intervention ou le bon de travail.
A24: ÇRepérer les données fournies | Y24: ÇRepérer les données fournies
A25: Travail demandé
A26: X | B26: A1-T1 | D26: Réaliser la maintenance corrective - Diagnostiquer les pannes.
A27: X | B27: A1-T2 | D27: Réaliser la maintenance corrective - Préparer sa réparation, son dépannage.
A28: X | B28: A1-T3 | D28: Réaliser la maintenance corrective - Réaliser des réparations, des dépannages dans les domaines : mécanique, électrique, pneumatique, hydraulique.
A29: X | B29: A3-T1 | D29: Mettre en œuvre des améliorations, des modifications - Proposer des améliorations ou des modifications
A30: X | B30: A3-T2 | D30: Mettre en œuvre des améliorations, des modifications - Préparer et réaliser l’amélioration ou la modification
A31: Consulter le référentiel des activités professionnelles pour obtenir le détail des tâches.
A32: Ç Repérer les tâches demandées (ce sont celles qui correspondent à l’unité dans le référentiel de certification, à l’exclusion de toute autre)
A33: Appréciation globale et proposition de note :
A35: Noms et signatures des évaluateurs : | AJ35: Note proposée : | AR35: /20
AJ36: Note affectée de son coefficient : | AR36: /80

Sheet U2_D (hidden)
A1: Baccalauréat professionnel « maintenance des équipements industriels »
A2: Épreuve E2 (Unité U2) : ANALYSE ETPREPARATION D’UNE ACTIVITE DE MAINTENANCE
A3: Établissement : (tampon) | X3: Session :
X4: Nom du candidat:
X5: Prénom :
X6: Date de l'évaluation: | AV6: Situation d'évaluation :
A7: Lieu d’évaluation :
A8: Etablissement | AV8: E 2 | AW8: D
A9: Entreprise :
A10: Description sommaire du travail demandé :
A13: Données et condition de réalisation.
A14: X | B14: Le dossier technique du bien sur supports papiers ou supports numériques | X14: X | Y14: Le cahier des charges fonctionnel
A15: X | B15: Le bien et les conditions de son environnement | X15: X | Y15: L’équipement informatique
A16: X | B16: Les normes | X16: X | Y16: Les logiciels
A17: X | B17: Toutes documentations techniques | X17: X | Y17: Le plan de prévention
A18: X | B18: Le document unique d’évaluation des risques | X18: X | Y18: Les outils descripteurs (grafcet, chronogramme…)
A19: X | B19: Toutes informations en provenance de l’utilisateur | X19: X | Y19: Le constat de défaillance.
A20: X | B20: Les contraintes dans l’environnement | X20: X | Y20: Les impératifs de production.
A21: X | B21: Les délais d’interventions | X21: X | Y21: Toutes documentations techniques
A22: X | B22: Un groupe de travail. | X22: X | Y22: Les moyens de communication
A23: X | B23: La fiche de procédures | X23: X | Y23: La demande d’intervention ou le bon de travail.
A24: ÇRepérer les données fournies | Y24: ÇRepérer les données fournies
A25: Travail demandé
A26: X | B26: A1-T1 | D26: Réaliser la maintenance corrective - Diagnostiquer les pannes.
A27: X | B27: A1-T2 | D27: Réaliser la maintenance corrective - Préparer sa réparation, son dépannage.
A28: X | B28: A1-T3 | D28: Réaliser la maintenance corrective - Réaliser des réparations, des dépannages dans les domaines : mécanique, électrique, pneumatique, hydraulique.
A29: X | B29: A3-T1 | D29: Mettre en œuvre des améliorations, des modifications - Proposer des améliorations ou des modifications
A30: X | B30: A3-T2 | D30: Mettre en œuvre des améliorations, des modifications - Préparer et réaliser l’amélioration ou la modification
A31: Consulter le référentiel des activités professionnelles pour obtenir le détail des tâches.
A32: Ç Repérer les tâches demandées (ce sont celles qui correspondent à l’unité dans le référentiel de certification, à l’exclusion de toute autre)
A33: Appréciation globale et proposition de note :
A35: Noms et signatures des évaluateurs : | AJ35: Note proposée : | AR35: /20
AJ36: Note affectée de son coefficient : | AR36: /80

Sheet U2_E (hidden)
A1: Baccalauréat professionnel « maintenance des équipements industriels »
A2: Épreuve E2 (Unité U2) : ANALYSE ETPREPARATION D’UNE ACTIVITE DE MAINTENANCE
A3: Établissement : (tampon) | X3: Session :
X4: Nom du candidat:
X5: Prénom :
X6: Date de l'évaluation: | AV6: Situation d'évaluation :
A7: Lieu d’évaluation :
A8: Etablissement | AV8: E 2 | AW8: E
A9: Entreprise :
A10: Description sommaire du travail demandé :
A13: Données et condition de réalisation.
A14: X | B14: Le dossier technique du bien sur supports papiers ou supports numériques | X14: X | Y14: Le cahier des charges fonctionnel
A15: X | B15: Le bien et les conditions de son environnement | X15: X | Y15: L’équipement informatique
A16: X | B16: Les normes | X16: X | Y16: Les logiciels
A17: X | B17: Toutes documentations techniques | X17: X | Y17: Le plan de prévention
A18: X | B18: Le document unique d’évaluation des risques | X18: X | Y18: Les outils descripteurs (grafcet, chronogramme…)
A19: X | B19: Toutes informations en provenance de l’utilisateur | X19: X | Y19: Le constat de défaillance.
A20: X | B20: Les contraintes dans l’environnement | X20: X | Y20: Les impératifs de production.
A21: X | B21: Les délais d’interventions | X21: X | Y21: Toutes documentations techniques
A22: X | B22: Un groupe de travail. | X22: X | Y22: Les moyens de communication
A23: X | B23: La fiche de procédures | X23: X | Y23: La demande d’intervention ou le bon de travail.
A24: ÇRepérer les données fournies | Y24: ÇRepérer les données fournies
A25: Travail demandé
A26: X | B26: A1-T1 | D26: Réaliser la maintenance corrective - Diagnostiquer les pannes.
A27: X | B27: A1-T2 | D27: Réaliser la maintenance corrective - Préparer sa réparation, son dépannage.
A28: X | B28: A1-T3 | D28: Réaliser la maintenance corrective - Réaliser des réparations, des dépannages dans les domaines : mécanique, électrique, pneumatique, hydraulique.
A29: X | B29: A3-T1 | D29: Mettre en œuvre des améliorations, des modifications - Proposer des améliorations ou des modifications
A30: X | B30: A3-T2 | D30: Mettre en œuvre des améliorations, des modifications - Préparer et réaliser l’amélioration ou la modification
A31: Consulter le référentiel des activités professionnelles pour obtenir le détail des tâches.
A32: Ç Repérer les tâches demandées (ce sont celles qui correspondent à l’unité dans le référentiel de certification, à l’exclusion de toute autre)
A33: Appréciation globale et proposition de note :
A35: Noms et signatures des évaluateurs : | AJ35: Note proposée : | AR35: /20
AJ36: Note affectée de son coefficient : | AR36: /80

Sheet U2_F (hidden)
A1: Baccalauréat professionnel « maintenance des équipements industriels »
A2: Épreuve E2 (Unité U2) : ANALYSE ETPREPARATION D’UNE ACTIVITE DE MAINTENANCE
A3: Établissement : (tampon) | X3: Session :
X4: Nom du candidat:
X5: Prénom :
X6: Date de l'évaluation: | AV6: Situation d'évaluation :
A7: Lieu d’évaluation :
A8: Etablissement | AV8: E 2 | AW8: F
A9: Entreprise :
A10: Description sommaire du travail demandé :
A13: Données et condition de réalisation.
A14: X | B14: Le dossier technique du bien sur supports papiers ou supports numériques | X14: X | Y14: Le cahier des charges fonctionnel
A15: X | B15: Le bien et les conditions de son environnement | X15: X | Y15: L’équipement informatique
A16: X | B16: Les normes | X16: X | Y16: Les logiciels
A17: X | B17: Toutes documentations techniques | X17: X | Y17: Le plan de prévention
A18: X | B18: Le document unique d’évaluation des risques | X18: X | Y18: Les outils descripteurs (grafcet, chronogramme…)
A19: X | B19: Toutes informations en provenance de l’utilisateur | X19: X | Y19: Le constat de défaillance.
A20: X | B20: Les contraintes dans l’environnement | X20: X | Y20: Les impératifs de production.
A21: X | B21: Les délais d’interventions | X21: X | Y21: Toutes documentations techniques
A22: X | B22: Un groupe de travail. | X22: X | Y22: Les moyens de communication
A23: X | B23: La fiche de procédures | X23: X | Y23: La demande d’intervention ou le bon de travail.
A24: ÇRepérer les données fournies | Y24: ÇRepérer les données fournies
A25: Travail demandé
A26: X | B26: A1-T1 | D26: Réaliser la maintenance corrective - Diagnostiquer les pannes.
A27: X | B27: A1-T2 | D27: Réaliser la maintenance corrective - Préparer sa réparation, son dépannage.
A28: X | B28: A1-T3 | D28: Réaliser la maintenance corrective - Réaliser des réparations, des dépannages dans les domaines : mécanique, électrique, pneumatique, hydraulique.
A29: X | B29: A3-T1 | D29: Mettre en œuvre des améliorations, des modifications - Proposer des améliorations ou des modifications
A30: X | B30: A3-T2 | D30: Mettre en œuvre des améliorations, des modifications - Préparer et réaliser l’amélioration ou la modification
A31: Consulter le référentiel des activités professionnelles pour obtenir le détail des tâches.
A32: Ç Repérer les tâches demandées (ce sont celles qui correspondent à l’unité dans le référentiel de certification, à l’exclusion de toute autre)
A33: Appréciation globale et proposition de note :
A35: Noms et signatures des évaluateurs : | AJ35: Note proposée : | AR35: /20
AJ36: Note affectée de son coefficient : | AR36: /80

Sheet U2_G (hidden)
A1: Baccalauréat professionnel « maintenance des équipements industriels »
A2: Épreuve E2 (Unité U2) : ANALYSE ETPREPARATION D’UNE ACTIVITE DE MAINTENANCE
A3: Établissement : (tampon) | X3: Session :
X4: Nom du candidat:
X5: Prénom :
X6: Date de l'évaluation: | AV6: Situation d'évaluation :
A7: Lieu d’évaluation :
A8: Etablissement | AV8: E 2 | AW8: G
A9: Entreprise :
A10: Description sommaire du travail demandé :
A13: Données et condition de réalisation.
A14: X | B14: Le dossier technique du bien sur supports papiers ou supports numériques | X14: X | Y14: Le cahier des charges fonctionnel
A15: X | B15: Le bien et les conditions de son environnement | X15: X | Y15: L’équipement informatique
A16: X | B16: Les normes | X16: X | Y16: Les logiciels
A17: X | B17: Toutes documentations techniques | X17: X | Y17: Le plan de prévention
A18: X | B18: Le document unique d’évaluation des risques | X18: X | Y18: Les outils descripteurs (grafcet, chronogramme…)
A19: X | B19: Toutes informations en provenance de l’utilisateur | X19: X | Y19: Le constat de défaillance.
A20: X | B20: Les contraintes dans l’environnement | X20: X | Y20: Les impératifs de production.
A21: X | B21: Les délais d’interventions | X21: X | Y21: Toutes documentations techniques
A22: X | B22: Un groupe de travail. | X22: X | Y22: Les moyens de communication
A23: X | B23: La fiche de procédures | X23: X | Y23: La demande d’intervention ou le bon de travail.
A24: ÇRepérer les données fournies | Y24: ÇRepérer les données fournies
A25: Travail demandé
A26: X | B26: A1-T1 | D26: Réaliser la maintenance corrective - Diagnostiquer les pannes.
A27: X | B27: A1-T2 | D27: Réaliser la maintenance corrective - Préparer sa réparation, son dépannage.
A28: X | B28: A1-T3 | D28: Réaliser la maintenance corrective - Réaliser des réparations, des dépannages dans les domaines : mécanique, électrique, pneumatique, hydraulique.
A29: X | B29: A3-T1 | D29: Mettre en œuvre des améliorations, des modifications - Proposer des améliorations ou des modifications
A30: X | B30: A3-T2 | D30: Mettre en œuvre des améliorations, des modifications - Préparer et réaliser l’amélioration ou la modification
A31: Consulter le référentiel des activités professionnelles pour obtenir le détail des tâches.
A32: Ç Repérer les tâches demandées (ce sont celles qui correspondent à l’unité dans le référentiel de certification, à l’exclusion de toute autre)
A33: Appréciation globale et proposition de note :
A35: Noms et signatures des évaluateurs : | AJ35: Note proposée : | AR35: /20
AJ36: Note affectée de son coefficient : | AR36: /80

Sheet U2_H (hidden)
A1: Baccalauréat professionnel « maintenance des équipements industriels »
A2: Épreuve E2 (Unité U2) : ANALYSE ETPREPARATION D’UNE ACTIVITE DE MAINTENANCE
A3: Établissement : (tampon) | X3: Session :
X4: Nom du candidat:
X5: Prénom :
X6: Date de l'évaluation: | AV6: Situation d'évaluation :
A7: Lieu d’évaluation :
A8: Etablissement | AV8: E 2 | AW8: H
A9: Entreprise :
A10: Description sommaire du travail demandé :
A13: Données et condition de réalisation.
A14: X | B14: Le dossier technique du bien sur supports papiers ou supports numériques | X14: X | Y14: Le cahier des charges fonctionnel
A15: X | B15: Le bien et les conditions de son environnement | X15: X | Y15: L’équipement informatique
A16: X | B16: Les normes | X16: X | Y16: Les logiciels
A17: X | B17: Toutes documentations techniques | X17: X | Y17: Le plan de prévention
A18: X | B18: Le document unique d’évaluation des risques | X18: X | Y18: Les outils descripteurs (grafcet, chronogramme…)
A19: X | B19: Toutes informations en provenance de l’utilisateur | X19: X | Y19: Le constat de défaillance.
A20: X | B20: Les contraintes dans l’environnement | X20: X | Y20: Les impératifs de production.
A21: X | B21: Les délais d’interventions | X21: X | Y21: Toutes documentations techniques
A22: X | B22: Un groupe de travail. | X22: X | Y22: Les moyens de communication
A23: X | B23: La fiche de procédures | X23: X | Y23: La demande d’intervention ou le bon de travail.
A24: ÇRepérer les données fournies | Y24: ÇRepérer les données fournies
A25: Travail demandé
A26: X | B26: A1-T1 | D26: Réaliser la maintenance corrective - Diagnostiquer les pannes.
A27: X | B27: A1-T2 | D27: Réaliser la maintenance corrective - Préparer sa réparation, son dépannage.
A28: X | B28: A1-T3 | D28: Réaliser la maintenance corrective - Réaliser des réparations, des dépannages dans les domaines : mécanique, électrique, pneumatique, hydraulique.
A29: X | B29: A3-T1 | D29: Mettre en œuvre des améliorations, des modifications - Proposer des améliorations ou des modifications
A30: X | B30: A3-T2 | D30: Mettre en œuvre des améliorations, des modifications - Préparer et réaliser l’amélioration ou la modification
A31: Consulter le référentiel des activités professionnelles pour obtenir le détail des tâches.
A32: Ç Repérer les tâches demandées (ce sont celles qui correspondent à l’unité dans le référentiel de certification, à l’exclusion de toute autre)
A33: Appréciation globale et proposition de note :
A35: Noms et signatures des évaluateurs : | AJ35: Note proposée : | AR35: /20
AJ36: Note affectée de son coefficient : | AR36: /80

Sheet U32_A (hidden)
A1: Baccalauréat professionnel « maintenance des équipements industriels »
A2: Épreuve E32 (Unité U32) : INTERVENTION SUR UN EQUIPEMENT MECANIQUE
A3: Établissement : (tampon) | X3: Session :
X4: Nom du candidat:
X5: Prénom :
X6: Date de l'évaluation: | AV6: Situation d'évaluation :
A7: Lieu d’évaluation :
A8: Etablissement | AV8: E 32 | AW8: A
A9: Entreprise :
A10: Description sommaire du travail demandé :
A13: Données fournies au candidat
A14: X | B14: Le bien et les conditions de son environnement | X14: X | Y14: Les composants et les conditions de leur environnement
A15: X | B15: Le dossier technique du bien et son dossier de maintenance sur supports papiers ou supports numériques | X15: X | Y15: Toutes informations en provenance de l’utilisateur ou d’autres intervenants
A16: X | B16: Les consignes d’exploitation | X16: X | Y16: Les pièces de rechange, les consommables
A17: X | B17: Le bon de travail | X17: X | Y17: Les équipements de protection individuels et collectifs
A18: X | B18: Le document unique d’évaluation des risques | X18: X | Y18: Les outillages, matériels de contrôle, de mesure, moyens de manutention.
A19: X | B19: Le carnet de prescription de sécurité électrique | X19: X | Y19: Toutes documentations techniques
A20: X | B20: Les normes | X20: X | Y20: Les consignes et/ou procédures écrites
A21: X | B21: Le plan d’implantation du bien | X21: X | Y21: Le plan de prévention
A24: ÇRepérer les données fournies | Y24: ÇRepérer les données fournies
A25: Travail demandé
A26: X | B26: A1-T3 | D26: Réaliser la maintenance corrective - Réaliser des réparations, des dépannages dans les domaines : mécanique, électrique, pneumatique, hydraulique.
A27: X | B27: A2-T2 | D27: Réaliser la maintenance préventive - Réaliser des opérations planifiées.
A28: L’ENSEMBLE DES ACTIVITES ET DES TACHES SONT MOBILISEES EN CE QUI CONCERNE LA COMPETENCE CP1.7 QUI A TRAIT A LA SECURITE ET A LA PREVENTION DES RISQUES
A29: Consulter le référentiel des activités professionnelles pour obtenir le détail des tâches.
A30: Ç Repérer les tâches demandées (ce sont celles qui correspondent à l’unité dans le référentiel de certification, à l’exclusion de toute autre)
A31: Appréciation globale et proposition de note :
A33: Noms et signatures des évaluateurs : | AJ33: Note proposée : | AR33: /20
AJ34: Note affectée de son coefficient : | AR34: /60

Sheet U32_B (hidden)
A1: Baccalauréat professionnel « maintenance des équipements industriels »
A2: Épreuve E32 (Unité U32) : INTERVENTION SUR UN EQUIPEMENT MECANIQUE
A3: Établissement : (tampon) | X3: Session :
X4: Nom du candidat:
X5: Prénom :
X6: Date de l'évaluation: | AV6: Situation d'évaluation :
A7: Lieu d’évaluation :
A8: Etablissement | AV8: E 32 | AW8: B
A9: Entreprise :
A10: Description sommaire du travail demandé :
A13: Données fournies au candidat
A14: X | B14: Le bien et les conditions de son environnement | X14: X | Y14: Les composants et les conditions de leur environnement
A15: X | B15: Le dossier technique du bien et son dossier de maintenance sur supports papiers ou supports numériques | X15: X | Y15: Toutes informations en provenance de l’utilisateur ou d’autres intervenants
A16: X | B16: Les consignes d’exploitation | X16: X | Y16: Les pièces de rechange, les consommables
A17: X | B17: Le bon de travail | X17: X | Y17: Les équipements de protection individuels et collectifs
A18: X | B18: Le document unique d’évaluation des risques | X18: X | Y18: Les outillages, matériels de contrôle, de mesure, moyens de manutention.
A19: X | B19: Le carnet de prescription de sécurité électrique | X19: X | Y19: Toutes documentations techniques
A20: X | B20: Les normes | X20: X | Y20: Les consignes et/ou procédures écrites
A21: X | B21: Le plan d’implantation du bien | X21: X | Y21: Le plan de prévention
A24: ÇRepérer les données fournies | Y24: ÇRepérer les données fournies
A25: Travail demandé
A26: X | B26: A1-T3 | D26: Réaliser la maintenance corrective - Réaliser des réparations, des dépannages dans les domaines : mécanique, électrique, pneumatique, hydraulique.
A27: X | B27: A2-T2 | D27: Réaliser la maintenance préventive - Réaliser des opérations planifiées.
A28: L’ENSEMBLE DES ACTIVITES ET DES TACHES SONT MOBILISEES EN CE QUI CONCERNE LA COMPETENCE CP1.7 QUI A TRAIT A LA SECURITE ET A LA PREVENTION DES RISQUES
A29: Consulter le référentiel des activités professionnelles pour obtenir le détail des tâches.
A30: Ç Repérer les tâches demandées (ce sont celles qui correspondent à l’unité dans le référentiel de certification, à l’exclusion de toute autre)
A31: Appréciation globale et proposition de note :
A33: Noms et signatures des évaluateurs : | AJ33: Note proposée : | AR33: /20
AJ34: Note affectée de son coefficient : | AR34: /60

Sheet U32_C (hidden)
A1: Baccalauréat professionnel « maintenance des équipements industriels »
A2: Épreuve E32 (Unité U32) : INTERVENTION SUR UN EQUIPEMENT MECANIQUE
A3: Établissement : (tampon) | X3: Session :
X4: Nom du candidat:
X5: Prénom :
X6: Date de l'évaluation: | AV6: Situation d'évaluation :
A7: Lieu d’évaluation :
A8: Etablissement | AV8: E 32 | AW8: C
A9: Entreprise :
A10: Description sommaire du travail demandé :
A13: Données fournies au candidat
A14: X | B14: Le bien et les conditions de son environnement | X14: X | Y14: Les composants et les conditions de leur environnement
A15: X | B15: Le dossier technique du bien et son dossier de maintenance sur supports papiers ou supports numériques | X15: X | Y15: Toutes informations en provenance de l’utilisateur ou d’autres intervenants
A16: X | B16: Les consignes d’exploitation | X16: X | Y16: Les pièces de rechange, les consommables
A17: X | B17: Le bon de travail | X17: X | Y17: Les équipements de protection individuels et collectifs
A18: X | B18: Le document unique d’évaluation des risques | X18: X | Y18: Les outillages, matériels de contrôle, de mesure, moyens de manutention.
A19: X | B19: Le carnet de prescription de sécurité électrique | X19: X | Y19: Toutes documentations techniques
A20: X | B20: Les normes | X20: X | Y20: Les consignes et/ou procédures écrites
A21: X | B21: Le plan d’implantation du bien | X21: X | Y21: Le plan de prévention
A24: ÇRepérer les données fournies | Y24: ÇRepérer les données fournies
A25: Travail demandé
A26: X | B26: A1-T3 | D26: Réaliser la maintenance corrective - Réaliser des réparations, des dépannages dans les domaines : mécanique, électrique, pneumatique, hydraulique.
A27: X | B27: A2-T2 | D27: Réaliser la maintenance préventive - Réaliser des opérations planifiées.
A28: L’ENSEMBLE DES ACTIVITES ET DES TACHES SONT MOBILISEES EN CE QUI CONCERNE LA COMPETENCE CP1.7 QUI A TRAIT A LA SECURITE ET A LA PREVENTION DES RISQUES
A29: Consulter le référentiel des activités professionnelles pour obtenir le détail des tâches.
A30: Ç Repérer les tâches demandées (ce sont celles qui correspondent à l’unité dans le référentiel de certification, à l’exclusion de toute autre)
A31: Appréciation globale et proposition de note :
A33: Noms et signatures des évaluateurs : | AJ33: Note proposée : | AR33: /20
AJ34: Note affectée de son coefficient : | AR34: /60

Sheet U32_D (hidden)
A1: Baccalauréat professionnel « maintenance des équipements industriels »
A2: Épreuve E32 (Unité U32) : INTERVENTION SUR UN EQUIPEMENT MECANIQUE
A3: Établissement : (tampon) | X3: Session :
X4: Nom du candidat:
X5: Prénom :
X6: Date de l'évaluation: | AV6: Situation d'évaluation :
A7: Lieu d’évaluation :
A8: Etablissement | AV8: E 32 | AW8: D
A9: Entreprise :
A10: Description sommaire du travail demandé :
A13: Données fournies au candidat
A14: X | B14: Le bien et les conditions de son environnement | X14: X | Y14: Les composants et les conditions de leur environnement
A15: X | B15: Le dossier technique du bien et son dossier de maintenance sur supports papiers ou supports numériques | X15: X | Y15: Toutes informations en provenance de l’utilisateur ou d’autres intervenants
A16: X | B16: Les consignes d’exploitation | X16: X | Y16: Les pièces de rechange, les consommables
A17: X | B17: Le bon de travail | X17: X | Y17: Les équipements de protection individuels et collectifs
A18: X | B18: Le document unique d’évaluation des risques | X18: X | Y18: Les outillages, matériels de contrôle, de mesure, moyens de manutention.
A19: X | B19: Le carnet de prescription de sécurité électrique | X19: X | Y19: Toutes documentations techniques
A20: X | B20: Les normes | X20: X | Y20: Les consignes et/ou procédures écrites
A21: X | B21: Le plan d’implantation du bien | X21: X | Y21: Le plan de prévention
A24: ÇRepérer les données fournies | Y24: ÇRepérer les données fournies
A25: Travail demandé
A26: X | B26: A1-T3 | D26: Réaliser la maintenance corrective - Réaliser des réparations, des dépannages dans les domaines : mécanique, électrique, pneumatique, hydraulique.
A27: X | B27: A2-T2 | D27: Réaliser la maintenance préventive - Réaliser des opérations planifiées.
A28: L’ENSEMBLE DES ACTIVITES ET DES TACHES SONT MOBILISEES EN CE QUI CONCERNE LA COMPETENCE CP1.7 QUI A TRAIT A LA SECURITE ET A LA PREVENTION DES RISQUES
A29: Consulter le référentiel des activités professionnelles pour obtenir le détail des tâches.
A30: Ç Repérer les tâches demandées (ce sont celles qui correspondent à l’unité dans le référentiel de certification, à l’exclusion de toute autre)
A31: Appréciation globale et proposition de note :
A33: Noms et signatures des évaluateurs : | AJ33: Note proposée : | AR33: /20
AJ34: Note affectée de son coefficient : | AR34: /60

Sheet U32_E (hidden)
A1: Baccalauréat professionnel « maintenance des équipements industriels »
A2: Épreuve E32 (Unité U32) : INTERVENTION SUR UN EQUIPEMENT MECANIQUE
A3: Établissement : (tampon) | X3: Session :
X4: Nom du candidat:
X5: Prénom :
X6: Date de l'évaluation: | AV6: Situation d'évaluation :
A7: Lieu d’évaluation :
A8: Etablissement | AV8: E 32 | AW8: E
A9: Entreprise :
A10: Description sommaire du travail demandé :
A13: Données fournies au candidat
A14: X | B14: Le bien et les conditions de son environnement | X14: X | Y14: Les composants et les conditions de leur environnement
A15: X | B15: Le dossier technique du bien et son dossier de maintenance sur supports papiers ou supports numériques | X15: X | Y15: Toutes informations en provenance de l’utilisateur ou d’autres intervenants
A16: X | B16: Les consignes d’exploitation | X16: X | Y16: Les pièces de rechange, les consommables
A17: X | B17: Le bon de travail | X17: X | Y17: Les équipements de protection individuels et collectifs
A18: X | B18: Le document unique d’évaluation des risques | X18: X | Y18: Les outillages, matériels de contrôle, de mesure, moyens de manutention.
A19: X | B19: Le carnet de prescription de sécurité électrique | X19: X | Y19: Toutes documentations techniques
A20: X | B20: Les normes | X20: X | Y20: Les consignes et/ou procédures écrites
A21: X | B21: Le plan d’implantation du bien | X21: X | Y21: Le plan de prévention
A24: ÇRepérer les données fournies | Y24: ÇRepérer les données fournies
A25: Travail demandé
A26: X | B26: A1-T3 | D26: Réaliser la maintenance corrective - Réaliser des réparations, des dépannages dans les domaines : mécanique, électrique, pneumatique, hydraulique.
A27: X | B27: A2-T2 | D27: Réaliser la maintenance préventive - Réaliser des opérations planifiées.
A28: L’ENSEMBLE DES ACTIVITES ET DES TACHES SONT MOBILISEES EN CE QUI CONCERNE LA COMPETENCE CP1.7 QUI A TRAIT A LA SECURITE ET A LA PREVENTION DES RISQUES
A29: Consulter le référentiel des activités professionnelles pour obtenir le détail des tâches.
A30: Ç Repérer les tâches demandées (ce sont celles qui correspondent à l’unité dans le référentiel de certification, à l’exclusion de toute autre)
A31: Appréciation globale et proposition de note :
A33: Noms et signatures des évaluateurs : | AJ33: Note proposée : | AR33: /20
AJ34: Note affectée de son coefficient : | AR34: /60

Sheet U32_F (hidden)
A1: Baccalauréat professionnel « maintenance des équipements industriels »
A2: Épreuve E32 (Unité U32) : INTERVENTION SUR UN EQUIPEMENT MECANIQUE
A3: Établissement : (tampon) | X3: Session :
X4: Nom du candidat:
X5: Prénom :
X6: Date de l'évaluation: | AV6: Situation d'évaluation :
A7: Lieu d’évaluation :
A8: Etablissement | AV8: E 32 | AW8: F
A9: Entreprise :
A10: Description sommaire du travail demandé :
A13: Données fournies au candidat
A14: X | B14: Le bien et les conditions de son environnement | X14: X | Y14: Les composants et les conditions de leur environnement
A15: X | B15: Le dossier technique du bien et son dossier de maintenance sur supports papiers ou supports numériques | X15: X | Y15: Toutes informations en provenance de l’utilisateur ou d’autres intervenants
A16: X | B16: Les consignes d’exploitation | X16: X | Y16: Les pièces de rechange, les consommables
A17: X | B17: Le bon de travail | X17: X | Y17: Les équipements de protection individuels et collectifs
A18: X | B18: Le document unique d’évaluation des risques | X18: X | Y18: Les outillages, matériels de contrôle, de mesure, moyens de manutention.
A19: X | B19: Le carnet de prescription de sécurité électrique | X19: X | Y19: Toutes documentations techniques
A20: X | B20: Les normes | X20: X | Y20: Les consignes et/ou procédures écrites
A21: X | B21: Le plan d’implantation du bien | X21: X | Y21: Le plan de prévention
A24: ÇRepérer les données fournies | Y24: ÇRepérer les données fournies
A25: Travail demandé
A26: X | B26: A1-T3 | D26: Réaliser la maintenance corrective - Réaliser des réparations, des dépannages dans les domaines : mécanique, électrique, pneumatique, hydraulique.
A27: X | B27: A2-T2 | D27: Réaliser la maintenance préventive - Réaliser des opérations planifiées.
A28: L’ENSEMBLE DES ACTIVITES ET DES TACHES SONT MOBILISEES EN CE QUI CONCERNE LA COMPETENCE CP1.7 QUI A TRAIT A LA SECURITE ET A LA PREVENTION DES RISQUES
A29: Consulter le référentiel des activités professionnelles pour obtenir le détail des tâches.
A30: Ç Repérer les tâches demandées (ce sont celles qui correspondent à l’unité dans le référentiel de certification, à l’exclusion de toute autre)
A31: Appréciation globale et proposition de note :
A33: Noms et signatures des évaluateurs : | AJ33: Note proposée : | AR33: /20
AJ34: Note affectée de son coefficient : | AR34: /60

Sheet U32_G (hidden)
A1: Baccalauréat professionnel « maintenance des équipements industriels »
A2: Épreuve E32 (Unité U32) : INTERVENTION SUR UN EQUIPEMENT MECANIQUE
A3: Établissement : (tampon) | X3: Session :
X4: Nom du candidat:
X5: Prénom :
X6: Date de l'évaluation: | AV6: Situation d'évaluation :
A7: Lieu d’évaluation :
A8: Etablissement | AV8: E 32 | AW8: G
A9: Entreprise :
A10: Description sommaire du travail demandé :
A13: Données fournies au candidat
A14: X | B14: Le bien et les conditions de son environnement | X14: X | Y14: Les composants et les conditions de leur environnement
A15: X | B15: Le dossier technique du bien et son dossier de maintenance sur supports papiers ou supports numériques | X15: X | Y15: Toutes informations en provenance de l’utilisateur ou d’autres intervenants
A16: X | B16: Les consignes d’exploitation | X16: X | Y16: Les pièces de rechange, les consommables
A17: X | B17: Le bon de travail | X17: X | Y17: Les équipements de protection individuels et collectifs
A18: X | B18: Le document unique d’évaluation des risques | X18: X | Y18: Les outillages, matériels de contrôle, de mesure, moyens de manutention.
A19: X | B19: Le carnet de prescription de sécurité électrique | X19: X | Y19: Toutes documentations techniques
A20: X | B20: Les normes | X20: X | Y20: Les consignes et/ou procédures écrites
A21: X | B21: Le plan d’implantation du bien | X21: X | Y21: Le plan de prévention
A24: ÇRepérer les données fournies | Y24: ÇRepérer les données fournies
A25: Travail demandé
A26: X | B26: A1-T3 | D26: Réaliser la maintenance corrective - Réaliser des réparations, des dépannages dans les domaines : mécanique, électrique, pneumatique, hydraulique.
A27: X | B27: A2-T2 | D27: Réaliser la maintenance préventive - Réaliser des opérations planifiées.
A28: L’ENSEMBLE DES ACTIVITES ET DES TACHES SONT MOBILISEES EN CE QUI CONCERNE LA COMPETENCE CP1.7 QUI A TRAIT A LA SECURITE ET A LA PREVENTION DES RISQUES
A29: Consulter le référentiel des activités professionnelles pour obtenir le détail des tâches.
A30: Ç Repérer les tâches demandées (ce sont celles qui correspondent à l’unité dans le référentiel de certification, à l’exclusion de toute autre)
A31: Appréciation globale et proposition de note :
A33: Noms et signatures des évaluateurs : | AJ33: Note proposée : | AR33: /20
AJ34: Note affectée de son coefficient : | AR34: /60

Sheet U32_H (hidden)
A1: Baccalauréat professionnel « maintenance des équipements industriels »
A2: Épreuve E32 (Unité U32) : INTERVENTION SUR UN EQUIPEMENT MECANIQUE
A3: Établissement : (tampon) | X3: Session :
X4: Nom du candidat:
X5: Prénom :
X6: Date de l'évaluation: | AV6: Situation d'évaluation :
A7: Lieu d’évaluation :
A8: Etablissement | AV8: E 32 | AW8: H
A9: Entreprise :
A10: Description sommaire du travail demandé :
A13: Données fournies au candidat
A14: X | B14: Le bien et les conditions de son environnement | X14: X | Y14: Les composants et les conditions de leur environnement
A15: X | B15: Le dossier technique du bien et son dossier de maintenance sur supports papiers ou supports numériques | X15: X | Y15: Toutes informations en provenance de l’utilisateur ou d’autres intervenants
A16: X | B16: Les consignes d’exploitation | X16: X | Y16: Les pièces de rechange, les consommables
A17: X | B17: Le bon de travail | X17: X | Y17: Les équipements de protection individuels et collectifs
A18: X | B18: Le document unique d’évaluation des risques | X18: X | Y18: Les outillages, matériels de contrôle, de mesure, moyens de manutention.
A19: X | B19: Le carnet de prescription de sécurité électrique | X19: X | Y19: Toutes documentations techniques
A20: X | B20: Les normes | X20: X | Y20: Les consignes et/ou procédures écrites
A21: X | B21: Le plan d’implantation du bien | X21: X | Y21: Le plan de prévention
A24: ÇRepérer les données fournies | Y24: ÇRepérer les données fournies
A25: Travail demandé
A26: X | B26: A1-T3 | D26: Réaliser la maintenance corrective - Réaliser des réparations, des dépannages dans les domaines : mécanique, électrique, pneumatique, hydraulique.
A27: X | B27: A2-T2 | D27: Réaliser la maintenance préventive - Réaliser des opérations planifiées.
A28: L’ENSEMBLE DES ACTIVITES ET DES TACHES SONT MOBILISEES EN CE QUI CONCERNE LA COMPETENCE CP1.7 QUI A TRAIT A LA SECURITE ET A LA PREVENTION DES RISQUES
A29: Consulter le référentiel des activités professionnelles pour obtenir le détail des tâches.
A30: Ç Repérer les tâches demandées (ce sont celles qui correspondent à l’unité dans le référentiel de certification, à l’exclusion de toute autre)
A31: Appréciation globale et proposition de note :
A33: Noms et signatures des évaluateurs : | AJ33: Note proposée : | AR33: /20
AJ34: Note affectée de son coefficient : | AR34: /60

Sheet U33_A (hidden)
A1: Baccalauréat professionnel « maintenance des équipements industriels »
A2: Épreuve E33 (Unité U33) : Maintenance d’un système automatisé
A3: Établissement : (tampon) | X3: Session :
X4: Nom du candidat:
X5: Prénom :
X6: Date de l'évaluation: | AV6: Situation d'évaluation :
A7: Lieu d’évaluation :
A8: Etablissement | AV8: E 33 | AW8: A
A9: Entreprise :
A10: Description sommaire du travail demandé :
A13: Données fournies au candidat
A14: X | B14: Un bien en panne totale ou partielle. | X14: X | Y14: Le bon de travail.
A15: X | B15: Le dossier technique du bien et son dossier de maintenance sur supports papiers ou supports numériques | X15: X | Y15: Toutes informations en provenance de l’utilisateur ou d’autres intervenants
A16: X | B16: Les Consignes et/ou les procédures écrites | X16: X | Y16: La description des évènements par l’exploitant
A17: X | B17: Le dossier historique du bien. | X17: X | Y17: La documentation technique du bien.
A18: X | B18: Document unique d’évaluation des risques | X18: X | Y18: Le plan de prévention
A19: X | B19: Eventuellement une aide au diagnostic : - Tableau cause/effet - Organigramme de défaillance - Diagramme cause/effet – AMPEC, - AMDE… | X19: X | Y19: Les moyens d’investigation : Console de programmation maintenance. Les appareils de mesure, de contrôle, moyens de manutention.
A20: X | B20: Les outillages nécessaires. | X20: X | Y20: Les documentations constructeur spécifiques
A21: X | B21: Les pièces de rechange, consommables | X21: X | Y21: Le plan d’implantation du bien
A22: X | B22: Les équipements de protection individuels et collectifs | X22: X | Y22: Les équipements individuels de sécurité
A23: X | B23: Le planning des interventions | X23: X | Y23: Les documents utilisateurs du ou des postes de travail.
A24: X | B24: Le dossier de préparation | X24: X | Y24: Le document de recette
A25: X | B25: Les normes | X25: X | Y25: Le plan de prévention
A26: X | B26: Le Carnet de prescription de sécurité électrique
A27: ÇRepérer les données fournies | Y27: ÇRepérer les données fournies
A28: Travail demandé
A29: X | B29: A1-T1 | D29: Réaliser la maintenance corrective - Diagnostiquer les pannes.
A30: X | B30: A1-T3 | D30: Réaliser la maintenance corrective - Réaliser des réparations, des dépannages dans les domaines : mécanique, électrique, pneumatique, hydraulique.
A31: X | B31: A2-T2 | D31: Réaliser la maintenance préventive - Réaliser des opérations planifiées.
A32: X | B32: A4-T1 | D32: Intégrer de nouveaux biens - Installer de nouveaux biens.
A33: X | B33: A4-T2 | D33: Intégrer de nouveaux biens - Mettre en service de nouveaux biens
A34: L’ENSEMBLE DES ACTIVITES ET DES TACHES SONT MOBILISEES EN CE QUI CONCERNE LA COMPETENCE CP1.7 QUI A TRAIT A LA SECURITE ET A LA PREVENTION DES RISQUES
A35: Consulter le référentiel des activités professionnelles pour obtenir le détail des tâches.
A36: Ç Repérer les tâches demandées (ce sont celles qui correspondent à l’unité dans le référentiel de certification, à l’exclusion de toute autre)
A37: Appréciation globale et proposition de note :
A39: Noms et signatures des évaluateurs : | AJ39: Note proposée : | AR39: /20
AJ40: Note affectée de son coefficient : | AR40: /60

Sheet U33_B (hidden)
A1: Baccalauréat professionnel « maintenance des équipements industriels »
A2: Épreuve E33 (Unité U33) : Maintenance d’un système automatisé
A3: Établissement : (tampon) | X3: Session :
X4: Nom du candidat:
X5: Prénom :
X6: Date de l'évaluation: | AV6: Situation d'évaluation :
A7: Lieu d’évaluation :
A8: Etablissement | AV8: E 33 | AW8: B
A9: Entreprise :
A10: Description sommaire du travail demandé :
A13: Données fournies au candidat
A14: X | B14: Un bien en panne totale ou partielle. | X14: X | Y14: Le bon de travail.
A15: X | B15: Le dossier technique du bien et son dossier de maintenance sur supports papiers ou supports numériques | X15: X | Y15: Toutes informations en provenance de l’utilisateur ou d’autres intervenants
A16: X | B16: Les Consignes et/ou les procédures écrites | X16: X | Y16: La description des évènements par l’exploitant
A17: X | B17: Le dossier historique du bien. | X17: X | Y17: La documentation technique du bien.
A18: X | B18: Document unique d’évaluation des risques | X18: X | Y18: Le plan de prévention
A19: X | B19: Eventuellement une aide au diagnostic : - Tableau cause/effet - Organigramme de défaillance - Diagramme cause/effet – AMPEC, - AMDE… | X19: X | Y19: Les moyens d’investigation : Console de programmation maintenance. Les appareils de mesure, de contrôle, moyens de manutention.
A20: X | B20: Les outillages nécessaires. | X20: X | Y20: Les documentations constructeur spécifiques
A21: X | B21: Les pièces de rechange, consommables | X21: X | Y21: Le plan d’implantation du bien
A22: X | B22: Les équipements de protection individuels et collectifs | X22: X | Y22: Les équipements individuels de sécurité
A23: X | B23: Le planning des interventions | X23: X | Y23: Les documents utilisateurs du ou des postes de travail.
A24: X | B24: Le dossier de préparation | X24: X | Y24: Le document de recette
A25: X | B25: Les normes | X25: X | Y25: Le plan de prévention
A26: X | B26: Le Carnet de prescription de sécurité électrique
A27: ÇRepérer les données fournies | Y27: ÇRepérer les données fournies
A28: Travail demandé
A29: X | B29: A1-T1 | D29: Réaliser la maintenance corrective - Diagnostiquer les pannes.
A30: X | B30: A1-T3 | D30: Réaliser la maintenance corrective - Réaliser des réparations, des dépannages dans les domaines : mécanique, électrique, pneumatique, hydraulique.
A31: X | B31: A2-T2 | D31: Réaliser la maintenance préventive - Réaliser des opérations planifiées.
A32: X | B32: A4-T1 | D32: Intégrer de nouveaux biens - Installer de nouveaux biens.
A33: X | B33: A4-T2 | D33: Intégrer de nouveaux biens - Mettre en service de nouveaux biens
A34: L’ENSEMBLE DES ACTIVITES ET DES TACHES SONT MOBILISEES EN CE QUI CONCERNE LA COMPETENCE CP1.7 QUI A TRAIT A LA SECURITE ET A LA PREVENTION DES RISQUES
A35: Consulter le référentiel des activités professionnelles pour obtenir le détail des tâches.
A36: Ç Repérer les tâches demandées (ce sont celles qui correspondent à l’unité dans le référentiel de certification, à l’exclusion de toute autre)
A37: Appréciation globale et proposition de note :
A39: Noms et signatures des évaluateurs : | AJ39: Note proposée : | AR39: /20
AJ40: Note affectée de son coefficient : | AR40: /60

Sheet U33_C (hidden)
A1: Baccalauréat professionnel « maintenance des équipements industriels »
A2: Épreuve E33 (Unité U33) : Maintenance d’un système automatisé
A3: Établissement : (tampon) | X3: Session :
X4: Nom du candidat:
X5: Prénom :
X6: Date de l'évaluation: | AV6: Situation d'évaluation :
A7: Lieu d’évaluation :
A8: Etablissement | AV8: E 33 | AW8: C
A9: Entreprise :
A10: Description sommaire du travail demandé :
A13: Données fournies au candidat
A14: X | B14: Un bien en panne totale ou partielle. | X14: X | Y14: Le bon de travail.
A15: X | B15: Le dossier technique du bien et son dossier de maintenance sur supports papiers ou supports numériques | X15: X | Y15: Toutes informations en provenance de l’utilisateur ou d’autres intervenants
A16: X | B16: Les Consignes et/ou les procédures écrites | X16: X | Y16: La description des évènements par l’exploitant
A17: X | B17: Le dossier historique du bien. | X17: X | Y17: La documentation technique du bien.
A18: X | B18: Document unique d’évaluation des risques | X18: X | Y18: Le plan de prévention
A19: X | B19: Eventuellement une aide au diagnostic : - Tableau cause/effet - Organigramme de défaillance - Diagramme cause/effet – AMPEC, - AMDE… | X19: X | Y19: Les moyens d’investigation : Console de programmation maintenance. Les appareils de mesure, de contrôle, moyens de manutention.
A20: X | B20: Les outillages nécessaires. | X20: X | Y20: Les documentations constructeur spécifiques
A21: X | B21: Les pièces de rechange, consommables | X21: X | Y21: Le plan d’implantation du bien
A22: X | B22: Les équipements de protection individuels et collectifs | X22: X | Y22: Les équipements individuels de sécurité
A23: X | B23: Le planning des interventions | X23: X | Y23: Les documents utilisateurs du ou des postes de travail.
A24: X | B24: Le dossier de préparation | X24: X | Y24: Le document de recette
A25: X | B25: Les normes | X25: X | Y25: Le plan de prévention
A26: X | B26: Le Carnet de prescription de sécurité électrique
A27: ÇRepérer les données fournies | Y27: ÇRepérer les données fournies
A28: Travail demandé
A29: X | B29: A1-T1 | D29: Réaliser la maintenance corrective - Diagnostiquer les pannes.
A30: X | B30: A1-T3 | D30: Réaliser la maintenance corrective - Réaliser des réparations, des dépannages dans les domaines : mécanique, électrique, pneumatique, hydraulique.
A31: X | B31: A2-T2 | D31: Réaliser la maintenance préventive - Réaliser des opérations planifiées.
A32: X | B32: A4-T1 | D32: Intégrer de nouveaux biens - Installer de nouveaux biens.
A33: X | B33: A4-T2 | D33: Intégrer de nouveaux biens - Mettre en service de nouveaux biens
A34: L’ENSEMBLE DES ACTIVITES ET DES TACHES SONT MOBILISEES EN CE QUI CONCERNE LA COMPETENCE CP1.7 QUI A TRAIT A LA SECURITE ET A LA PREVENTION DES RISQUES
A35: Consulter le référentiel des activités professionnelles pour obtenir le détail des tâches.
A36: Ç Repérer les tâches demandées (ce sont celles qui correspondent à l’unité dans le référentiel de certification, à l’exclusion de toute autre)
A37: Appréciation globale et proposition de note :
A39: Noms et signatures des évaluateurs : | AJ39: Note proposée : | AR39: /20
AJ40: Note affectée de son coefficient : | AR40: /60

Sheet U33_D (hidden)
A1: Baccalauréat professionnel « maintenance des équipements industriels »
A2: Épreuve E33 (Unité U33) : Maintenance d’un système automatisé
A3: Établissement : (tampon) | X3: Session :
X4: Nom du candidat:
X5: Prénom :
X6: Date de l'évaluation: | AV6: Situation d'évaluation :
A7: Lieu d’évaluation :
A8: Etablissement | AV8: E 33 | AW8: D
A9: Entreprise :
A10: Description sommaire du travail demandé :
A13: Données fournies au candidat
A14: X | B14: Un bien en panne totale ou partielle. | X14: X | Y14: Le bon de travail.
A15: X | B15: Le dossier technique du bien et son dossier de maintenance sur supports papiers ou supports numériques | X15: X | Y15: Toutes informations en provenance de l’utilisateur ou d’autres intervenants
A16: X | B16: Les Consignes et/ou les procédures écrites | X16: X | Y16: La description des évènements par l’exploitant
A17: X | B17: Le dossier historique du bien. | X17: X | Y17: La documentation technique du bien.
A18: X | B18: Document unique d’évaluation des risques | X18: X | Y18: Le plan de prévention
A19: X | B19: Eventuellement une aide au diagnostic : - Tableau cause/effet - Organigramme de défaillance - Diagramme cause/effet – AMPEC, - AMDE… | X19: X | Y19: Les moyens d’investigation : Console de programmation maintenance. Les appareils de mesure, de contrôle, moyens de manutention.
A20: X | B20: Les outillages nécessaires. | X20: X | Y20: Les documentations constructeur spécifiques
A21: X | B21: Les pièces de rechange, consommables | X21: X | Y21: Le plan d’implantation du bien
A22: X | B22: Les équipements de protection individuels et collectifs | X22: X | Y22: Les équipements individuels de sécurité
A23: X | B23: Le planning des interventions | X23: X | Y23: Les documents utilisateurs du ou des postes de travail.
A24: X | B24: Le dossier de préparation | X24: X | Y24: Le document de recette
A25: X | B25: Les normes | X25: X | Y25: Le plan de prévention
A26: X | B26: Le Carnet de prescription de sécurité électrique
A27: ÇRepérer les données fournies | Y27: ÇRepérer les données fournies
A28: Travail demandé
A29: X | B29: A1-T1 | D29: Réaliser la maintenance corrective - Diagnostiquer les pannes.
A30: X | B30: A1-T3 | D30: Réaliser la maintenance corrective - Réaliser des réparations, des dépannages dans les domaines : mécanique, électrique, pneumatique, hydraulique.
A31: X | B31: A2-T2 | D31: Réaliser la maintenance préventive - Réaliser des opérations planifiées.
A32: X | B32: A4-T1 | D32: Intégrer de nouveaux biens - Installer de nouveaux biens.
A33: X | B33: A4-T2 | D33: Intégrer de nouveaux biens - Mettre en service de nouveaux biens
A34: L’ENSEMBLE DES ACTIVITES ET DES TACHES SONT MOBILISEES EN CE QUI CONCERNE LA COMPETENCE CP1.7 QUI A TRAIT A LA SECURITE ET A LA PREVENTION DES RISQUES
A35: Consulter le référentiel des activités professionnelles pour obtenir le détail des tâches.
A36: Ç Repérer les tâches demandées (ce sont celles qui correspondent à l’unité dans le référentiel de certification, à l’exclusion de toute autre)
A37: Appréciation globale et proposition de note :
A39: Noms et signatures des évaluateurs : | AJ39: Note proposée : | AR39: /20
AJ40: Note affectée de son coefficient : | AR40: /60

Sheet U33_E (hidden)
A1: Baccalauréat professionnel « maintenance des équipements industriels »
A2: Épreuve E33 (Unité U33) : Maintenance d’un système automatisé
A3: Établissement : (tampon) | X3: Session :
X4: Nom du candidat:
X5: Prénom :
X6: Date de l'évaluation: | AV6: Situation d'évaluation :
A7: Lieu d’évaluation :
A8: Etablissement | AV8: E 33 | AW8: E
A9: Entreprise :
A10: Description sommaire du travail demandé :
A13: Données fournies au candidat
A14: X | B14: Un bien en panne totale ou partielle. | X14: X | Y14: Le bon de travail.
A15: X | B15: Le dossier technique du bien et son dossier de maintenance sur supports papiers ou supports numériques | X15: X | Y15: Toutes informations en provenance de l’utilisateur ou d’autres intervenants
A16: X | B16: Les Consignes et/ou les procédures écrites | X16: X | Y16: La description des évènements par l’exploitant
A17: X | B17: Le dossier historique du bien. | X17: X | Y17: La documentation technique du bien.
A18: X | B18: Document unique d’évaluation des risques | X18: X | Y18: Le plan de prévention
A19: X | B19: Eventuellement une aide au diagnostic : - Tableau cause/effet - Organigramme de défaillance - Diagramme cause/effet – AMPEC, - AMDE… | X19: X | Y19: Les moyens d’investigation : Console de programmation maintenance. Les appareils de mesure, de contrôle, moyens de manutention.
A20: X | B20: Les outillages nécessaires. | X20: X | Y20: Les documentations constructeur spécifiques
A21: X | B21: Les pièces de rechange, consommables | X21: X | Y21: Le plan d’implantation du bien
A22: X | B22: Les équipements de protection individuels et collectifs | X22: X | Y22: Les équipements individuels de sécurité
A23: X | B23: Le planning des interventions | X23: X | Y23: Les documents utilisateurs du ou des postes de travail.
A24: X | B24: Le dossier de préparation | X24: X | Y24: Le document de recette
A25: X | B25: Les normes | X25: X | Y25: Le plan de prévention
A26: X | B26: Le Carnet de prescription de sécurité électrique
A27: ÇRepérer les données fournies | Y27: ÇRepérer les données fournies
A28: Travail demandé
A29: X | B29: A1-T1 | D29: Réaliser la maintenance corrective - Diagnostiquer les pannes.
A30: X | B30: A1-T3 | D30: Réaliser la maintenance corrective - Réaliser des réparations, des dépannages dans les domaines : mécanique, électrique, pneumatique, hydraulique.
A31: X | B31: A2-T2 | D31: Réaliser la maintenance préventive - Réaliser des opérations planifiées.
A32: X | B32: A4-T1 | D32: Intégrer de nouveaux biens - Installer de nouveaux biens.
A33: X | B33: A4-T2 | D33: Intégrer de nouveaux biens - Mettre en service de nouveaux biens
A34: L’ENSEMBLE DES ACTIVITES ET DES TACHES SONT MOBILISEES EN CE QUI CONCERNE LA COMPETENCE CP1.7 QUI A TRAIT A LA SECURITE ET A LA PREVENTION DES RISQUES
A35: Consulter le référentiel des activités professionnelles pour obtenir le détail des tâches.
A36: Ç Repérer les tâches demandées (ce sont celles qui correspondent à l’unité dans le référentiel de certification, à l’exclusion de toute autre)
A37: Appréciation globale et proposition de note :
A39: Noms et signatures des évaluateurs : | AJ39: Note proposée : | AR39: /20
AJ40: Note affectée de son coefficient : | AR40: /60

Sheet U33_F (hidden)
A1: Baccalauréat professionnel « maintenance des équipements industriels »
A2: Épreuve E33 (Unité U33) : Maintenance d’un système automatisé
A3: Établissement : (tampon) | X3: Session :
X4: Nom du candidat:
X5: Prénom :
X6: Date de l'évaluation: | AV6: Situation d'évaluation :
A7: Lieu d’évaluation :
A8: Etablissement | AV8: E 33 | AW8: F
A9: Entreprise :
A10: Description sommaire du travail demandé :
A13: Données fournies au candidat
A14: X | B14: Un bien en panne totale ou partielle. | X14: X | Y14: Le bon de travail.
A15: X | B15: Le dossier technique du bien et son dossier de maintenance sur supports papiers ou supports numériques | X15: X | Y15: Toutes informations en provenance de l’utilisateur ou d’autres intervenants
A16: X | B16: Les Consignes et/ou les procédures écrites | X16: X | Y16: La description des évènements par l’exploitant
A17: X | B17: Le dossier historique du bien. | X17: X | Y17: La documentation technique du bien.
A18: X | B18: Document unique d’évaluation des risques | X18: X | Y18: Le plan de prévention
A19: X | B19: Eventuellement une aide au diagnostic : - Tableau cause/effet - Organigramme de défaillance - Diagramme cause/effet – AMPEC, - AMDE… | X19: X | Y19: Les moyens d’investigation : Console de programmation maintenance. Les appareils de mesure, de contrôle, moyens de manutention.
A20: X | B20: Les outillages nécessaires. | X20: X | Y20: Les documentations constructeur spécifiques
A21: X | B21: Les pièces de rechange, consommables | X21: X | Y21: Le plan d’implantation du bien
A22: X | B22: Les équipements de protection individuels et collectifs | X22: X | Y22: Les équipements individuels de sécurité
A23: X | B23: Le planning des interventions | X23: X | Y23: Les documents utilisateurs du ou des postes de travail.
A24: X | B24: Le dossier de préparation | X24: X | Y24: Le document de recette
A25: X | B25: Les normes | X25: X | Y25: Le plan de prévention
A26: X | B26: Le Carnet de prescription de sécurité électrique
A27: ÇRepérer les données fournies | Y27: ÇRepérer les données fournies
A28: Travail demandé
A29: X | B29: A1-T1 | D29: Réaliser la maintenance corrective - Diagnostiquer les pannes.
A30: X | B30: A1-T3 | D30: Réaliser la maintenance corrective - Réaliser des réparations, des dépannages dans les domaines : mécanique, électrique, pneumatique, hydraulique.
A31: X | B31: A2-T2 | D31: Réaliser la maintenance préventive - Réaliser des opérations planifiées.
A32: X | B32: A4-T1 | D32: Intégrer de nouveaux biens - Installer de nouveaux biens.
A33: X | B33: A4-T2 | D33: Intégrer de nouveaux biens - Mettre en service de nouveaux biens
A34: L’ENSEMBLE DES ACTIVITES ET DES TACHES SONT MOBILISEES EN CE QUI CONCERNE LA COMPETENCE CP1.7 QUI A TRAIT A LA SECURITE ET A LA PREVENTION DES RISQUES
A35: Consulter le référentiel des activités professionnelles pour obtenir le détail des tâches.
A36: Ç Repérer les tâches demandées (ce sont celles qui correspondent à l’unité dans le référentiel de certification, à l’exclusion de toute autre)
A37: Appréciation globale et proposition de note :
A39: Noms et signatures des évaluateurs : | AJ39: Note proposée : | AR39: /20
AJ40: Note affectée de son coefficient : | AR40: /60

Sheet U33_G (hidden)
A1: Baccalauréat professionnel « maintenance des équipements industriels »
A2: Épreuve E33 (Unité U33) : Maintenance d’un système automatisé
A3: Établissement : (tampon) | X3: Session :
X4: Nom du candidat:
X5: Prénom :
X6: Date de l'évaluation: | AV6: Situation d'évaluation :
A7: Lieu d’évaluation :
A8: Etablissement | AV8: E 33 | AW8: G
A9: Entreprise :
A10: Description sommaire du travail demandé :
A13: Données fournies au candidat
A14: X | B14: Un bien en panne totale ou partielle. | X14: X | Y14: Le bon de travail.
A15: X | B15: Le dossier technique du bien et son dossier de maintenance sur supports papiers ou supports numériques | X15: X | Y15: Toutes informations en provenance de l’utilisateur ou d’autres intervenants
A16: X | B16: Les Consignes et/ou les procédures écrites | X16: X | Y16: La description des évènements par l’exploitant
A17: X | B17: Le dossier historique du bien. | X17: X | Y17: La documentation technique du bien.
A18: X | B18: Document unique d’évaluation des risques | X18: X | Y18: Le plan de prévention
A19: X | B19: Eventuellement une aide au diagnostic : - Tableau cause/effet - Organigramme de défaillance - Diagramme cause/effet – AMPEC, - AMDE… | X19: X | Y19: Les moyens d’investigation : Console de programmation maintenance. Les appareils de mesure, de contrôle, moyens de manutention.
A20: X | B20: Les outillages nécessaires. | X20: X | Y20: Les documentations constructeur spécifiques
A21: X | B21: Les pièces de rechange, consommables | X21: X | Y21: Le plan d’implantation du bien
A22: X | B22: Les équipements de protection individuels et collectifs | X22: X | Y22: Les équipements individuels de sécurité
A23: X | B23: Le planning des interventions | X23: X | Y23: Les documents utilisateurs du ou des postes de travail.
A24: X | B24: Le dossier de préparation | X24: X | Y24: Le document de recette
A25: X | B25: Les normes | X25: X | Y25: Le plan de prévention
A26: X | B26: Le Carnet de prescription de sécurité électrique
A27: ÇRepérer les données fournies | Y27: ÇRepérer les données fournies
A28: Travail demandé
A29: X | B29: A1-T1 | D29: Réaliser la maintenance corrective - Diagnostiquer les pannes.
A30: X | B30: A1-T3 | D30: Réaliser la maintenance corrective - Réaliser des réparations, des dépannages dans les domaines : mécanique, électrique, pneumatique, hydraulique.
A31: X | B31: A2-T2 | D31: Réaliser la maintenance préventive - Réaliser des opérations planifiées.
A32: X | B32: A4-T1 | D32: Intégrer de nouveaux biens - Installer de nouveaux biens.
A33: X | B33: A4-T2 | D33: Intégrer de nouveaux biens - Mettre en service de nouveaux biens
A34: L’ENSEMBLE DES ACTIVITES ET DES TACHES SONT MOBILISEES EN CE QUI CONCERNE LA COMPETENCE CP1.7 QUI A TRAIT A LA SECURITE ET A LA PREVENTION DES RISQUES
A35: Consulter le référentiel des activités professionnelles pour obtenir le détail des tâches.
A36: Ç Repérer les tâches demandées (ce sont celles qui correspondent à l’unité dans le référentiel de certification, à l’exclusion de toute autre)
A37: Appréciation globale et proposition de note :
A39: Noms et signatures des évaluateurs : | AJ39: Note proposée : | AR39: /20
AJ40: Note affectée de son coefficient : | AR40: /60

Sheet U33_H (hidden)
A1: Baccalauréat professionnel « maintenance des équipements industriels »
A2: Épreuve E33 (Unité U33) : Maintenance d’un système automatisé
A3: Établissement : (tampon) | X3: Session :
X4: Nom du candidat:
X5: Prénom :
X6: Date de l'évaluation: | AV6: Situation d'évaluation :
A7: Lieu d’évaluation :
A8: Etablissement | AV8: E 33 | AW8: H
A9: Entreprise :
A10: Description sommaire du travail demandé :
A13: Données fournies au candidat
A14: X | B14: Un bien en panne totale ou partielle. | X14: X | Y14: Le bon de travail.
A15: X | B15: Le dossier technique du bien et son dossier de maintenance sur supports papiers ou supports numériques | X15: X | Y15: Toutes informations en provenance de l’utilisateur ou d’autres intervenants
A16: X | B16: Les Consignes et/ou les procédures écrites | X16: X | Y16: La description des évènements par l’exploitant
A17: X | B17: Le dossier historique du bien. | X17: X | Y17: La documentation technique du bien.
A18: X | B18: Document unique d’évaluation des risques | X18: X | Y18: Le plan de prévention
A19: X | B19: Eventuellement une aide au diagnostic : - Tableau cause/effet - Organigramme de défaillance - Diagramme cause/effet – AMPEC, - AMDE… | X19: X | Y19: Les moyens d’investigation : Console de programmation maintenance. Les appareils de mesure, de contrôle, moyens de manutention.
A20: X | B20: Les outillages nécessaires. | X20: X | Y20: Les documentations constructeur spécifiques
A21: X | B21: Les pièces de rechange, consommables | X21: X | Y21: Le plan d’implantation du bien
A22: X | B22: Les équipements de protection individuels et collectifs | X22: X | Y22: Les équipements individuels de sécurité
A23: X | B23: Le planning des interventions | X23: X | Y23: Les documents utilisateurs du ou des postes de travail.
A24: X | B24: Le dossier de préparation | X24: X | Y24: Le document de recette
A25: X | B25: Les normes | X25: X | Y25: Le plan de prévention
A26: X | B26: Le Carnet de prescription de sécurité électrique
A27: ÇRepérer les données fournies | Y27: ÇRepérer les données fournies
A28: Travail demandé
A29: X | B29: A1-T1 | D29: Réaliser la maintenance corrective - Diagnostiquer les pannes.
A30: X | B30: A1-T3 | D30: Réaliser la maintenance corrective - Réaliser des réparations, des dépannages dans les domaines : mécanique, électrique, pneumatique, hydraulique.
A31: X | B31: A2-T2 | D31: Réaliser la maintenance préventive - Réaliser des opérations planifiées.
A32: X | B32: A4-T1 | D32: Intégrer de nouveaux biens - Installer de nouveaux biens.
A33: X | B33: A4-T2 | D33: Intégrer de nouveaux biens - Mettre en service de nouveaux biens
A34: L’ENSEMBLE DES ACTIVITES ET DES TACHES SONT MOBILISEES EN CE QUI CONCERNE LA COMPETENCE CP1.7 QUI A TRAIT A LA SECURITE ET A LA PREVENTION DES RISQUES
A35: Consulter le référentiel des activités professionnelles pour obtenir le détail des tâches.
A36: Ç Repérer les tâches demandées (ce sont celles qui correspondent à l’unité dans le référentiel de certification, à l’exclusion de toute autre)
A37: Appréciation globale et proposition de note :
A39: Noms et signatures des évaluateurs : | AJ39: Note proposée : | AR39: /20
AJ40: Note affectée de son coefficient : | AR40: /60
